{"text_format":"1","workbook":"xlsx","n_sheets":11,"sheets":["Mandals","Code","Mandals list Village wise","code2","Data","INCOME TAX","SALARY TABLE","ADVANCE TAX","ITR-I Page 1","ITR-IPage 2","ITR I"],"not_rendered":{"charts":0,"images":12,"macros":1,"external_links":7,"defined_names":47,"comments":2,"pivot_tables":0},"unopened":[],"bounds":{"document_bytes":16777216,"sheet_cells":100000,"rows_first":2000,"rows_last":500,"rows_between":2000,"halvings":0,"cell_chars":16384,"cell_head_chars":4096},"cells_cut":0,"cells_raw":0,"read":"whole","date_system":"1900"}

{"sheet":"Mandals","index":0,"n_rows":68,"n_cols":28,"rows_kept":68,"cut":false,"hidden":true,"merged":[]}
[null,null,null,null,null,null,null,null,null,null,null,null,null,null,null,null,null,null,null,null,null,null,null,null,null,{"$f":"Code!$B$2","v":"Nellore District"},5]
[null,"Adilabad ","Anathapuram","Chittoor District","West godavari District ","Guntur District","Hyderabad   District ","kaddapah District","Kareemnagar District ","Khammam District ","Krishan District ","Kurnool District","Mahaboobnagar District ","Medak District ","Nalgonda District ","Nizamabad District ","Nellore District","Prakasam District","Ranga reddy District ","Sreekakulam District ","Visakhapatnam District","Vizianagaram District","Warangal District ","West godavari  District ","S.No","Districts",{"$f":"LOOKUP(AA1,Y3:Y68,AA3:AA68)","v":"Balayapalli"}]
[1,"Adilabad ","Agali ","B Kothakota","Achanta","Achampeta",null,"Atlur ","Bheemadevarpalle","Aswapuram ","A Konduru ","Adoni  ","Achampeta","Alladurg","Alair ","Armur ","Allur","Addanki","Balanagar ","Amadalavalasa ","Anakapalli","Badangi","Atmakur  ","Achanta",1,"Adilabad ",{"$f":" HLOOKUP($Z$1,$B$2:$X$68,AB3,FALSE)","v":"Allur"},2]
[2,"Narnoor","Amadagur","Baireddi Palle","Akiveedu","Amaravathi ",null,"B Kodur ","Boinpalle","Aswaraopeta","Agiripalle","Allagadda","Addakal","Andole","Anumula","Balkonda","Ananthasagaram","Ardhaveedu","Bantaram","Battili","Anandapuram ","Balajipeta","Bachannapeta","Akiveedu",2,"Anathapuram","Ananthasagaram",3]
[3,"Bela","Amarapuram","Bangarupalem","Attili","Amruthalur ",null,"Badvel ","Chandurthi","Bayyaram","Avanigadda","Alur","Aiza ","Chegunta","Atmakur ","Banswada","Anumasamudrampeta","Ballikuruva ","Basheerabad","Bhamini","Ananthagiri","Bhoghapuram","Bhupalpalle","Attili",3,"Chittoor District","Anumasamudrampeta",4]
[4,"Boath","Anantapur","Buchinaidu Khandriga","Bheemavaram","Bapatla ",null,"Brahmamgarimattam ","Choppadandi","Bhadrachalam ","Bantumilli","Aspari","Alampur","Chinna Kodur","Atmakur","Bheemgal","Atmakur","Bestavaripeta ","Chevella","Burja","Araku Valley","Bobbili","Chennaraopet","Bheemavaram",4,"West godavari District ","Atmakur",5]
[5,"Dilawarpur","Atmakur","Chandragiri","Bhimadole","Bellamkonda",null,"Chakrayapet","Dharmapuri","Bonakal ","Bapulapadu","Atmakur","Amangal","Doultabad","Bhuvanagiri","Bhiknur","Balayapalli","Chadrasekara Puram  ","Dharur","Etcherla","Atchutapuram ","Bondapalle","Cheriyal","Bhimadole",5,"Guntur District","Balayapalli",6]
[6,"Jainad","Bathalapalle","Chinnagottigallu","Buttayagudem","Bhattiprolu ",null,"Chapad ","Dharmaram","Burgampadu","Challapalli ","Banaganapalle","Amrabad","Dubbak","Bibinagar","Bichkunda","Bogole","Chimakurthi ","Domah","Ganguvari Singadam","Bheemunipatnam","Chintalavalasa","Chityal","Buttayagudem",6,"Hyderabad District ","Bogole",7]
[7,"Kaddampeddur","Beluguppa","Chittoor","Chagallu","Bollapalle ",null,"Chennur","Ellanthakunta","Chandrugonda","Chandarlapadu","Bandi Atmakur","Atmakur","Eddumailaram","Bommalaramaram","Birkoor ","Buchireddipalem","Chinaganjam ","Gandeed","Kaligapatnam","Butchayyapeta ","Cheepurupalle","Devaruppula","Chagallu",7,"Kaddapah District","Buchireddipalem",8]
[8,"Khanpur","Bommanahal","Chowdepalle","Chintalapudi","Chebrole ",null,"ChinnaChowk ","Gambhiraopet","Cherla","Chatrai","Bethamcherla","Balanagar","Gajwel","Chandam Pet","Bodhan","Chejerla ","Chirala ","Ghatkesar","Hiramandalam","Cheedikada","Dattirajeru","Dharmasagar","Chintalapudi",8,"Kareemnagar District ","Chejerla ",9]
[9,"Kuntala","Brahmasamudram ","Gangadhara Nellore","Denduluru","Cherukupalle ",null,"Chinnamandem ","Gangadhara","Chinthakani","G Konduru","Bugganipalle","Balmoor","Hathnoora","Chandur","Dhar Palle","Chillakur ","Cumbum ","Hayathnagar","Ichchapuram","Chintapalle","Denkada","Dornakal","Denduluru",9,"Khammam District ","Chillakur ",10]
[10,"Mamda","Bukkapatnam","Gangavaram  ","Devarapalle","Chilakaluripet ",null,"Chintha Kommadinne ","Gollapalle","Chintur","Gampalagudem","C.Belagal","Bhoothpur ","Jagdevpur","Chilkur","Dich Palle","Chittamur ","Darsi ","Ibrahimpatam","Jalumuru","Chodavaram","Gajapathinagaram","Duggondi","Devarapalle",10,"Krishan District ","Chittamur ",11]
[11,"Rebbana","Bukkarayasamudram","Gudi Palle  ","Dwaraka Tirumala","Dachepalle ",null,"Chitvel ","Husnabad","Dammapeta","Gannavaram","Chagalamarri","Bijinapalle","Jharasangam","Chintha Palle","Domakonda","Dagadarthi ","Donakonda","Kandukur","Kanchili","Devarapalle","Gantyada","Eturnagaram ","Dwaraka Tirumala",11,"Kurnool District","Dagadarthi ",12]
[12,"Talamadugu","Chenne Kothapalle","Gudipala ","Eluru","Duggirala ",null,"Cuddapah ","Huzurabad","Dummugudem","Ghantasala","Chippagiri","Bomraspeta","Jinnaram","Chityala","Gandhari","Dakkili","Dornala ","Keesara","Kaviti","Dumbriguda","Garividi","Geesugonda","Eluru",12,"Mahaboobnagar District ","Dakkili",13]
[13,"Tiryani","Chilamathur","Gurramkonda  ","Ganapavaram","Durgi ",null,"Duvvur  ","Ibrahimpatnam","Enkuru","Gudivada","Devanakonda","Chinna Chinta Kunta","Kalher","Chivvemla","Jakranpalle","Doravarisatram","Giddaluru ","Kulkacharla","Kotabommili","Gajuwaka","Garugubilli","Ghanapur","Ganapavaram",13,"Medak District ","Doravarisatram",14]
[14,"Asifabad","D.Hirchal","Irala ","Gopalapuram","Edlapadu",null,"Galiveedu ","Jagtial","Garla","Gudlavalleru","Dhone","Damaragidda","Kohir","Choutuppal","Jukkal","Duttalur ","Gudluru ","Maheswaram","Kothuru ","Gangaraju Madugula","Gummalakshmipuram","Ghanpur(Stn)","Gopalapuram",14,"Nalgonda District ","Duttalur ",15]
[15,"Bellampalle","Dharmavaram","K V P Puram ","Iragavaram","Guntur ",null,"Gopavaram","Jammikunta","Gundala","Gudur","Dornipadu","Devarkadara","Kondapak","Dameracherla","Kamareddy","Gudur ","Hanumanthunipadu ","Malkajgiri","Laveru","Golugonda","Gurla","Govindaraopet","Iragavaram",15,"Nizamabad District ","Gudur ",16]
[16,"Chennur","Gandlapenta","Kalakada  ","Jangareddigudem","Gurazala ",null,"Jammalamadugu • ","Julapalle","Julurpad","Ibrahimpatnam","Gadivemula","Dhanwada","Kondapur","Devarakonda","Kammar Palle","Indukurpet ","Inkollu ","Manchal ","Mandasa ","Gudem Kothaveedhi","Jami","Gudur","Jangareddigudem",16,"Nellore District","Indukurpet ",17]
[17,"Gudihathnur","Garladinne","Kalikiri  ","Jeelugumilli","Ipuru",null,"Kalasapadu ","Kamalapur","Kalluru ","Jaggayyapeta","Gonegandla","Dharur","Kowdipalle","Garide Palle","Kotgiri","Jaladanki ","Janakavaram Panguluru ","Marpalle","Meilaputti","Hukumpeta ","Jiyyamma Valasa","Hanamkonda","Jeelugumilli",17,"Prakasam District","Jaladanki ",18]
[18,"Jainoor","Gooty","Kambhamvaripalle ","Kalla ","Kakumanu",null,"Kamalapuram  ","Kamanpur","Karepalli","Kaikalur","Gospadu","Doulatabad","Kulcharam","Gundala","Lingampet","Kaligiri ","Kandukur ","Medchal ","Nandigam","K Kotapadu","Komarada","Hasanparthy","Kalla ",18,"Ranga reddy District ","Kaligiri ",19]
[19,"Kagaz Nagar","Gorantla","Karvetinagar ","Kamavarapukota","Karempudi",null,"Khajipet ","Karimnagar","Khammam Rural","Kalidindi ","Gudur ","Farooqnagar","Manoor","Gundla Palle","Machareddy","Kaluvoya ","Kanigiri ","Moinabad","Narasannapeta","Kasimkota","Kothavalasa","Jangaon","Kamavarapukota",19,"Sreekakulam District ","Kaluvoya ",20]
[20,"Kotapalle","Gudibanda","Kuppam  ","Kovvur","Karlapalem",null,"Kodur  ","Kataram","Khammam Urban","Kanchika Cherla","Halaharvi","Gadwal","Medak ","Gurrampode","Madnur","Kavali ","Karamchedu ","Mominpet","Palakonda","Kotauratla","Kurupam","Kesamudram","Kovvur",20,"Visakhapatnam District","Kavali ",21]
[21,"Laxmanchanda","Gummagatta","Kurabalakota  ","Koyyalagudem","Kollipara ",null,"Kondapuram  ","Kathlapur","Konijerla ","Kankipadu","Holagunda","Ghanpur","Mirdoddi","Huzurnagar","Makloor","Kodavalur ","Komarolu ","Nawabpet","Palasa","Koyyuru","Lakkavarapukota","Khanapur","Koyyalagudem",21,"Vizianagaram District","Kodavalur ",22]
[22,"Mancherial","Guntakal ","Mandanpalle  ","Lingapalem","Kollur ",null,"Lakkireddipalle • ","Kesavapatnam","Kothagudem","Koduru ","Jupadu Bungalow","Ghattu","Mulug","Jaji Reddi Gudem","Mortad","Kondapuram","Konakanamitla","Pargi","Pathapatnam","Madugula","Makkuva","Kodakandla","Lingapalem",22,"Warangal District ","Kondapuram",23]
[23,"Nennal","Hindupur ","Mulakalacheruvu ","Mogalthur","Krosuru ",null,"Lingala ","Kodimial ","Kukunoor ","Kruthivennu ","Kallur","Gopalpeta","Munpalle"," Kangal","Naga Reddipet","Kota","Kondapi","Peddemul","Polaki","Makavarapalem","Mentada ","Kothagudem ","Mogalthur",23,"West godavari District ","Kota",24]
[24," Sarangapur","Kadiri ","Nagalapuram  ","Nallajerla","Machavaram ",null,"Muddanur  ","Koheda","Kunavaram","Machilipatnam","Kodumur","Hanwada","Nanganur","Kattangoor","Nandipet ","Kovur","Korisapadu ","Pudur","Ponduru","Munagapaka","Merakamudidam","Kuravi ","Nallajerla",24,null,"Kovur",25]
[25,"Tamsi","Kalyandurg","Nagari  ","Narasapuram","Macherla ",null,"Mylavaram ","Konaraopeta","Kusumanchi","Mandavalli","Koilkuntla","Itikyal ","Narayankhed","Kethepalle","Navipet ","Manubolu","Kothapatnam","Quthbullapur","Rajam","Munchingiputtu ","Nellimarla","Lingala Ghanpur","Narasapuram",25,null,"Manubolu",26]
[26,"Utnur","Kambadur","Narayanavanam  ","Nidadavole","Mangalagiri",null,"Mydukur  ","Koratla","Madhira","Mopidevi","Kolimigundla ","Jadcherla","Narsapur","Kodad ","Nizam Sagar","Marripadu","Kurichedu ","Rajendranagar ","Ranastalam","Nakkapalli","Pachipenta","Maddur","Nidadavole",26,null,"Marripadu",27]
[27,"Bazarhathnoor","Kanaganapalle","Nimmanapalle  ","Nidamarru","Medikonduru ",null,"Nandalur  ","Mahadevpur","Manuguru ","Movva","Kosigi ","Kalwakurthy","Nyalkal","M Turkapalle","Nizamabad","Muthukur","Lingasamudram ","Saroornagar"," Regidiamadalavalasa ","Narsipatnam","Parvathipuram","Mahabubabad","Nidamarru",27,null,"Muthukur",28]
[28,"Bhainsa","Kanekal","Nindra  ","Palacole","Muppalla",null,"Obulavaripalle  ","Malharrao","Mudigonda","Mudinepalli","Kothapalle","Keshampeta ","Papannapet","Marri Guda ","Pitlam","Naidupeta","Maddipadu ","Serilingampalle","Santhabommali ","Nathavaram","Pusapatirega","Mangapet","Palacole",28,null,"Naidupeta",29]
[29,"Dahegaon","Kothacheruvu","Pakala  ","Palakoderu","Nadendla ",null,"Peddamudium • ","Mallapur","Mulakalapalle","Musunuru","Kowthalam","Kodair","Patancheru","Mattampalle","Ranjal","Nellore","Markapur ","Shabad","Santhakaviti","Paderu","Ramabhadrapuram","Maripeda","Palakoderu",29,null,"Nellore",30]
[30,"Ichoda","Kudair","Palamaner  ","Pedapadu","Nagaram ",null,"Penagaluru ","Mallial","Nelakondapalle","Mylavaram","Krishnagiri","Kodangal","Pulkal ","Mellachervu","Sadasivanagar","Ojili","Marripudi ","Shamirpet","Saravakota","Padmanabham","Salur","Mogullapalle","Pedapadu",30,null,"Ojili",31]
[31,"Jaipur","Kundurpi","Palasamudram ","Pedavegi","Nakarikallu ",null,"Pendlimarri ","Manakondur","Palawancha","Nagayalanka","Kurnool","Koilkonda","Raikode","Miryalaguda","Sirkonda","Pellakur","Martur ","Shamshabad","Sarubujjili","Paravada ","Seethanagaram"," Mulug","Pedavegi",31,null,"Pellakur",32]
[32,"Kasipet","Lepakshi","Pedda Panjani  ","Pentapadu","Narasaraopeta ",null,"Porumamilla  ","Manthani","Penuballi ","Nandigama","Maddikera East","Kollapur","Ramachandrapuram","Mothey","Tadwai ","Podlakur","Mundlamuru ","Shankarpalle","Seethampeta","Payakaraopeta ","Srungavarapukota","Nallabelly","Pentapadu",32,null,"Podlakur",33]
[33,"Kouthala","Mudigubba","Peddamandyam  ","Penugonda","Nizampatnam ",null,"Proddutur  ","Medipalle","Pinapaka","Nandivada ","Mahanandi","Kondurg ","Ramayampet ","Mothkur","Varni","Rapur ","Naguluppalapadu","Tandur ","Sompeta","Pedabayalu","Therlam","Narmetta","Penugonda",33,null,{"$f":" HLOOKUP($Z$1,$B$2:$X$68,AB35,FALSE)","v":"Rapur "},34]
[34," Lohesra","Nallacheruvu","Peddathippasamudram  ","Penumantra","Nuzendla ",null,"Pulivendla ","Metpalle","Sathupalle ","Nuzvid","Mantralayam","Kosgi","Regode","Munagala","Velpur","Sangam","Ongole ","Uppal","Srikakulam","Pedagantyada","Vepada","Narsampet","Penumantra",34,null,"Sangam",35]
[35,"Mandamarri","Nallamada","Penumuru ","Peravali","Pedakakani ",null,"Pullampeta  ","Mustabad","Singareni","Pamarru","Midthur","Kothakota","Sadasivpet","Munugode","Yeda Palle","Seetharamapuram","Pamur ","Vikarabad","Tekkali","Pendurthi","Vizianagaram","Narsimhulapet","Peravali",35,null,"Seetharamapuram",36]
[36,"Neradigonda","Nambulipulikunta"," Pichatur ","Poduru","Pedakurapadu ",null,"Railway Koduru • ","Mutharam Mahadevpur","Thallada","Pamidimukkala","Nandavaram","Kothur","Sangareddy ","Nadigudem","Yellareddy","Sullurpeta","Parchur ","Yacharam","Vajrapukothuru","Rambilli",null,"Nekkonda","Poduru",36,null,"Sullurpeta",37]
[37,"Sirpur (T)","Narpala"," Pileru ","Polavaram ","Phirangipuram ",null,"Rajampet  ","Mutharam Manthani","Thirumalayapalem","Pedana","Nandi Kotkur","Lingal","Shankarampet (A)","Nakrekal",null,"Sydapuram ","Pedaaraveedu ","Yelal","Vangara","Ravikamatham",null,"Nellikudur","Polavaram ",37,null,"Sydapuram ",38]
[38,"Tandur","Obuladevaracheruvu","Pulicherla  ","T Narasapuram","Piduguralla ",null,"Raju Palem  ","Odela","Vararamachandrapuram","Pedaparupudi","Nandyal","Maddur","Shankarampet (R)","Nalgonda",null,"Tada ","Pedacherlopalle",null,"Veeraghattam","Rolugunta",null,"Palakurthi ","T Narasapuram",38,null,"Tada ",39]
[39,"Vemanpalle","Pamidi","Punganur ","Tadepalligudem","Pittalavanipalem ",null,"Ramapuram  ","Peddapalle","Velairpad ","Penamaluru","Orvakal","Madgul","Shivampet","Nampalle",null,"Thotapalligudur ","Podili ",null,null,"S Rayavaram ",null,"Parkal","Tadepalligudem",39,null,"Thotapalligudur ",40]
[40,"Bejjur","Parigi","Puthalapattu ","Tanuku","Ponnur ",null,"Rayachoti  ","Pegadapalle","Vemsoor","Penuganchiprolu","Owk","Maganoor","Siddipet ","Narayanapur",null,"Udayagiri ","Ponnaluru ",null,null,"Sabbavaram",null,"Parvathagiri","Tanuku",40,null,"Udayagiri ",41]
[41,"Bheemini","Peddapappur  ","Puttur  ","Thallapudi","Prathipadu ",null,"S Mydukur  ","Raikal","Venkatapuram","Reddigudem","Pagidyala","Mahbubnagar","Tekmal","Narketpalle",null,"Vakadu ","Pullalacheruvu ",null,null,"Visakhapatnam",null,"Raghunatha Palle  ","Thallapudi",41,null,"Vakadu ",42]
[42,"Dandepalle","Peddavadugur","Rama Kuppam  ","Undi","Rajupalem ",null,"Sambepalle ","Ramadugu","Wazeed","Thotlavalluru","Pamulapadu","Makthal","Tupran","Nered Cherla",null,"Varikuntapadu ","Racherla ",null,null,"Visakhapatnam(U)",null,"Raiparthy ","Undi",42,null,"Varikuntapadu ",43]
[43,"Inderavelly","Penu Konda","Ramachandrapuram ","Undrajavaram","Rentacrintala ",null,"Sidhout  ","Ramagundam","Wyra","Tiruvuru","Panyam","Maldakal","Wargal","Nidamanur",null,"Venkatachalam ","Santhamaguluru ",null,null,"Yelamanchili",null,"Regonda","Undrajavaram",43,null,"Venkatachalam ",44]
[44,"Jannaram","Putlur","Ramasamudram  ","Unguturu","Repalle ",null,"Simhadripuram • ","Saidapur","Yellandu","Unguturu","Pattikanda","Manopadu","Yeldurthy","Nuthankal",null,"Venkatagiri ","Santhanuthlapadu ",null,null,null,null,"Sangem","Unguturu",44,null,"Venkatagiri ",45]
[45,"Kerameri","Puttaparthi","Renigunta  ","Veeravasaram","Rompicherla",null,"T Sundupalle  ","Sarangapur","Yerrupalem","Vatsavai ","Peapally","Midjil","Zahirabad","Pedda Adiserlapalle",null,"Vidavalur ","Singarayakonda ",null,null,null,null,"Shayampet","Veeravasaram",45,null,"Vidavalur ",46]
[46,"Kubeer","Ramagiri ","Rompicherla  ","Yelamanchili","Sattenapalle",null,"Thandur ","Sirsilla",null,"Veerullapadu","Pedda Kadubur","Nagar Kurnool",null,"Peddavura",null,"Vinjamur","Tangutur ",null,null,null,null,"Tadvai ","Yelamanchili",46,null,"Vinjamur",47]
[47,"Luxettipet","Raptadu","Santhi Puram  ",null,"Savalyapuram",null,"Vallur ","Srirampur",null,"Vijayawada Rural","Rudravaram","Narayanpet",null,"Penpahad",null,null,"Tarlapadu ",null,null,null,null,"Thorrur",null,47,null,0,48]
[48,"Mudhole","Roddam","Satyavedu  ",null,"Tadikonda",null,"Veeraballe ","Sultanabad",null,"Vijayawada Urban","Sanjamala ","Narva",null,"Pochampalle",null,null,"Thallur ",null,null,null,null,"Venkatapur",null,48,null,0,49]
[49,"Nirmal","Rolla","Sodam  ",null,"Tenali ",null,"Veerapunayunipalle •","Thimmapur",null,"Vissannapet","Sirvel","Nawabpet",null,"Rajapet",null,null,"Tripuranthakam ",null,null,null,null,"Wardhannapet",null,49,null,0,50]
[50,"Sirpur (U)","Settur","Somala  ",null,"Thadepalle",null,"Vempalle  ","Veenavanka ",null,"Vuyyuru","Srisailam","Pangal",null,"Ramannapeta ",null,null,"Ulavapadu ",null,null,null,null,"Zaffergadh",null,50,null,0,51]
[51,"Tanur","Singanamala","Srikalahasti ",null,"Thullur",null,"Vemula ","Velgatoor",null,null,"Tuggali","Pebbair",null,"Saligouraram",null,null,"Veligandla ",null,null,null,null,null,null,51,null,0,52]
[52,"Wankdi","Somandepalle","Srirangarajapuram  ",null,"Tsundur",null,"Vontimitta ","Vemulawada",null,null,"Uyyalawada","Peddakothapalle",null,"Suryapet",null,null,"Vetapalem ",null,null,null,null,null,null,52,null,0,53]
[53,null,"Tadimarri ","Thamballapalle ",null,"Vatticherukuru",null,"Yerraguntla","Yella Reddi Peta",null,null,"Veldurthi","Peddamandadi",null,"Thipparthi",null,null,"Voletivaripalem ",null,null,null,null,null,null,53,null,0,54]
[54,null,"Tadpatri ","Thavanampalle ",null,"Veldurthi ",null,null,null,null,null,"Velgodu","Tadoor",null,"Thirumalagiri",null,null,"Yeddanapudi ",null,null,null,null,null,null,54,null,0,55]
[55,null,"Talupula","Thottambedu ",null,"Vemuru",null,null,null,null,null,"Yemmiganur","Talakondapalle",null,"Thripuraram",null,null,"Yerragondapalem ",null,null,null,null,null,null,55,null,0,56]
[56,null,"Tanakal","Tirupati Rural ",null,"Vinukonda",null,null,null,null,null,null,"Telkapalle",null,"Thunga Thurthi",null,null,"Zarugumilli",null,null,null,null,null,null,56,null,0,57]
[57,null,"Uravakonda","Tirupati Urban ",null,null,null,null,null,null,null,null,"Thimmajipeta",null,"Valigonda",null,null,null,null,null,null,null,null,null,57,null,0,58]
[58,null,"Vajrakarur","Vadamalapeta  ",null,null,null,null,null,null,null,null,"Uppununthala",null,"Vemulapalle",null,null,null,null,null,null,null,null,null,58,null,0,59]
[59,null,"Vidapanakal","Varadaiahpalem  ",null,null,null,null,null,null,null,null,"Utkoor",null,"Yadagirigutta",null,null,null,null,null,null,null,null,null,59,null,0,60]
[60,null,"Yadiki","Vayalpad  ",null,null,null,null,null,null,null,null,"Vangoor",null,null,null,null,null,null,null,null,null,null,null,60,null,0,61]
[61,null,"Yellanur","Veduru Kuppam  ",null,null,null,null,null,null,null,null,"Veepangandla",null,null,null,null,null,null,null,null,null,null,null,61,null,0,62]
[62,null,null,"Venkatagiri Kota  ",null,null,null,null,null,null,null,null,"Veldanda",null,null,null,null,null,null,null,null,null,null,null,62,null,0,63]
[63,null,null,"Vijaya Puram  ",null,null,null,null,null,null,null,null,"Waddepalle",null,null,null,null,null,null,null,null,null,null,null,63,null,0,64]
[64,null,null,"Yadamari ",null,null,null,null,null,null,null,null,"Wanaparthy",null,null,null,null,null,null,null,null,null,null,null,64,null,0,65]
[65,null,null,"Yerpedu ",null,null,null,null,null,null,null,null,null,null,null,null,null,null,null,null,null,null,null,null,65,null,{"$f":" HLOOKUP($Z$1,$B$2:$X$68,AB67,FALSE)","v":0},66]
[66,null,null,"Yerravaripalem",null,null,null,null,null,null,null,null,null,null,null,null,null,null,null,null,null,null,null,null,66,null,{"$f":" HLOOKUP($Z$1,$B$2:$X$68,AB68,FALSE)","v":0},67]

{"sheet":"Code","index":1,"n_rows":152,"n_cols":86,"rows_kept":152,"cut":false,"hidden":true,"merged":[[74,82,74,83],[94,84,94,85],[109,82,109,83],[41,30,41,31],[1,64,1,65],[16,64,16,65],[16,58,16,59],[16,60,16,61],[1,58,1,59],[1,62,1,63],[29,30,29,31],[29,37,29,38],[21,32,21,33],[53,62,53,63],[59,66,59,71],[50,66,50,67],[4,0,4,1],[4,2,4,3],[3,26,3,27],[1,38,1,39],[3,30,3,31],[12,28,12,29],[1,40,1,41],[16,32,16,33],[3,36,3,37],[3,32,3,33],[3,34,3,35],[53,64,53,65],[50,64,50,65],[59,80,59,81],[94,66,94,71],[94,80,94,81],[53,66,53,67],[74,75,74,78],[98,3,98,4],[138,21,138,22],[120,21,120,22],[114,80,114,81],[129,75,129,78],[114,66,114,68],[109,75,109,78],[100,21,100,22]]}
[null,16,null,null,null,null,null,null,null,null,null,null,null,null,null,null,null,null,null,null,null,null,null,null,null,null,null,null,null,null,null,null,null,null,null,null,null,null,10,2,17,9]
[null,{"$f":"VLOOKUP(B1,Mandals!Y3:Z25,2)","v":"Nellore District"},null,null,null,null,null,null,null,null,null,null,null,null,null,null,null,null,null,null,null,null,null,null,null,null,null,null,null,null,null,null,null,null,null,null,null,null,"Halyf Pay Leave",null,"Loss of Pay",null,null,null,null,null,null,null,null,null,null,null,null,null,null,null,null,null,"Start date",null,null,null,"Start date",null,"End date"]
[null,null,null,null,null,null,null,null,null,null,null,null,null,null,null,null,null,null,null,null,30,31,{"$f":"VLOOKUP(V3,U5:V84,2)","v":15700},null,null,null,18,null,2,{"$f":"VLOOKUP(AC3,AC5:AD7,2)","v":15},2,null,4,{"$f":"VLOOKUP(AG3,AG5:AH12,2)","v":60},2,{"$f":"VLOOKUP(AI3,AI5:AJ10,2)","v":20},2,{"$f":"VLOOKUP(AK3,AK5:AL7,2)","v":20},2,{"$f":"LOOKUP(AM3,AM4:AN5)","v":"Not Applicale"},2,{"$f":"LOOKUP(AO3,AO4:AP5)","v":"Not Applicale"},null,null,null,null,null,null,null,null,null,null,null,null,null,null,null,null,6,8,null,null,null,null,7,9]
[null,null,null,null,null,null,null,null,null,null,null,null,null,null,null,19,18,{"$f":"LOOKUP(Q4,Q5:Q70,R5:R70)","v":"Kamalapuram • "},null,null,1,1,9,{"$f":"VLOOKUP(W4,W5:X16,2)","v":"2010-11-01"},1,{"$f":"VLOOKUP(Y4,Y5:Z8,2)","v":0.1},"RPS 2005",null,"EARNED LEAVE",null,"PHC",null,"gis",null,"EWF",null,"SWF",null,1,"Applicable",1,"Applicable",null,null,null,null,null,null,null,null,null,null,null,null,null,null,null,null,"Half pay","Loss of pay",null,null,"Half pay","Loss of pay","Half pay","Loss of pay"]
["List of Mandals in Nellore District",null,"List of Mandals in Chittoor District",null,"List of Mandals in Prakasam District","List of Mandals in Guntur District","List of Mandals in Cuddapah District","List of Mandals in Anantapur District","List of Mandals in Kurnool District","List of Mandals in Visakhapatnam District","List of Mandals in Vizianagaram District","List of Mandals in Adilabad District",null,null,1,"Adilabad District",1,{"$f":"IF(B1=1,\" \",IF(B1=2,B6,IF(B1=3,D6,IF(B1=4,E6,IF(B1=5,F6,G6)))))","v":"Atlur • "},null,null,1,6700,1,"2010-03-01",1,0.1,1,5470,1,{"$f":"IF(AD8=\"Applicable\",AF8,\" \")","v":0},1,"YES",1,0,1,0,1,0,2,"Not Applicale",2,"Not Applicale",null,null,null,null,null,null,null,null,null,null,null,null,null,null,null,null,{"$f":"IF(AN$3=\"Applicable\",AM18,\" \")","v":" "},{"$f":"IF(AP$3=\"Applicable\",AM18,\" \")","v":" "},1,null,1,1,{"$f":"IF(AN$3=\"Applicable\",AM18,\" \")","v":" "},{"$f":"IF(AP$3=\"Applicable\",AM18,\" \")","v":" "}]
[1,"Allur",1,"B Kothakota","Addanki","Achampeta","Atlur • ","Agali • Amadagur • Amarapuram • Anantapur • Atmakur • Bathalapalle • Beluguppa • Bommanahal • Brahmasamudram • Bukkapatnam • Bukkarayasamudram • Chenne Kothapalle • Chilamathur • D.Hirchal • Dharmavaram • Gandlapenta • Garladinne • Gooty • Gorantla • Gudibanda • Gummagatta • Guntakal • Hindupur • Kadiri • Kalyandurg • Kambadur • Kanaganapalle • Kanekal • Kothacheruvu • Kudair • Kundurpi • Lepakshi • Madakasira • Mudigubba • Nallacheruvu • Nallamada • Nambulipulikunta • Narpala • Obuladevaracheruvu • Pamidi • Parigi • Peddapappur • Peddavadugur • Penu Konda • Putlur • Puttaparthi • Ramagiri • Raptadu • Rayadurg • Roddam • Rolla • Settur • Singanamala • Somandepalle • Tadimarri • Tadpatri • Talupula • Tanakal • Uravakonda • Vajrakarur • Vidapanakal • Yadiki • Yellanur","Adoni • Allagadda • Alur • Aspari • Atmakur • Banaganapalle • Bandi Atmakur • Bethamcherla • Bugganipalle • C.Belagal • Chagalamarri • Chippagiri • Devanakonda • Dhone • Dornipadu • Gadivemula • Gonegandla • Gospadu • Gudur • Halaharvi • Holagunda • Jupadu Bungalow • Kallur • Kodumur • Koilkuntla • Kolimigundla • Kosigi • Kothapalle • Kowthalam • Krishnagiri • Kurnool • Maddikera East • Mahanandi • Mantralayam • Midthur • Nandavaram • Nandi Kotkur • Nandyal • Orvakal • Owk • Pagidyala • Pamulapadu • Panyam • Pattikanda • Peapally • Pedda Kadubur • Rudravaram • Sanjamala • Sirvel • Srisailam • Tuggali • Uyyalawada • Veldurthi (Kurnool District) • Velgodu • Yemmiganur","Anakapalli","Badangi • Balajipeta • Bhoghapuram • Bobbili • Bondapalle • Chintalavalasa • Cheepurupalle • Dattirajeru • Denkada • Gajapathinagaram • Gantyada • Garividi • Garugubilli • Gummalakshmipuram • Gurla • Jami • Jiyyamma Valasa • Komarada • Kothavalasa • Kurupam • Lakkavarapukota • Makkuva • Mentada • Merakamudidam • Nellimarla • Pachipenta • Parvathipuram • Pusapatirega • Ramabhadrapuram • Salur • Seethanagaram (Vizianagaram District) • Srungavarapukota • Therlam • Vepada • Vizianagaram","Adilabad • Bela • Boath • Dilawarpur • Jainad • Kaddampeddur • Khanpur • Kuntala • Mamda • Narnoor • Rebbana • Talamadugu • Tiryani • Asifabad • Bellampalle • Chennur • Gudihathnur • Jainoor • Kagaz Nagar • Kotapalle • Laxmanchanda • Mancherial • Nennal • Sarangapur • Tamsi • Utnur • Bazarhathnoor • Bhainsa • Dahegaon • Ichoda • Jaipur • Kasipet • Kouthala • Lohesra • Mandamarri • Neradigonda • Sirpur (T) • Tandur • Vemanpalle • Bejjur • Bheemini • Dandepalle • Inderavelly • Jannaram • Kerameri • Kubeer • Luxettipet • Mudhole • Nirmal • Sirpur (U) • Tanur • Wankdi",null,null,null,null,2,{"$f":"IF(B1=1,\" \",IF(B1=2,B7,IF(B1=3,D7,IF(B1=4,E7,IF(B1=5,F7,G7)))))","v":"B Kodur "},null,null,2,6900,2,"2010-04-01",2,0.125,2,5605,2,{"$f":"IF(AD8=\"Applicable\",AF9,\" \")","v":15},2,"NO",2,15,2,20,2,20,2,{"$f":"IF(AN$3=\"Applicable\",AM18,\" \")","v":" "},1,{"$f":"IF(AP$3=\"Applicable\",AM18,\" \")","v":" "},null,null,null,1,{"$f":"LOOKUP(AT6,AT7:AT15,AU7:AU15)","v":0},null,null,null,null,null,null,null,null,null,null,null,{"$f":"IF(AN$3=\"Applicable\",AM19,\" \")","v":" "},{"$f":"IF(AP$3=\"Applicable\",AM19,\" \")","v":" "},1,2010,{"$f":"IF(AN$3=\"Applicable\",BJ6,\" \")","v":" "},{"$f":"IF(AP$3=\"Applicable\",BJ6,\" \")","v":" "},{"$f":"IF(AN$3=\"Applicable\",AM19,\" \")","v":" "},{"$f":"IF(AP$3=\"Applicable\",AM19,\" \")","v":" "}]
[2,"Ananthasagaram",2,"Baireddi Palle","Ardhaveedu"," Amaravathi ","B Kodur ",null,null,"• Anandapuram •",null,null,null,null,2,"SPSR Nellore District",3,{"$f":"IF(B1=1,\" \",IF(B1=2,B8,IF(B1=3,D8,IF(B1=4,E8,IF(B1=5,F8,G8)))))","v":"• Badvel "},null,null,3,7100,3,"2010-05-01",3,0.2,3,5750,3,{"$f":"IF(AD8=\"Applicable\",AF10,\" \")","v":30},null,null,3,30,3,50,3,50,null,{"$f":"IF(AN$3=\"Applicable\",AM19,\" \")","v":" "},null,{"$f":"IF(AP$3=\"Applicable\",AM19,\" \")","v":" "},null,null,null,1,0,null,null,null,null,null,null,null,null,null,null,null," "," ",2,2011,{"$f":"IF(AN$3=\"Applicable\",BJ7,\" \")","v":" "},{"$f":"IF(AP$3=\"Applicable\",BJ7,\" \")","v":" "}," "," "]
[3,"Anumasamudrampeta",3,"Bangarupalem","Ballikuruva "," Amruthalur ","• Badvel ",null,null," Ananthagiri • Araku Valley • Atchutapuram • Bheemunipatnam • Butchayyapeta • Cheedikada • Chintapalle • Chodavaram • Devarapalle • Dumbriguda • Gajuwaka • Gangaraju Madugula • Golugonda • Gudem Kothaveedhi • Hukumpeta • K Kotapadu • Kasimkota • Kotauratla • Koyyuru • Madugula • Makavarapalem • Munagapaka • Munchingiputtu • Nakkapalli • Narsipatnam • Nathavaram • Paderu • Padmanabham • Paravada • Payakaraopeta • Pedabayalu • Pedagantyada • Pendurthi • Rambilli • Ravikamatham • Rolugunta • S Rayavaram • Sabbavaram • Visakhapatnam • Visakhapatnam(U) • Yelamanchili",null,null,null,null,3,"Chittoor District",4,{"$f":"IF(B1=1,\" \",IF(B1=2,B9,IF(B1=3,D9,IF(B1=4,E9,IF(B1=5,F9,G9)))))","v":"• Brahmamgarimattam "},null,null,4,7300,4,"2010-06-01",4,0.3,4,5895,1,{"$f":"LOOKUP(AC8,AC9:AC10,AD9:AD10)","v":"Applicable"},null,0,4,60,4,150,null,null,null," ",null," ",null,null,null,2,400,null,null,null,null,null,null,null,null,null,null,null," "," ",null,"Year",{"$f":"LOOKUP(BK5,BI6:BI7,BK6:BK7)","v":" "},{"$f":"LOOKUP(BL5,BI6:BI7,BL6:BL7)","v":" "}," "," "]
[4,"Atmakur",4," Buchinaidu Khandriga","Bestavaripeta "," Bapatla ","• Brahmamgarimattam ",null,null,null,null,null,null,null,2,"East Godavari District",5,{"$f":"IF(B1=1,\" \",IF(B1=2,B10,IF(B1=3,D10,IF(B1=4,E10,IF(B1=5,F10,G10)))))","v":"• Chakrayapet"},null,null,5,7520,5,"2010-07-01",null,null,5,6040,1,"Applicable",null,15,5,75,5,200,null,null,null," ",null," ",null,null,null,3,800,null,null,null,null,null,null,null,null,null,null,null," "," ",null,null,null,null," "," "]
[5,"Balayapalli",5,"Chandragiri","Chadrasekara Puram  "," Bellamkonda","• Chakrayapet",null,null,null,null,null,null,null,6,"Guntur District",6,{"$f":"IF(B1=1,\" \",IF(B1=2,B11,IF(B1=3,D11,IF(B1=4,E11,IF(B1=5,F11,G11)))))","v":" • Chapad • "},null,null,6,7740,6,"2010-08-01",null,null,6,6195,2,"Not Applicale",null,30,6,120,6,300,null,null,null," ",null," ",null,null,null,4,1200,null,null,null,null,null,null,null,null,null,null,null," "," ",null,null,null,null," "," "]
[6,"Bogole",6,"Chinnagottigallu","Chimakurthi "," Bhattiprolu "," • Chapad • ",null,null,null,null,null,null,null,7,"Hyderabad District",7,{"$f":"IF(B1=1,\" \",IF(B1=2,B12,IF(B1=3,D12,IF(B1=4,E12,IF(B1=5,F12,G12)))))","v":"Chennur"},null,null,7,7960,7,"2010-09-01",1,{"$f":"VLOOKUP(Y11,Y12:Z16,2)","v":0},7,6350,null,null,null,null,7,150,null,null,null,null,null," ",null," ",null,null,null,5,1600,null,null,null,null,null,null,null,null,null,null,null," "," ",null,null,null,null," "," "]
[7,"Buchireddipalem",7,"Chittoor","Chinaganjam "," Bollapalle ","Chennur",null,null,null,null,null,null,null,8,"Kareemnagar District",8,{"$f":"IF(B1=1,\" \",IF(B1=2,B13,IF(B1=3,D13,IF(B1=4,E13,IF(B1=5,F13,G13)))))","v":"• ChinnaChowk "},null,null,8,8200,8,"2010-10-01",1,0,8,6505,3,{"$f":"LOOKUP(AC12,AC14:AD16)","v":"ZPPF"},null,null,8,200,null,null,null,null,null," ",null," ",null,null,null,6,1000,null,null,null,null,null,null,null,null,null,null,null," "," ",null,null,null,null," "," "]
[8,"Chejerla ",8," Chowdepalle","Chirala ","Chebrole ","• ChinnaChowk ",null,null,null,null,null,null,null,9,"Khammam District",9,{"$f":"IF(B1=1,\" \",IF(B1=2,B14,IF(B1=3,D14,IF(B1=4,E14,IF(B1=5,F14,G14)))))","v":"• Chinnamandem "},null,null,9,8440,9,"2010-11-01",2,0.1,9,6675,"ZPPF/GPF/CPS",null,null,null,null,null,null,null,null,null,null," ",null," ",null,null,null,7,2000,null,null,null,null,null,null,null,null,null,null,null," "," ",null,null,null,null," "," "]
[9,"Chillakur ",9,"Gangadhara Nellore","Cumbum ","Cherukupalle ","• Chinnamandem ",null,null,null,null,null,null,null,10,"Krishna District",10,{"$f":"IF(B1=1,\" \",IF(B1=2,B15,IF(B1=3,D15,IF(B1=4,E15,IF(B1=5,F15,G15)))))","v":"• Chintha Kommadinne "},null,null,10,8680,10,"2010-12-01",3,0.125,10,6845,1,"CPS",null,null,null,null,null,null,null,null,null," ",null," ",null,null,null,8,3000,null,null,null,null,null,null,null,null,null,null,null," "," ",null,null,null,null," "," "]
[10,"Chittamur ",10,"Gangavaram  ","Darsi "," Chilakaluripet ","• Chintha Kommadinne ",null,null,null,null,null,null,null,11,"Kurnool District",11,{"$f":"IF(B1=1,\" \",IF(B1=2,B16,IF(B1=3,D16,IF(B1=4,E16,IF(B1=5,F16,G16)))))","v":"• Chitvel "},null,null,11,8940,11,"2011-01-01",4,0.2,11,7015,2,"GPF",null,null,null,null,null,"earned L",7,{"$f":"LOOKUP(AK15,AE18:AE29,AL18:AL29)","v":"2010-09-01"},{"$f":"MATCH(AK15,AF18:AF29)","v":{"$error":"#N/A"}},{"$f":"AK15+2","v":9},null," ",null,null,null,9,4000,null,null,null,null,null,null,null,null,null,null,null," "," ",null,null,null,null," "," "]
[11,"Dagadarthi ",11,"Gudi Palle  ","Donakonda","Dachepalle ","• Chitvel ",null,null,null,null,null,null,null,12,"Mahboobnagar District",12,{"$f":"IF(B1=1,\" \",IF(B1=2,B17,IF(B1=3,D17,IF(B1=4,E17,IF(B1=5,F17,G17)))))","v":"• Cuddapah "},null,null,12,9200,12,"2011-02-01",5,0.3,12,7200,3,"ZPPF",null,null,null,null,null,null,null,null,null," ",null," ",null,null,null,null,null,null,null,"Revised PF",null,null,null,null,null,null,null,null," "," ",null,null,null,null," "," "]
[12,"Dakkili",12,"Gudipala ","Dornala ","Duggirala ","• Cuddapah ",null,null,null,null,null,null,null,13,"Medak District",13,{"$f":"IF(B1=1,\" \",IF(B1=2,B18,IF(B1=3,D18,IF(B1=4,E18,IF(B1=5,F18,G18)))))","v":"• Duvvur • "},null,null,13,9460,null,null,null,null,13,7385,1,null,4,{"$f":"VLOOKUP(AE17,AE18:AF29,2)","v":" "},"8/16/24 scale",null,"date",1,{"$f":"LOOKUP(AJ17,AE18:AE19,AK18:AK19)","v":" "},null,null," ",6," ",{"$f":"Data!Y30","v":0},"apgli",{"$f":"Data!T30","v":0},null,null,null,null,4,null,null,null,null,null,null,null,null,"Start date",null,"End date",null,null,null,"End date"]
[13,"Doravarisatram",13,"Gurramkonda  ","Giddaluru "," Durgi ","• Duvvur • ",null,null,null,null,null,null,null,14,"Nalgonda District",14,{"$f":"IF(B1=1,\" \",IF(B1=2,B19,IF(B1=3,D19,IF(B1=4,E19,IF(B1=5,F19,G19)))))","v":"Galiveedu •"},null,null,14,9740,null,null,null,null,14,7570,1,{"$f":"IF(AH18=\"Applicable\",AC18,\" \")","v":" "},1,{"$f":"IF(AH18=\"Applicable\",X5,\" \")","v":" "},2,{"$f":"LOOKUP(AG18,AG19:AH20)","v":"Not Applicale"},31,{"$f":"IF(AH18=\"Applicable\",AM18,\" \")","v":" "},{"$f":"IF(AH18=\"Applicable\",AN18,\" \")","v":" "},{"$f":"IF(OR(AD3=30,AD3=15),AQ18,\" \")","v":"2010-03-01"},"Jan",2010,1,{"$f":"IF(AQ17>0,AQ18,\" \")","v":" "},"2010-03-01",{"$f":"'SALARY TABLE'!U5","v":0},null,{"$f":"IF(AO18>=AO17,AQ17,AS17)","v":0},{"$f":"AS17","v":0},{"$f":"IF(AT18=0,AU18,AT18)","v":0},null,"2010-03-01",null,{"$f":"$AA$3","v":18},{"$f":"LOOKUP(AZ18,AZ19:AZ83,BA19:BA83)","v":8385},{"$f":"LOOKUP(BA18,BA20:BA84,BB20:BB84)","v":15280},null,null,null,null,"Half pay","Loss of pay","Half pay","Loss of pay"]
[14,"Duttalur ",14,"Irala ","Gudluru ","Edlapadu","Galiveedu •",null,null,null,null,null,null,null,15,"Nizamabad District",15,{"$f":"IF(B1=1,\" \",IF(B1=2,B20,IF(B1=3,D20,IF(B1=4,E20,IF(B1=5,F20,G20)))))","v":" Gopavaram •"},null,null,15,10020,null,null,null,null,15,7770,2,{"$f":"IF(AH18=\"Applicable\",AC19,\" \")","v":" "},2,{"$f":"IF(AH18=\"Applicable\",X6,\" \")","v":" "},1,"Applicable",28,{"$f":"IF(AH18=\"Applicable\",AM19,\" \")","v":" "},{"$f":"IF(AH18=\"Applicable\",AN19,\" \")","v":" "},{"$f":"IF(OR(AD3=30,AD3=15),AQ19,\" \")","v":"2010-04-01"},"Feb",2011,2,{"$f":"IF(AQ17>0,AQ19,\" \")","v":" "},"2010-04-01",{"$f":"'SALARY TABLE'!U6","v":0},null,{"$f":"IF(AO19>=AO17,AQ17,AS17)","v":0},{"$f":"AU18","v":0},{"$f":"IF(AT19=0,AU19,AT19)","v":0},null,"2010-04-01",null,null,0,"SGT","SA","HM",1,"Secondary Grade Teacher",{"$f":"IF($AN$3=\"Applicable\",AC18,\" \")","v":" "},{"$f":"IF($AP$3=\"Applicable\",AC18,\" \")","v":" "},{"$f":"IF($AN$3=\"Applicable\",AC18,\" \")","v":" "},{"$f":"IF($AP$3=\"Applicable\",AC18,\" \")","v":" "},null,null,"Half pay","Loss of pay"]
[15,"Gudur ",15,"K V P Puram ","Hanumanthunipadu "," Guntur "," Gopavaram •",null,null,null,null,null,null,null,16,"Prakasham District",16,{"$f":"IF(B1=1,\" \",IF(B1=2,B21,IF(B1=3,D21,IF(B1=4,E21,IF(B1=5,F21,G21)))))","v":" Jammalamadugu • "},null,null,16,10300,null,null,null,null,16,7970,3,{"$f":"IF(AH18=\"Applicable\",AC20,\" \")","v":" "},3,{"$f":"IF(AH18=\"Applicable\",X7,\" \")","v":" "},2,"Not Applicale",31,{"$f":"IF(AH18=\"Applicable\",AM20,\" \")","v":" "},null,{"$f":"IF(OR(AD3=30,AD3=15),AQ20,\" \")","v":"2010-05-01"},"Mar",null,3,{"$f":"IF(AQ17>0,AQ20,\" \")","v":" "},"2010-05-01",{"$f":"'SALARY TABLE'!U7","v":0},null,{"$f":"IF(AO20>=AO17,AQ17,AS17)","v":0},0,0,null,"2010-05-01",5470,1,5470,10900,14860,18030,2,"School Assistant"," ",{"$f":"IF($AP$3=\"Applicable\",AC19,\" \")","v":" "},{"$f":"IF($AN$3=\"Applicable\",AC19,\" \")","v":" "},{"$f":"IF($AP$3=\"Applicable\",AC19,\" \")","v":" "},1,null,1,1]
[16,"Indukurpet ",16,"Kalakada  ","Inkollu ","Gurazala "," Jammalamadugu • ",null,null,null,null,null,null,null,17,"Ranga Reddy District",17,{"$f":"IF(B1=1,\" \",IF(B1=2,B22,IF(B1=3,D22,IF(B1=4,E22,IF(B1=5,F22,G22)))))","v":"Kalasapadu • "},null,null,17,10600,null,null,null,null,17,8170,4,{"$f":"IF(AH18=\"Applicable\",AC21,\" \")","v":" "},4,{"$f":"IF(AH18=\"Applicable\",X8,\" \")","v":" "},null,null,30,{"$f":"IF(AH18=\"Applicable\",AM21,\" \")","v":" "},null,{"$f":"IF(OR(AD3=30,AD3=15),AQ21,\" \")","v":"2010-06-01"},"Apr",null,4,{"$f":"IF(AQ17>0,AQ21,\" \")","v":" "},"2010-06-01",{"$f":"'SALARY TABLE'!U8","v":0},null,{"$f":"IF(AO21>=AO17,AQ17,AS17)","v":0},0,0,null,"2010-06-01",5605,2,5605,10900,14860,18030,3,"HM"," "," "," "," ",1,2010,{"$f":"IF(AN$3=\"Applicable\",BL21,\" \")","v":" "},{"$f":"IF(AP$3=\"Applicable\",BL21,\" \")","v":" "}]
[17,"Jaladanki ",17,"Kalikiri  ","Janakavaram Panguluru "," Ipuru","Kalasapadu • ",null,null,null,null,null,null,null,18,"Sreekakulam District",18,{"$f":"IF(B1=1,\" \",IF(B1=2,B23,IF(B1=3,D23,IF(B1=4,E23,IF(B1=5,F23,G23)))))","v":"Kamalapuram • "},null,null,18,10900,null,null,null,null,18,8385,5,{"$f":"IF(AH18=\"Applicable\",AC22,\" \")","v":" "},5,{"$f":"IF(AH18=\"Applicable\",X9,\" \")","v":" "},"Stepup",null,31,{"$f":"IF(AH18=\"Applicable\",AM22,\" \")","v":" "},null,{"$f":"IF(OR(AD3=30,AD3=15),AQ22,\" \")","v":"2010-07-01"},"May",null,5,{"$f":"IF(AQ17>0,AQ22,\" \")","v":" "},"2010-07-01",{"$f":"'SALARY TABLE'!U9","v":0},null,{"$f":"IF(AO22>=AO17,AQ17,AS17)","v":0},0,0,null,"2010-07-01",5750,3,5750,10900,14860,18030,null,null," "," "," "," ",2,2011,{"$f":"IF(AN$3=\"Applicable\",BL22,\" \")","v":" "},{"$f":"IF(AP$3=\"Applicable\",BL22,\" \")","v":" "}]
[18,"Kaligiri ",18,"Kambhamvaripalle ","Kandukur "," Kakumanu","Kamalapuram • ",null,null,null,null,null,null,null,19,"Vishakapatnam District",19,{"$f":"IF(B1=1,\" \",IF(B1=2,B24,IF(B1=3,D24,IF(B1=4,E24,IF(B1=5,F24,G24)))))","v":"Khajipet •"},null,null,19,11200,null,null,null,null,19,8600,6,{"$f":"IF(AH18=\"Applicable\",AC23,\" \")","v":" "},6,{"$f":"IF(AH18=\"Applicable\",X10,\" \")","v":" "},2,{"$f":"LOOKUP(AG23,AG24:AH25)","v":"Not Applicale"},30,{"$f":"IF(AH18=\"Applicable\",AM23,\" \")","v":" "},null,{"$f":"IF(OR(AD3=30,AD3=15),AQ23,\" \")","v":"2010-08-01"},"Jun",null,6,{"$f":"IF(AQ17>0,AQ23,\" \")","v":" "},"2010-08-01",{"$f":"'SALARY TABLE'!U10","v":0},null,{"$f":"IF(AO23>=AO17,AQ17,AS17)","v":0},0,0,null,"2010-08-01",5895,4,5895,10900,14860,18030,null,null," "," "," "," ",null,"Year",{"$f":"LOOKUP(BM20,BK21:BK22,BM21:BM22)","v":" "},{"$f":"LOOKUP(BN20,BK21:BK22,BN21:BN22)","v":" "}]
[19,"Kaluvoya ",19,"Karvetinagar ","Kanigiri "," Karempudi","Khajipet •",null,null,null,null,null,null,null,20,"Vizianagaram District",20,{"$f":"IF(B1=1,\" \",IF(B1=2,B25,IF(B1=3,D25,IF(B1=4,E25,IF(B1=5,F25,G25)))))","v":" Kodur • "},null,null,20,11530,null,null,null,null,20,8815,7,{"$f":"IF(AH18=\"Applicable\",AC24,\" \")","v":" "},7,{"$f":"IF(AH18=\"Applicable\",X11,\" \")","v":" "},1,"Applicable",31,{"$f":"IF(AH18=\"Applicable\",AM24,\" \")","v":" "},null,{"$f":"IF(OR(AD3=30,AD3=15),AQ24,\" \")","v":"2010-09-01"},"Jul",null,7,{"$f":"IF(AQ17>0,AQ24,\" \")","v":" "},"2010-09-01",{"$f":"'SALARY TABLE'!U11","v":0},null,{"$f":"IF(AO24>=AO17,AQ17,AS17)","v":0},0,0,null,"2010-09-01",6040,5,6040,11200,14860,18030,null,null," "," "," "," "]
[20,"Kavali ",20,"Kuppam  ","Karamchedu "," Karlapalem"," Kodur • ",null,null,null,null,null,null,null,null,"Warangal District",21,{"$f":"IF(B1=1,\" \",IF(B1=2,B26,IF(B1=3,D26,IF(B1=4,E26,IF(B1=5,F26,G26)))))","v":"Kondapuram • "},null,null,21,11860,null,null,null,null,21,9050,8,{"$f":"IF(AH18=\"Applicable\",AC25,\" \")","v":" "},8,{"$f":"IF(AH18=\"Applicable\",X12,\" \")","v":" "},2,"Not Applicale",31,{"$f":"IF(AH18=\"Applicable\",AM25,\" \")","v":" "},null,{"$f":"IF(OR(AD3=30,AD3=15),AQ25,\" \")","v":"2010-10-01"},"Aug",null,8,{"$f":"IF(AQ17>0,AQ25,\" \")","v":" "},"2010-10-01",{"$f":"'SALARY TABLE'!U12","v":0},null,{"$f":"IF(AO25>=AO17,AQ17,AS17)","v":0},0,0,null,"2010-10-01",6195,6,6195,11530,14860,18030,null,null," "," "," "," "]
[21,"Kodavalur ",21,"Kurabalakota  "," Komarolu ","Kollipara ","Kondapuram • ",null,null,null,null,null,null,null,22,"West Godavari District",22,{"$f":"IF(B1=1,\" \",IF(B1=2,B27,IF(B1=3,D27,IF(B1=4,E27,IF(B1=5,F27,G27)))))","v":"Lakkireddipalle • "},null,null,22,12190,null,null,null,null,22,9285,9,{"$f":"IF(AH18=\"Applicable\",AC26,\" \")","v":" "},9,{"$f":"IF(AH18=\"Applicable\",X13,\" \")","v":" "},8,4,30,{"$f":"IF(AH18=\"Applicable\",AM26,\" \")","v":" "},null,{"$f":"IF(OR(AD3=30,AD3=15),AQ26,\" \")","v":"2010-11-01"},"Sep",null,9,{"$f":"IF(AQ17>0,AQ26,\" \")","v":" "},"2010-11-01",{"$f":"'SALARY TABLE'!U13","v":0},null,{"$f":"IF(AO26>=AO17,AQ17,AS17)","v":0},0,0,null,"2010-11-01",6350,7,6350,11530,14860,18030,null,null," "," "," "," "]
[22,"Kondapuram",22,"Mandanpalle  "," Konakanamitla"," Kollur ","Lakkireddipalle • ",null,null,null,null,null,null,null,23,"YSR Kadapa District",23,{"$f":"IF(B1=1,\" \",IF(B1=2,B28,IF(B1=3,D28,IF(B1=4,E28,IF(B1=5,F28,G28)))))","v":"Lingala • "},null,null,23,12550,null,null,null,null,23,9520,10,{"$f":"IF(AH18=\"Applicable\",AC27,\" \")","v":" "},10,{"$f":"IF(AH18=\"Applicable\",X14,\" \")","v":" "},null,null,31,{"$f":"IF(AH18=\"Applicable\",AM27,\" \")","v":" "},null,{"$f":"IF(OR(AD3=30,AD3=15),AQ27,\" \")","v":"2010-12-01"},"Oct",null,10,{"$f":"IF(AQ17>0,AQ27,\" \")","v":" "},"2010-12-01",{"$f":"'SALARY TABLE'!U14","v":0},null,{"$f":"IF(AO27>=AO17,AQ17,AS17)","v":0},0,0,null,"2010-12-01",6505,8,6505,11860,14860,18030,null,null," "," "," "," "]
[23,"Kota",23,"Mulakalacheruvu "," Kondapi"," Krosuru ","Lingala • ",null,null,null,null,null,null,null,null,null,24,{"$f":"IF(B1=1,\" \",IF(B1=2,B29,IF(B1=3,D29,IF(B1=4,E29,IF(B1=5,F29,G29)))))","v":"Muddanur • "},null,null,24,12910,null,null,null,null,24,9775,11,{"$f":"IF(AH18=\"Applicable\",AC28,\" \")","v":" "},11,{"$f":"IF(AH18=\"Applicable\",X15,\" \")","v":" "},null,null,30,{"$f":"IF(AH18=\"Applicable\",AM28,\" \")","v":" "},null,{"$f":"IF(OR(AD3=30,AD3=15),AQ28,\" \")","v":"2011-01-01"},"Nov",null,11,{"$f":"IF(AQ17>0,AQ28,\" \")","v":" "},"2011-01-01",{"$f":"'SALARY TABLE'!U15","v":0},null,{"$f":"IF(AO28>=AO17,AQ17,AS17)","v":0},0,0,null,"2011-01-01",6675,9,6675,12190,14860,18030,null,null," "," "," "," ",1,"2010-01-01",31,{"$f":"BM28","v":"1900-01-31"},null,40179,{"$f":"BP29-BP28","v":31}]
[24,"Kovur",24,"Nagalapuram  ","Korisapadu "," Machavaram ","Muddanur • ",null,null,null,null,null,null,null,null,null,25,{"$f":"IF(B1=1,\" \",IF(B1=2,B30,IF(B1=3,D30,IF(B1=4,E30,IF(B1=5,F30,G30)))))","v":"Mylavaram • "},null,null,25,13270,null,null,null,null,25,10030,12,{"$f":"IF(AH18=\"Applicable\",AC29,\" \")","v":" "},12,{"$f":"IF(AH18=\"Applicable\",X16,\" \")","v":" "},1,{"$f":"LOOKUP(AG29,AG30:AG31,AH30:AH31)","v":" "},31,{"$f":"IF(AH18=\"Applicable\",AM29,\" \")","v":" "},null,{"$f":"IF(OR(AD3=30,AD3=15),AQ29,\" \")","v":"2011-02-01"},"Dec",null,12,{"$f":"IF(AQ17>0,AQ29,\" \")","v":" "},"2011-02-01",{"$f":"'SALARY TABLE'!U16","v":0},null,{"$f":"IF(AO29>=AO17,AQ17,AS17)","v":0},0,0,null,"2011-02-01",6845,10,6845,12550,14860,18030,null,null," "," "," "," ",2,"2010-02-01",28,{"$f":"BM29","v":"1900-01-28"},null,40210,{"$f":"BP30-BP29","v":28}]
[25,"Manubolu",25,"Nagari  ","Kothapatnam"," Macherla ","Mylavaram • ",null,null,null,null,null,null,null,1,"Not applicable",26,{"$f":"IF(B1=1,\" \",IF(B1=2,B31,IF(B1=3,D31,IF(B1=4,E31,IF(B1=5,F31,G31)))))","v":"Mydukur • "},null,null,26,13660,null,null,null,null,26,10285,13,{"$f":"IF(AH18=\"Applicable\",AC30,\" \")","v":" "},"8/16/24 scale",null,1,{"$f":"IF(AH23=\"Applicable\",AN18,\" \")","v":" "},1,{"$f":"LOOKUP(AI30,AI31:AI32,AJ31:AJ32)","v":" "},null,"PHC",null,null,null,null,null,null,null,null,null,null,null,null,7015,11,7015,12910,14860,18030,null,null," "," "," "," ",3,"2010-03-01",31,"1900-01-31",null,40238,31]
[26,"Marripadu",26,"Narayanavanam  ","Kurichedu ","Mangalagiri","Mydukur • ",null,null,null,null,null,null,null,2,"SPSR Nellore District",27,{"$f":"IF(B1=1,\" \",IF(B1=2,B32,IF(B1=3,D32,IF(B1=4,E32,IF(B1=5,F32,G32)))))","v":"Nandalur • "},null,null,27,14050,null,null,null,null,27,10565,14,{"$f":"IF(AH18=\"Applicable\",AC31,\" \")","v":" "},"Date",{"$f":"DATE(AK17,AE17,AC17)","v":{"$error":"#VALUE!"}},2,{"$f":"IF(AH23=\"Applicable\",AN19,\" \")","v":" "},1,{"$f":"IF(AE3=1,AL31,\" \")","v":" "},null,"Vacation Post",null,null,null,null,null,null,null,null,null,null,null,null,7200,12,7200,13270,14860,18030,null,null," "," "," "," ",4,"2010-04-01",30,"1900-01-30",null,40269,30]
[27,"Muthukur",27,"Nimmanapalle  ","Lingasamudram ","Medikonduru ","Nandalur • ",null,null,null,null,null,null,null,3,"Chittoor District",28,{"$f":"IF(B1=1,\" \",IF(B1=2,B33,IF(B1=3,D33,IF(B1=4,E33,IF(B1=5,F33,G33)))))","v":"Obulavaripalle • "},null,null,28,14440,1,24.824000000000002,{"$f":"X32","v":24.824000000000002},null,28,10845,15,{"$f":"IF(AH18=\"Applicable\",AC32,\" \")","v":" "},null,{"$f":"DATE(AK17,AE17,1)","v":{"$error":"#VALUE!"}},null,null,2,{"$f":"IF(AE3=1,AL32,\" \")","v":" "},null,"Non Vacation Post",null,null,1,{"$f":"LOOKUP(AX17,AO18:AO29,AX18:AX29)","v":"2010-06-01"},{"$f":"Data!Y28","v":0},"PF",{"$f":"Data!T28","v":0},null,null,null,null,null,7385,13,7385,13660,14860,18030,null,null," "," "," "," ",5,"2010-05-01",31,"1900-01-31",null,40299,31]
[28,"Naidupeta",28,"Nindra  ","Maddipadu "," Muppalla","Obulavaripalle • ",null,null,null,null,null,null,null,4,"Prakasham District",29,{"$f":"IF(B1=1,\" \",IF(B1=2,B34,IF(B1=3,D34,IF(B1=4,E34,IF(B1=5,F34,G34)))))","v":"Peddamudium • "},null,null,29,14860,2,24.824000000000002,{"$f":"X33","v":24.824000000000002},null,29,11125,16,{"$f":"IF(AH18=\"Applicable\",AC33,\" \")","v":" "},null,{"$f":"LOOKUP(AE17,AE18:AE29,AI18:AI29)","v":30},null,{"$f":"IF($AH$23=\"Applicable\",AM18,\" \")","v":" "},null,null,null,null,null,null,1,{"$f":"IF(AQ32>0,AQ33,\" \")","v":" "},"2010-03-01",{"$f":"'SALARY TABLE'!R5","v":0},null,{"$f":"IF(AO33>=AO32,AQ32,AS32)","v":0},{"$f":"AS32","v":0},{"$f":"IF(AT33=0,AU33,AT33)","v":0},null,null,7570,14,7570,14050,14860,18030,null,null," "," "," "," ",6,"2010-06-01",30,"1900-01-30",null,40330,30]
[29,"Nellore",29,"Pakala  ","Markapur ","Nadendla ","Peddamudium • ",null,null,null,null,null,null,null,5,"Guntur District",30,{"$f":"IF(B1=1,\" \",IF(B1=2,B35,IF(B1=3,D35,IF(B1=4,E35,IF(B1=5,F35,G35)))))","v":"Penagaluru •"},null,null,30,15280,3,24.824000000000002,{"$f":"X34","v":24.824000000000002},null,30,11440,17,{"$f":"IF(AH18=\"Applicable\",AC34,\" \")","v":" "},"Days",{"$f":"AF33-AC17+1","v":30},null,{"$f":"IF($AH$23=\"Applicable\",AM19,\" \")","v":" "},null,null,null,null,null,null,2,{"$f":"IF(AQ32>0,AQ34,\" \")","v":" "},"2010-04-01",{"$f":"'SALARY TABLE'!R6","v":0},null,{"$f":"IF(AO34>=AO32,AQ32,AS32)","v":0},{"$f":"AU33","v":0},{"$f":"IF(AT34=0,AU34,AT34)","v":0},null,null,7770,15,7770,14440,14860,18030,null,null," "," "," "," ",7,"2010-07-01",31,"1900-01-31",null,40360,31]
[30,"Ojili",30,"Palamaner  ","Marripudi "," Nagaram ","Penagaluru •",null,null,null,null,null,null,null,6,"YSR Kadapa District",31,{"$f":"IF(B1=1,\" \",IF(B1=2,B36,IF(B1=3,D36,IF(B1=4,E36,IF(B1=5,F36,G36)))))","v":" Pendlimarri • "},null,null,31,15700,4,9.4160000000000004,16.263999999999999,null,31,11755,18,{"$f":"IF(AH18=\"Applicable\",AC35,\" \")","v":" "},null,{"$f":"LOOKUP(AF32,'SALARY TABLE'!B55:B68,'SALARY TABLE'!C55:C68)","v":{"$error":"#VALUE!"}},null," ",null,"Vacation","N-V",null,null,null,3,{"$f":"IF(AQ32>0,AQ35,\" \")","v":" "},"2010-05-01",{"$f":"'SALARY TABLE'!R7","v":0},null,{"$f":"IF(AO35>=AO32,AQ32,AS32)","v":0},0,0,null,null,7970,16,7970,14860,14860,18030,null,null," "," "," "," ",8,"2010-08-01",31,"1900-01-31",null,40391,31]
[31,"Pellakur",31,"Palasamudram ","Martur "," Nakarikallu "," Pendlimarri • ",null,null,null,null,null,null,null,null,null,32,{"$f":"IF(B1=1,\" \",IF(B1=2,B37,IF(B1=3,D37,IF(B1=4,E37,IF(B1=5,F37,G37)))))","v":"Porumamilla • "},null,null,32,16150,5,9.4160000000000004,16.263999999999999,null,32,12070,19,{"$f":"IF(AH18=\"Applicable\",AC36,\" \")","v":" "},null,{"$f":"LOOKUP(AF35,'SALARY TABLE'!B48:CC48,'SALARY TABLE'!B49:CC49)","v":{"$error":"#VALUE!"}},null," ",{"$f":"'SALARY TABLE'!I57","v":15700},{"$f":"IF(AE3=1,IF(ROUND(AI36*10%,0)<650,ROUND(AI36*10%,0),650),0)","v":0},{"$f":"IF(AE3=1,IF(ROUND(AI36*10%,0)<650,ROUND(AI36*10%,0),650),0)","v":0},{"$f":"IF(AI30=1,AJ36,AK36)","v":0},null,null,4,{"$f":"IF(AQ32>0,AQ36,\" \")","v":" "},"2010-06-01",{"$f":"'SALARY TABLE'!R8","v":0},null,{"$f":"IF(AO36>=AO32,AQ32,AS32)","v":0},0,0,null,null,8170,17,8170,14860,14860,18030,null,null," "," "," "," ",9,"2010-09-01",30,"1900-01-30",null,40422,30]
[32,"Podlakur",32,"Pedda Panjani  ","Mundlamuru "," Narasaraopeta ","Porumamilla • ",null,null,null,null,null,null,null,null,null,33,{"$f":"IF(B1=1,\" \",IF(B1=2,B38,IF(B1=3,D38,IF(B1=4,E38,IF(B1=5,F38,G38)))))","v":"Proddutur • "},null,null,33,16600,6,9.4160000000000004,16.263999999999999,null,33,12385,20,{"$f":"IF(AH18=\"Applicable\",AC37,\" \")","v":" "},null,{"$f":"AF36-AF35","v":{"$error":"#VALUE!"}},null," ",{"$f":"'SALARY TABLE'!I58","v":15700},{"$f":"IF(AE3=1,IF(ROUND(AI37*10%,0)<900,ROUND(AI37*10%,0),900)/30*23,0)","v":0},{"$f":"IF(AE3=1,IF(ROUND(AI37*10%,0)<900,ROUND(AI37*10%,0),900),0)","v":0},{"$f":"IF(AI30=1,AJ37,AK37)","v":0},null,null,5,{"$f":"IF(AQ32>0,AQ37,\" \")","v":" "},"2010-07-01",{"$f":"'SALARY TABLE'!R9","v":0},null,{"$f":"IF(AO37>=AO32,AQ32,AS32)","v":0},0,0,null,null,8385,18,8385,15280,15280,18030,null,null," "," "," "," ",10,"2010-10-01",31,"1900-01-31",null,40452,31]
[33,"Rapur ",33,"Peddamandyam  "," Naguluppalapadu","Nizampatnam ","Proddutur • ",null,null,null,null,null,null,null,null,null,34,{"$f":"IF(B1=1,\" \",IF(B1=2,B39,IF(B1=3,D39,IF(B1=4,E39,IF(B1=5,F39,G39)))))","v":"Pulivendla • "},null,null,34,17050,7,16.263999999999999,24.824000000000002,null,34,12700,21,{"$f":"IF(AH18=\"Applicable\",AC38,\" \")","v":" "},null,{"$f":"ROUND(AF37/AF33*AF34,0)","v":{"$error":"#VALUE!"}},null," ",{"$f":"'SALARY TABLE'!I59","v":15700},0,{"$f":"IF(AE3=1,IF(ROUND(AI38*10%,0)<900,ROUND(AI38*10%,0),900),0)","v":0},{"$f":"IF(AI30=1,AJ38,AK38)","v":0},null,null,6,{"$f":"IF(AQ32>0,AQ38,\" \")","v":" "},"2010-08-01",{"$f":"'SALARY TABLE'!R10","v":0},null,{"$f":"IF(AO38>=AO32,AQ32,AS32)","v":0},0,0,null,null,8600,19,8600,15700,15700,18030,null,null," "," "," "," ",11,"2010-11-01",30,"1900-01-30",null,40483,30]
[34,"Sangam",34,"Peddathippasamudram  ","Ongole ","Nuzendla ","Pulivendla • ",null,null,null,null,null,null,null,null,null,35,{"$f":"IF(B1=1,\" \",IF(B1=2,B40,IF(B1=3,D40,IF(B1=4,E40,IF(B1=5,F40,G40)))))","v":"Pullampeta • "},null,null,35,17540,8,16.263999999999999,24.824000000000002,null,35,13030,22,{"$f":"IF(AH18=\"Applicable\",AC39,\" \")","v":" "},"8/16/24 DA",{"$f":"LOOKUP(AE17,W32:W43,Y32:Y43)","v":16.263999999999999},{"$f":"LOOKUP(AE17,W32:W43,X32:X43)","v":9.4160000000000004}," ",{"$f":"'SALARY TABLE'!I60","v":15700},{"$f":"IF(AE3=1,IF(ROUND(AI39*10%,0)<900,ROUND(AI39*10%,0),900)/30*17,0)","v":0},{"$f":"IF(AE3=1,IF(ROUND(AI39*10%,0)<900,ROUND(AI39*10%,0),900),0)","v":0},{"$f":"IF(AI30=1,AJ39,AK39)","v":0},null,null,7,{"$f":"IF(AQ32>0,AQ39,\" \")","v":" "},"2010-09-01",{"$f":"'SALARY TABLE'!R11","v":0},null,{"$f":"IF(AO39>=AO32,AQ32,AS32)","v":0},0,0,null,null,8815,20,8815,16150,16150,18030,null,null," "," "," "," ",12,"2010-12-01",31,"1900-01-31",null,40513,31]
[35,"Seetharamapuram",35,"Penumuru ","Pamur ","Pedakakani ","Pullampeta • ",null,null,null,null,null,null,null,null,null,36,{"$f":"IF(B1=1,\" \",IF(B1=2,B41,IF(B1=3,D41,IF(B1=4,E41,IF(B1=5,F41,G41)))))","v":"Railway Koduru • "},null,null,36,18030,9,16.263999999999999,24.824000000000002,null,36,13390,23,{"$f":"IF(AH18=\"Applicable\",AC40,\" \")","v":" "},"DA",{"$f":"ROUND(AF38*AF39%,0)","v":{"$error":"#VALUE!"}},{"$f":"ROUND(AF38*AG39%,0)","v":{"$error":"#VALUE!"}}," ",{"$f":"'SALARY TABLE'!I61","v":15700},{"$f":"IF(AE3=1,IF(ROUND(AI40*10%,0)<900,ROUND(AI40*10%,0),900),0)","v":0},{"$f":"IF(AE3=1,IF(ROUND(AI40*10%,0)<900,ROUND(AI40*10%,0),900),0)","v":0},{"$f":"IF(AI30=1,AJ40,AK40)","v":0},null,null,8,{"$f":"IF(AQ32>0,AQ40,\" \")","v":" "},"2010-10-01",{"$f":"'SALARY TABLE'!R12","v":0},null,{"$f":"IF(AO40>=AO32,AQ32,AS32)","v":0},0,0,null,null,9050,21,9050,16600,16600,18030,null,null," "," "," "," ",13,"2011-01-01",31,"1900-01-31",null,40544,31]
[36,"Sullurpeta",36," Pichatur "," Parchur "," Pedakurapadu ","Railway Koduru • ",null,null,null,null,null,null,null,null,null,37,{"$f":"IF(B1=1,\" \",IF(B1=2,B42,IF(B1=3,D42,IF(B1=4,E42,IF(B1=5,F42,G42)))))","v":"Rajampet • "},null,null,37,18520,10,16.263999999999999,24.824000000000002,null,37,13750,24,{"$f":"IF(AH18=\"Applicable\",AC41,\" \")","v":" "},null,null,null," ",{"$f":"'SALARY TABLE'!I62","v":15700},{"$f":"IF(AE3=1,IF(ROUND(AI41*10%,0)<900,ROUND(AI41*10%,0),900),0)","v":0},{"$f":"IF(AE3=1,IF(ROUND(AI41*10%,0)<900,ROUND(AI41*10%,0),900),0)","v":0},{"$f":"IF(AI30=1,AJ41,AK41)","v":0},null,null,9,{"$f":"IF(AQ32>0,AQ41,\" \")","v":" "},"2010-11-01",{"$f":"'SALARY TABLE'!R13","v":0},null,{"$f":"IF(AO41>=AO32,AQ32,AS32)","v":0},0,0,null,null,9285,22,9285,17050,17050,18030,null,null," "," "," "," ",14,"2011-02-01",28,"1900-01-28",null,40575,{"$f":"BP42-BP41","v":28}]
[37,"Sydapuram ",37," Pileru ","Pedaaraveedu "," Phirangipuram ","Rajampet • ",null,null,null,null,null,null,null,null,null,38,{"$f":"IF(B1=1,\" \",IF(B1=2,B43,IF(B1=3,D43,IF(B1=4,E43,IF(B1=5,F43,G43)))))","v":"Raju Palem • "},null,null,38,19050,11,16.263999999999999,24.824000000000002,null,38,14175,25,{"$f":"IF(AH18=\"Applicable\",AC42,\" \")","v":" "},"Step up",null,null," ",{"$f":"'SALARY TABLE'!I63","v":15700},{"$f":"IF(AE3=1,IF(ROUND(AI42*10%,0)<900,ROUND(AI42*10%,0),900),0)","v":0},{"$f":"IF(AE3=1,IF(ROUND(AI42*10%,0)<900,ROUND(AI42*10%,0),900),0)","v":0},{"$f":"IF(AI30=1,AJ42,AK42)","v":0},null,null,10,{"$f":"IF(AQ32>0,AQ42,\" \")","v":" "},"2010-12-01",{"$f":"'SALARY TABLE'!R14","v":0},null,{"$f":"IF(AO42>=AO32,AQ32,AS32)","v":0},0,0,null,null,9520,23,9520,17540,17540,18030,null,null," "," "," "," ",null,"2011-03-01",null,null,null,40603]
[38,"Tada ",38,"Pulicherla  ","Pedacherlopalle"," Piduguralla ","Raju Palem • ",null,null,null,null,null,null,null,null,null,39,{"$f":"IF(B1=1,\" \",IF(B1=2,B44,IF(B1=3,D44,IF(B1=4,E44,IF(B1=5,F44,G44)))))","v":"Ramapuram • "},null,null,39,19580,12,24.824000000000002,{"$f":"X43","v":24.824000000000002},null,39,14600,26,{"$f":"IF(AH18=\"Applicable\",AC43,\" \")","v":" "},"Date",{"$f":"DATE(AH29,AH26,AG26)","v":{"$error":"#VALUE!"}},null," ",{"$f":"'SALARY TABLE'!I64","v":15700},{"$f":"IF(AE3=1,ROUND(IF(ROUND(AI43*10%,0)<900,ROUND(AI43*10%,0),900)/31*19,0),0)","v":0},{"$f":"IF(AE3=1,IF(ROUND(AI43*10%,0)<900,ROUND(AI43*10%,0),900),0)","v":0},{"$f":"IF(AI30=1,AJ43,AK43)","v":0},null,null,11,{"$f":"IF(AQ32>0,AQ43,\" \")","v":" "},"2011-01-01",{"$f":"'SALARY TABLE'!R15","v":0},null,{"$f":"IF(AO43>=AO32,AQ32,AS32)","v":0},0,0,null,null,9775,24,9775,18030,18030,18030,null,null," "," "," "," "]
[39,"Thotapalligudur ",39,"Punganur ","Podili ","Pittalavanipalem ","Ramapuram • ",null,null,null,null,null,null,null,null,null,40,{"$f":"IF(B1=1,\" \",IF(B1=2,B45,IF(B1=3,D45,IF(B1=4,E45,IF(B1=5,F45,G45)))))","v":"Rayachoti • "},null,null,40,20110,null,null,null,null,40,15025,27,{"$f":"IF(AH18=\"Applicable\",AC44,\" \")","v":" "},null,{"$f":"DATE(AG26,AH26,1)","v":"1908-04-01"},null," ",{"$f":"'SALARY TABLE'!I65","v":16150},{"$f":"IF(AE3=1,IF(ROUND(AI44*10%,0)<900,ROUND(AI44*10%,0),900),0)","v":0},{"$f":"IF(AE3=1,IF(ROUND(AI44*10%,0)<900,ROUND(AI44*10%,0),900),0)","v":0},{"$f":"IF(AI30=1,AJ44,AK44)","v":0},null,null,12,{"$f":"IF(AQ32>0,AQ44,\" \")","v":" "},"2011-02-01",{"$f":"'SALARY TABLE'!R16","v":0},null,{"$f":"IF(AO44>=AO32,AQ32,AS32)","v":0},0,0,null,null,10030,25,10030,18520,18520,18520,null,null," "," "," "," "]
[40,"Udayagiri ",40,"Puthalapattu ","Ponnaluru "," Ponnur ","Rayachoti • ",null,null,null,null,null,null,null,null,null,41,{"$f":"IF(B1=1,\" \",IF(B1=2,B46,IF(B1=3,D46,IF(B1=4,E46,IF(B1=5,F46,G46)))))","v":"S Mydukur • "},null,null,41,20680,null,null,null,null,41,15500,28,{"$f":"IF(AH18=\"Applicable\",AC45,\" \")","v":" "},null,{"$f":"LOOKUP(AG26,AE18:AE29,AI18:AI29)","v":31},null,{"$f":"IF($AH$23=\"Applicable\",AC18,\" \")","v":" "},{"$f":"'SALARY TABLE'!I66","v":16150},{"$f":"IF(AE3=1,IF(ROUND(AI45*10%,0)<900,ROUND(AI45*10%,0),900),0)","v":0},{"$f":"IF(AE3=1,IF(ROUND(AI45*10%,0)<900,ROUND(AI45*10%,0),900),0)","v":0},{"$f":"IF(AI30=1,AJ45,AK45)","v":0},null,null,null,null,null,null,null,null,null,null,null,null,10285,26,10285,19050,19050,19050,null,null," "," "," "," "]
[41,"Vakadu ",41,"Puttur  ","Pullalacheruvu "," Prathipadu ","S Mydukur • ",null,null,null,null,null,null,null,null,null,42,{"$f":"IF(B1=1,\" \",IF(B1=2,B47,IF(B1=3,D47,IF(B1=4,E47,IF(B1=5,F47,G47)))))","v":"Sambepalle • "},null,null,42,21250,null,null,null,null,42,15975,29,{"$f":"IF(AH18=\"Applicable\",AC46,\" \")","v":" "},"Days",{"$f":"AF45-AG26+1","v":24},null,{"$f":"IF($AH$23=\"Applicable\",AC19,\" \")","v":" "},{"$f":"'SALARY TABLE'!I67","v":16150},{"$f":"IF(AE3=1,ROUND(IF(ROUND(AI46*10%,0)<900,ROUND(AI46*10%,0),900)/31*21,0),0)","v":0},{"$f":"IF(AE3=1,IF(ROUND(AI46*10%,0)<900,ROUND(AI46*10%,0),900),0)","v":0},{"$f":"IF(AI30=1,AJ46,AK46)","v":0},null,null,null,null,null,null,null,null,null,null,null,null,10565,27,10565,19580,19580,19580,null,null," "," "," "," "]
[42,"Varikuntapadu ",42,"Rama Kuppam  ","Racherla ","Rajupalem ","Sambepalle • ",null,null,null,null,null,null,null,null,null,43,{"$f":"IF(B1=1,\" \",IF(B1=2,B48,IF(B1=3,D48,IF(B1=4,E48,IF(B1=5,F48,G48)))))","v":"Sidhout • "},null,null,43,21820,null,null,null,null,43,16450,30,{"$f":"IF(AH18=\"Applicable\",AC47,\" \")","v":" "},null,{"$f":"LOOKUP(AF43,'SALARY TABLE'!B55:B68,'SALARY TABLE'!I55:I68)","v":{"$error":"#VALUE!"}},null," ",{"$f":"'SALARY TABLE'!I68","v":16150},{"$f":"IF(AE3=1,IF(ROUND(AI47*10%,0)<900,ROUND(AI47*10%,0),900),0)","v":0},{"$f":"IF(AE3=1,IF(ROUND(AI47*10%,0)<900,ROUND(AI47*10%,0),900),0)","v":0},{"$f":"IF(AI30=1,AJ47,AK47)","v":0},null,null,5,{"$f":"LOOKUP(AO47,AO48:AO59,AP48:AP59)","v":" "},{"$f":"Data!Y36","v":0},"LIC",{"$f":"Data!T36","v":0},null,null,null,null,null,10845,28,10845,20110,20110,20110,null,null," "," "," "," "]
[43,"Venkatachalam ",43,"Ramachandrapuram ","Santhamaguluru "," Rentacrintala ","Sidhout • ",null,null,null,null,null,null,null,null,null,44,{"$f":"IF(B1=1,\" \",IF(B1=2,B49,IF(B1=3,D49,IF(B1=4,E49,IF(B1=5,F49,G49)))))","v":"Simhadripuram • "},null,null,44,22430,null,null,null,null,44,16925,31,{"$f":"IF(AH18=\"Applicable\",AC48,\" \")","v":" "},null,{"$f":"LOOKUP(AF47,'SALARY TABLE'!B48:CC48,'SALARY TABLE'!B49:CC49)","v":{"$error":"#VALUE!"}},null," ",null,null,null,null,null,null,1,{"$f":"IF(AQ47>0,AQ48,\" \")","v":" "},"2010-03-01",{"$f":"'SALARY TABLE'!T5","v":0},null,{"$f":"IF(AO48>=AO47,AQ47,AS47)","v":0},{"$f":"AS47","v":0},{"$f":"IF(AT48=0,AU48,AT48)","v":0},null,null,11125,29,11125,20680,20680,20680,null,null," "," "," "," ",null,null,null,null,{"$f":"BM3-1","v":6}]
[44,"Venkatagiri ",44,"Ramasamudram  ","Santhanuthlapadu ","Repalle ","Simhadripuram • ",null,null,null,null,null,null,null,null,null,45,{"$f":"IF(B1=1,\" \",IF(B1=2,B50,IF(B1=3,D50,IF(B1=4,E50,IF(B1=5,F50,G50)))))","v":"T Sundupalle • "},null,null,45,23040,null,null,null,null,45,17475,null,null,null,{"$f":"AF48-AF47","v":{"$error":"#VALUE!"}},null," ",null,null,null,null,null,null,2,{"$f":"IF(AQ47>0,AQ49,\" \")","v":" "},"2010-04-01",{"$f":"'SALARY TABLE'!T6","v":0},null,{"$f":"IF(AO49>=AO47,AQ47,AS47)","v":0},{"$f":"AU48","v":0},{"$f":"IF(AT49=0,AU49,AT49)","v":0},null,null,11440,30,11440,21250,21250,21250,null,null," "," "," "," ",null,null,null,null,{"$f":"IF(BM3<12,BM3-1,1)","v":6},{"$f":"IF(BN3<12,BN3-1,1)","v":8}]
[45,"Vidavalur ",45,"Renigunta  ","Singarayakonda ","Rompicherla","T Sundupalle • ",null,null,null,null,null,null,null,null,null,46,{"$f":"IF(B1=1,\" \",IF(B1=2,B51,IF(B1=3,D51,IF(B1=4,E51,IF(B1=5,F51,G51)))))","v":"Thandur •"},null,null,46,23650,null,null,null,null,46,18025,null,null,null,{"$f":"ROUND(AF49/AF45*AF46,0)","v":{"$error":"#VALUE!"}},null," ",null,null,null,null,null,null,3,{"$f":"IF(AQ47>0,AQ50,\" \")","v":" "},"2010-05-01",{"$f":"'SALARY TABLE'!T7","v":0},null,{"$f":"IF(AO50>=AO47,AQ47,AS47)","v":0},0,0,null,null,11755,31,11755,21820,21820,21820,null,null,null,null,null,null,{"$f":"LOOKUP(BM3,$AE$18:$AE$29,$AI$18:$AI$29)","v":31},{"$f":"LOOKUP(BN3,$AE$18:$AE$29,$AI$18:$AI$29)","v":30},null,null,{"$f":"LOOKUP(BO49,AE18:AE29,AI18:AI29)","v":30},{"$f":"LOOKUP(BP49,$AE$18:$AE$29,$AI$18:$AI$29)","v":31}]
[46,"Vinjamur",46,"Rompicherla  ","Tangutur ","Sattenapalle","Thandur •",null,null,null,null,null,null,null,null,null,47,{"$f":"IF(B1=1,\" \",IF(B1=2,B52,IF(B1=3,D52,IF(B1=4,E52,IF(B1=5,F52,G52)))))","v":" Vallur •"},null,null,47,24300,null,null,null,null,47,18575,null,null,"8/16/24 DA",{"$f":"LOOKUP(AH26,W32:W43,Y32:Y43)","v":16.263999999999999},{"$f":"LOOKUP(AH26,W32:W43,X32:X43)","v":9.4160000000000004}," ",null,null,null,null,null,null,4,{"$f":"IF(AQ47>0,AQ51,\" \")","v":" "},"2010-06-01",{"$f":"'SALARY TABLE'!T8","v":0},null,{"$f":"IF(AO51>=AO47,AQ47,AS47)","v":0},0,0,null,null,12070,32,12070,22430,22430,22430,null,"Half Paf/Loss of pay",20,16,17,22,{"$f":"LOOKUP(BG3,$AE$18:$AE$29,$AI$18:$AI$29)","v":30},{"$f":"LOOKUP(BH3,$AE$18:$AE$29,$AI$18:$AI$29)","v":31},"days",null,"Months"]
[null,null,47,"Santhi Puram  ","Tarlapadu ","Savalyapuram"," Vallur •",null,null,null,null,null,null,null,null,null,48,{"$f":"IF(B1=1,\" \",IF(B1=2,B53,IF(B1=3,D53,IF(B1=4,E53,IF(B1=5,F53,G53)))))","v":" Veeraballe •"},null,null,48,24950,null,null,null,null,48,19125,null,null,"DA",{"$f":"ROUND(AF50*AF51%,0)","v":{"$error":"#VALUE!"}},{"$f":"ROUND(AF50*AG51%,0)","v":{"$error":"#VALUE!"}}," ",null,null,null,null,null,null,5,{"$f":"IF(AQ47>0,AQ52,\" \")","v":" "},"2010-07-01",{"$f":"'SALARY TABLE'!T9","v":0},null,{"$f":"IF(AO52>=AO47,AQ47,AS47)","v":0},0,0,null,null,12385,33,12385,23040,23040,23040,null,"Start Date",{"$f":"IF(AM3=1,DATE(BK8,BG3,BG51),0)","v":"00:00:00"},{"$f":"IF(AO3=1,DATE(BL8,BH3,BH51),0)","v":"00:00:00"},{"$f":"LOOKUP(MONTH(BG52),$AE$18:$AE$29,$AM$18:$AM$29)&\"-\"&RIGHT(BK8,2)","v":"Jan- "},{"$f":"LOOKUP(MONTH(BH52),$AE$18:$AE$29,$AM$18:$AM$29)&\"-\"&RIGHT(BL8,2)","v":"Jan- "},{"$f":"DATE(BK8,BG3,1)","v":{"$error":"#VALUE!"}},{"$f":"DATE(BL8,BH3,1)","v":{"$error":"#VALUE!"}},{"$f":"DATEDIF(BK52,BG52,\"d\")","v":{"$error":"#VALUE!"}},{"$f":"DATEDIF(BL52,BH52,\"d\")","v":{"$error":"#VALUE!"}},{"$f":"DATE(BK8,BG3+1,1)","v":{"$error":"#VALUE!"}},{"$f":"DATE(BL8,BH3+1,1)","v":{"$error":"#VALUE!"}}]
[null,null,48,"Satyavedu  ","Thallur ","Tadikonda"," Veeraballe •",null,null,null,null,null,null,null,null,null,49,{"$f":"IF(B1=1,\" \",IF(B1=2,B54,IF(B1=3,D54,IF(B1=4,E54,IF(B1=5,F54,G54)))))","v":" Veerapunayunipalle •"},null,null,49,25600,null,null,null,null,49,19675,null,null,null,null,null," ",null,null,null,null,null,null,6,{"$f":"IF(AQ47>0,AQ53,\" \")","v":" "},"2010-08-01",{"$f":"'SALARY TABLE'!T10","v":0},null,{"$f":"IF(AO53>=AO47,AQ47,AS47)","v":0},0,0,null,null,12700,34,12700,23040,23040,23040,null,"end date",{"$f":"IF(AM3=1,DATE(BM23,BM3,BI51),0)","v":"00:00:00"},{"$f":"IF(AO3=1,DATE(BN23,BN3,BJ51),0)","v":"00:00:00"},{"$f":"LOOKUP(MONTH(BG53),$AE$18:$AE$29,$AM$18:$AM$29)&\"-\"&RIGHT(BM23,2)","v":"Jan- "},{"$f":"LOOKUP(MONTH(BH53),$AE$18:$AE$29,$AM$18:$AM$29)&\"-\"&RIGHT(BN23,2)","v":"Jan- "},{"$f":"DATE(BM23,BM3,1)","v":{"$error":"#VALUE!"}},{"$f":"DATE(BN23,BN3,1)","v":{"$error":"#VALUE!"}},{"$f":"DATEDIF(BK53,BG53,\"d\")","v":{"$error":"#VALUE!"}},{"$f":"DATEDIF(BL53,BH53,\"d\")","v":{"$error":"#VALUE!"}},{"$f":"DATE(BM23,BO48,BO50)","v":{"$error":"#VALUE!"}},{"$f":"DATE(BN23,BN3-1,BP50)","v":{"$error":"#VALUE!"}}]
[null,null,49,"Sodam  ","Tripuranthakam ","Tenali "," Veerapunayunipalle •",null,null,null,null,null,null,null,null,null,50,{"$f":"IF(B1=1,\" \",IF(B1=2,B55,IF(B1=3,D55,IF(B1=4,E55,IF(B1=5,F55,G55)))))","v":" Vempalle • "},null,null,50,26300,null,null,null,null,50,20300,null,null,null,null,null," ",null,null,null,null,null,null,7,{"$f":"IF(AQ47>0,AQ54,\" \")","v":" "},"2010-09-01",{"$f":"'SALARY TABLE'!T11","v":0},null,{"$f":"IF(AO54>=AO47,AQ47,AS47)","v":0},0,0,null,null,13030,35,13030,23650,23650,23650,null,"Months",{"$f":"BI54","v":0},{"$f":"BJ54","v":0},{"$f":"DATEDIF(BG52,BG53,\"ym\")","v":0},{"$f":"DATEDIF(BH52,BH53,\"ym\")","v":0},"Real Days",null,"Months",null,"Months"]
[null,null,50,"Somala  ","Ulavapadu ","Thadepalle"," Vempalle • ",null,null,null,null,null,null,null,null,null,51,{"$f":"IF(B1=1,\" \",IF(B1=2,B56,IF(B1=3,D56,IF(B1=4,E56,IF(B1=5,F56,G56)))))","v":"Vemula •"},null,null,51,27000,null,null,null,null,51,20925,null,null,1,{"$f":"IF(AD55=\"Applicable\",AI55,\" \")","v":" "},null," ",null,null,null,null,null,null,8,{"$f":"IF(AQ47>0,AQ55,\" \")","v":" "},"2010-10-01",{"$f":"'SALARY TABLE'!T12","v":0},null,{"$f":"IF(AO55>=AO47,AQ47,AS47)","v":0},0,0,null,null,13390,36,13390,24300,24300,24300,null,"days",{"$f":"BI55+1","v":1},{"$f":"BJ55+1","v":1},{"$f":"DATEDIF(BG52,BG53,\"md\")","v":0},{"$f":"DATEDIF(BH52,BH53,\"md\")","v":0},{"$f":"BK51-BM52","v":{"$error":"#VALUE!"}},{"$f":"BL51-BN52","v":{"$error":"#VALUE!"}},{"$f":"BO55+1","v":{"$error":"#VALUE!"}},{"$f":"BP55+1","v":{"$error":"#VALUE!"}},{"$f":"DATEDIF(BO52,BO53,\"ym\")","v":{"$error":"#VALUE!"}},{"$f":"DATEDIF(BP52,BP53,\"ym\")","v":{"$error":"#VALUE!"}}]
[null,null,51,"Srikalahasti ","Veligandla "," Thullur","Vemula •",null,null,null,null,null,null,null,null,null,52,{"$f":"IF(B1=1,\" \",IF(B1=2,B57,IF(B1=3,D57,IF(B1=4,E57,IF(B1=5,F57,G57)))))","v":" Vontimitta •"},null,null,52,27700,null,null,null,null,52,21550,null,null,2,{"$f":"IF(AD55=\"Applicable\",AI56,\" \")","v":" "},null," ",null,null,null,null,null,null,9,{"$f":"IF(AQ47>0,AQ56,\" \")","v":" "},"2010-11-01",{"$f":"'SALARY TABLE'!T13","v":0},null,{"$f":"IF(AO56>=AO47,AQ47,AS47)","v":0},0,0,null,null,13750,37,13750,24950,24950,24950,null,"Basic pays",{"$f":"LOOKUP(BG52,'SALARY TABLE'!B55:B68,'SALARY TABLE'!I55:I68)","v":{"$error":"#N/A"}},{"$f":"LOOKUP(BH52,'SALARY TABLE'!B55:B68,'SALARY TABLE'!I55:I68)","v":{"$error":"#N/A"}},null,null,{"$f":"BM53+1","v":{"$error":"#VALUE!"}},{"$f":"BN53+1","v":{"$error":"#VALUE!"}}]
[null,null,52," Srirangarajapuram  ","Vetapalem "," Tsundur"," Vontimitta •",null,null,null,null,null,null,null,null,null,53,{"$f":"IF(B1=1,\" \",IF(B1=2,B58,IF(B1=3,D58,IF(B1=4,E58,IF(B1=5,F58,G58)))))","v":" Yerraguntla"},null,null,53,28450,null,null,null,null,53,22175,null,null,3,{"$f":"IF(AD55=\"Applicable\",AI57,\" \")","v":" "},null," ",1,{"$f":"LOOKUP(AI57,AI58:AI59,AJ58:AJ59)","v":" "},null,2,{"$f":"LOOKUP(AL57,AL58:AL59,AM58:AM59)","v":"Not Applicable"},null,10,{"$f":"IF(AQ47>0,AQ57,\" \")","v":" "},"2010-12-01",{"$f":"'SALARY TABLE'!T14","v":0},null,{"$f":"IF(AO57>=AO47,AQ47,AS47)","v":0},0,0,null,null,14175,38,14175,26300,26300,26300,null,null,{"$f":"LOOKUP(BG53,'SALARY TABLE'!B55:B68,'SALARY TABLE'!I55:I68)","v":{"$error":"#N/A"}},{"$f":"LOOKUP(BH53,'SALARY TABLE'!B55:B68,'SALARY TABLE'!I55:I68)","v":{"$error":"#N/A"}},null,null,null,null,null,null,null,null,null,null,null,null,null,null,null,null,null,null,null,null,null,{"$f":"DATEDIF(BQ61,BT61,\"d\")","v":0}]
[null,null,53,"Thamballapalle ","Voletivaripalem ","Vatticherukuru"," Yerraguntla",null,null,null,null,null,null,null,null,null,54,{"$f":"IF(B1=1,\" \",IF(B1=2,B59,IF(B1=3,D59,IF(B1=4,E59,IF(B1=5,F59,G59)))))","v":0},null,null,54,29200,null,null,null,null,54,22800,null,null,4,{"$f":"IF(AD55=\"Applicable\",AI58,\" \")","v":" "},null," ",1,{"$f":"IF(AL57=1,\"Rented House\",\" \")","v":" "},null,1,"Applicable",null,11,{"$f":"IF(AQ47>0,AQ58,\" \")","v":" "},"2011-01-01",{"$f":"'SALARY TABLE'!T15","v":0},null,{"$f":"IF(AO58>=AO47,AQ47,AS47)","v":0},0,0,null,null,14600,39,14600,27000,27000,27000,null,"Arrears",{"$f":"ROUND(BG56*BK55/BK51/2,0)","v":{"$error":"#N/A"}},{"$f":"ROUND(BH56*BL55/BL51/2,0)","v":{"$error":"#N/A"}}]
[null,null,54,"Thavanampalle ","Yeddanapudi ","Veldurthi ",null,null,null,null,null,null,null,null,null,null,55,{"$f":"IF(B1=1,\" \",IF(B1=2,B60,IF(B1=3,D60,IF(B1=4,E60,IF(B1=5,F60,G60)))))","v":0},null,null,55,29950,null,null,null,null,55,23500,null,null,5,{"$f":"IF(AD55=\"Applicable\",AI59,\" \")","v":" "},null," ",2,{"$f":"IF(AL57=1,\"Own House\",\" \")","v":" "},null,2,"Not Applicable",null,12,{"$f":"IF(AQ47>0,AQ59,\" \")","v":" "},"2011-02-01",{"$f":"'SALARY TABLE'!T16","v":0},null,{"$f":"IF(AO59>=AO47,AQ47,AS47)","v":0},0,0,null,null,15025,40,15025,27700,27700,27700,null,null,{"$f":"ROUND(BG57*BK56/BK50/2,0)","v":{"$error":"#N/A"}},{"$f":"ROUND(BH57*BL56/BL50/2,0)","v":{"$error":"#N/A"}}]
[null,null,55," Thottambedu ","Yerragondapalem ","Vemuru",null,null,null,null,null,null,null,null,null,null,56,{"$f":"IF(B1=1,\" \",IF(B1=2,B61,IF(B1=3,D61,IF(B1=4,E61,IF(B1=5,F61,G61)))))","v":0},null,null,56,30750,null,null,null,null,56,24200,null,null,6,{"$f":"IF(AD55=\"Applicable\",AI60,\" \")","v":" "},null," ",null,null,null,null,null,null,null,null,null,null,null,null,null,null,null,null,15500,41,15500,28450,28450,28450,null,"Total arrears",{"$f":"BG58+BG59","v":{"$error":"#N/A"}},null,null,null,null,null,null,null,"Half Pay",null,null,null,null,null,null,"HPD",null,null,"FPD",null,"HPA","FPA","DA",null,"HMA","HRA","HRA amount"]
[null,null,56,"Tirupati Rural ","Zarugumilli","Vinukonda",null,null,null,null,null,null,null,null,null,null,57,{"$f":"IF(B1=1,\" \",IF(B1=2,B62,IF(B1=3,D62,IF(B1=4,E62,IF(B1=5,F62,G62)))))","v":0},null,null,57,31550,null,null,null,null,57,24900,null,null,7,{"$f":"IF(AD55=\"Applicable\",AI61,\" \")","v":" "},null," ",null,null,null,null,null,null,null,null,null,null,null,null,null,null,null,null,15975,42,15975,29200,29200,29200,null,null,null,null,null,"Requires Analysis Toolpak",null,null,null,null,1,"2010-01-01",{"$f":"BP61","v":"2010-01-01"},{"$f":"IF(AND(MONTH(BP61)=MONTH($BG$52),YEAR(BP61)=YEAR($BG$52)),$BG$52,BP61)","v":"2010-01-01"},{"$f":"IF(AND(MONTH(BP61)=MONTH($BG$53),YEAR(BP61)=YEAR($BG$53)),$BG$53,BP61)","v":"2010-01-01"},{"$f":"IF(DAY(BR61)>1,BR61,BS61)","v":"2010-01-01"},{"$f":"IF(BT61=$BG$52,LOOKUP(BT61,$BL$28:$BL$41,$BM$28:$BM$41)-DATEDIF(BQ61,BT61,\"d\"),IF(BT61=$BG$53,DATEDIF($BK$53,$BG$53,\"d\")+1,LOOKUP(BT61,$BL$28:$BL$41,$BM$28:$BM$41)))","v":31},{"$f":"IF(AND($BG$52<=BT61,BT61<=$BG$53),BU61,0)","v":0},{"$f":"IF(BV61>0,BV61/2,BU61)","v":31},{"$f":"LOOKUP(BP61,$BL$28:$BL$41,$BM$28:$BM$41)","v":31},{"$f":"BX61-BU61","v":0},{"$f":"'SALARY TABLE'!S55","v":8385},{"$f":"ROUND(BZ61*BW61/BX61,0)","v":8385},{"$f":"IF(BY61=0,0,ROUND(BZ61*BY61/BX61,0))","v":0},0,{"$f":"ROUND(CB61*CC61,0)","v":0},{"$f":"Data!CS84","v":0},null,"HPA","FPA"]
[null,null,57,"Tirupati Urban ",null,null,null,null,null,null,null,null,null,null,null,null,58,{"$f":"IF(B1=1,\" \",IF(B1=2,B63,IF(B1=3,D63,IF(B1=4,E63,IF(B1=5,F63,G63)))))","v":0},null,null,58,32350,null,null,null,null,58,25600,null,null,8,{"$f":"IF(AD55=\"Applicable\",AI62,\" \")","v":" "},null," ",null,null,{"$f":"Z11","v":0},null,null,null,null,null,null,null,null,null,null,null,null,null,16450,43,16450,29950,29950,29950,null,null,null,null,null,null,null,null,null,null,2,"2010-02-01",{"$f":"BP62","v":"2010-02-01"},"2010-02-01","2010-02-01",{"$f":"IF(DAY(BR62)>1,BR62,BS62)","v":"2010-02-01"},28,0,{"$f":"IF(BV62>0,BV62/2,BU62)","v":28},28,{"$f":"BX62-BU62","v":0},{"$f":"'SALARY TABLE'!S56","v":15700},{"$f":"ROUND(BZ62*BW62/BX62,0)","v":15700},{"$f":"IF(BY62=0,0,ROUND(BZ62*BY62/BX62,0))","v":0},9.4159999999999994E-2,{"$f":"ROUND(CB62*CC62,0)","v":0},{"$f":"CE61","v":0}]
[null,null,58,"Vadamalapeta  ",null,null,null,null,null,null,null,null,null,null,null,null,59,{"$f":"IF(B1=1,\" \",IF(B1=2,B64,IF(B1=3,D64,IF(B1=4,E64,IF(B1=5,F64,G64)))))","v":0},null,null,59,33200,null,null,null,null,59,26300,null,null,9,{"$f":"IF(AD55=\"Applicable\",#REF!,\" \")","v":" "},null," ",10,{"$f":"LOOKUP(AI63,AI64:AI75,AJ64:AJ75)","v":" "},{"$f":"Z11","v":0},"HRA",{"$f":"Z4","v":0.1},null,null,null,null,null,"HRA %",null,null,null,null,null,16925,44,16925,30750,30750,30750,null,null,null,null,null,null,null,null,null,null,3,"2010-03-01","2010-03-01","2010-03-01","2010-03-01","2010-03-01",31,0,31,31,0,{"$f":"'SALARY TABLE'!S57","v":15700},{"$f":"ROUND(BZ63*BW63/BX63,0)","v":15700},0,{"$f":"'SALARY TABLE'!L57","v":9.4159999999999994E-2},{"$f":"ROUND(CB63*CC63,0)","v":0},{"$f":"'SALARY TABLE'!I5","v":0},{"$f":"AS64","v":0.1},{"$f":"IF(BY63=0,0,ROUND(CA63*CF63,0))","v":0},{"$f":"IF(BY63=0,0,ROUND(CB63*CF63,0))","v":0}]
[null,null,59,"Varadaiahpalem  ",null,null,null,null,null,null,null,null,null,null,null,null,60,{"$f":"IF(B1=1,\" \",IF(B1=2,B65,IF(B1=3,D65,IF(B1=4,E65,IF(B1=5,F65,G65)))))","v":0},null,null,60,34050,null,null,null,null,60,27000,null,null,10,{"$f":"IF(AD55=\"Applicable\",#REF!,\" \")","v":" "},null," ",1,{"$f":"IF($AK$62=0,\" \",AK64)","v":" "},"2010-03-01",{"$f":"'SALARY TABLE'!C5","v":15700},{"$f":"ROUND(IF(AI64>=$AI$63,$AM$63,$AK$62),0)","v":"00:00:00"},{"$f":"ROUND(IF(AI64>=$AI$63,AL64*$AK$62,AL64*$AM$63),0)","v":1570},{"$f":"$AM$63*AL64","v":1570},{"$f":"IF(AN64=0,AO64,AN64)","v":1570},{"$f":"IF($AL$57=1,ROUND(AL64*8%,0),0)","v":0},{"$f":"IF(AQ64>500,500,AQ64)","v":0},{"$f":"IF($AK$62=0,$AM$63,IF(AI64>=$AI$63,$AK$62,$AM$63))","v":0.1},null,null,null,null,null,17475,45,17475,32350,32350,32350,null,null,null,null,null,null,null,null,null,null,4,"2010-04-01","2010-04-01","2010-04-01","2010-04-01","2010-04-01",30,0,30,30,0,{"$f":"'SALARY TABLE'!S58","v":15700},15700,0,{"$f":"'SALARY TABLE'!L58","v":9.4159999999999994E-2},0,{"$f":"'SALARY TABLE'!I6","v":0},0.1,{"$f":"IF(BY64=0,0,ROUND(CA64*CF64,0))","v":0},{"$f":"IF(BY64=0,0,ROUND(CB64*CF64,0))","v":0}]
[null,null,60,"Vayalpad  ",null,null,null,null,null,null,null,null,null,null,null,null,61,{"$f":"IF(B1=1,\" \",IF(B1=2,B66,IF(B1=3,D66,IF(B1=4,E66,IF(B1=5,F66,G66)))))","v":0},null,null,61,34900,null,null,null,null,61,27750,null,null,11,{"$f":"IF(AD55=\"Applicable\",#REF!,\" \")","v":" "},null," ",2,{"$f":"IF($AK$62=0,\" \",AK65)","v":" "},"2010-04-01",{"$f":"'SALARY TABLE'!C6","v":15700},{"$f":"ROUND(IF(AI65>=$AI$63,$AM$63,$AK$62),0)","v":"00:00:00"},{"$f":"ROUND(IF(AI65>=$AI$63,AL65*$AK$62,AL65*$AM$63),0)","v":1570},1570,{"$f":"IF(AN65=0,AO65,AN65)","v":1570},{"$f":"IF($AL$57=1,ROUND(AL65*8%,0),0)","v":0},{"$f":"IF(AQ65>1000,1000,AQ65)","v":0},{"$f":"IF($AK$62=0,$AM$63,IF(AI65>=$AI$63,$AK$62,$AM$63))","v":0.1},null,null,null,null,null,18025,46,18025,33200,33200,33200,null,null,null,null,null,null,null,null,null,null,5,"2010-05-01","2010-05-01","2010-05-01","2010-05-01","2010-05-01",31,0,31,31,0,{"$f":"'SALARY TABLE'!S59","v":15700},15700,0,{"$f":"'SALARY TABLE'!L59","v":9.4159999999999994E-2},0,{"$f":"'SALARY TABLE'!I7","v":0},0.1,0,0]
[null,null,61,"Veduru Kuppam  ",null,null,null,null,null,null,null,null,null,null,null,null,62,{"$f":"IF(B1=1,\" \",IF(B1=2,B67,IF(B1=3,D67,IF(B1=4,E67,IF(B1=5,F67,G67)))))","v":0},null,null,62,35800,null,null,null,null,62,28500,null,null,12,{"$f":"IF(AD55=\"Applicable\",#REF!,\" \")","v":" "},null," ",3," ","2010-05-01",{"$f":"'SALARY TABLE'!C7","v":15700},"00:00:00",1570,1570,1570,0,0,0.1,null,null,null,null,null,18575,47,18575,34050,34050,34050,null,null,null,null,null,null,null,null,null,null,6,"2010-06-01","2010-06-01","2010-06-01","2010-06-01","2010-06-01",30,0,30,30,0,{"$f":"'SALARY TABLE'!S60","v":15700},15700,0,{"$f":"'SALARY TABLE'!L60","v":9.4159999999999994E-2},0,{"$f":"'SALARY TABLE'!I8","v":0},0.1,0,0]
[null,null,62,"Venkatagiri Kota  ",null,null,null,null,null,null,null,null,null,null,null,null,63,{"$f":"IF(B1=1,\" \",IF(B1=2,B68,IF(B1=3,D68,IF(B1=4,E68,IF(B1=5,F68,G68)))))","v":0},null,null,63,36700,null,null,null,null,63,29250,null,null,13,null,null," ",4," ","2010-06-01",{"$f":"'SALARY TABLE'!C8","v":15700},"00:00:00",1570,1570,1570,0,0,0.1,null,null,null,null,null,19125,48,19125,34900,34900,34900,null,null,null,null,null,null,null,null,null,null,7,"2010-07-01","2010-07-01","2010-07-01","2010-07-01","2010-07-01",31,0,31,31,0,{"$f":"'SALARY TABLE'!S61","v":15700},15700,0,{"$f":"'SALARY TABLE'!L61","v":0.16264000000000001},0,{"$f":"'SALARY TABLE'!I9","v":0},0.1,0,0]
[null,null,63,"Vijaya Puram  ",null,null,null,null,null,null,null,null,null,null,null,null,64,{"$f":"IF(B1=1,\" \",IF(B1=2,B69,IF(B1=3,D69,IF(B1=4,E69,IF(B1=5,F69,G69)))))","v":0},null,null,64,37600,null,null,null,null,64,30000,null,null,14,null,null," ",5," ","2010-07-01",{"$f":"'SALARY TABLE'!C9","v":15700},"00:00:00",1570,1570,1570,0,0,0.1,null,null,null,null,null,19675,49,19675,35800,35800,35800,null,null,null,null,"YEAR(A2)-YEAR(A1)-IF(OR(MONTH(A2)<MONTH…",null,null,null,null,null,8,"2010-08-01","2010-08-01","2010-08-01","2010-08-01","2010-08-01",31,0,31,31,0,{"$f":"'SALARY TABLE'!S62","v":15700},15700,0,{"$f":"'SALARY TABLE'!L62","v":0.16264000000000001},0,{"$f":"'SALARY TABLE'!I10","v":0},0.1,0,0]
[null,null,64,"Yadamari ",null,null,null,null,null,null,null,null,null,null,null,null,65,{"$f":"IF(B1=1,\" \",IF(B1=2,B70,IF(B1=3,D70,IF(B1=4,E70,IF(B1=5,F70,G70)))))","v":0},null,null,65,38570,null,null,null,null,65,30765,null,null,15,null,null," ",6," ","2010-08-01",{"$f":"'SALARY TABLE'!C10","v":15700},"00:00:00",1570,1570,1570,0,0,0.1,null,null,null,null,null,20300,50,20300,37600,37600,37600,null,null,null,null,"DAY(A2)<DAY(A1))),1,0)&\" years, \"&MONTH(A2)-MONTH(A1)+IF(AND(MONTH(A2)",null,null,null,null,null,9,"2010-09-01","2010-09-01","2010-09-01","2010-09-01","2010-09-01",30,0,30,30,0,{"$f":"'SALARY TABLE'!S63","v":15700},15700,0,{"$f":"'SALARY TABLE'!L63","v":0.16264000000000001},0,{"$f":"'SALARY TABLE'!I11","v":0},0.1,0,0]
[null,null,65,"Yerpedu ",null,null,null,null,null,null,null,null,null,null,null,null,66,{"$f":"IF(B1=1,\" \",IF(B1=2,B71,IF(B1=3,D71,IF(B1=4,E71,IF(B1=5,F71,G71)))))","v":0},null,null,66,39540,null,null,null,null,66,null,null,null,16,null,null," ",7," ","2010-09-01",{"$f":"'SALARY TABLE'!C11","v":15700},"00:00:00",1570,1570,1570,0,0,0.1,null,null,null,null,null,20925,51,20925,38570,38570,38570,null,null,null,null,"<=MONTH(A1),DAY(A2)<DAY(A1)),11,IF(AND…",null,null,null,null,null,10,"2010-10-01","2010-10-01","2010-10-01","2010-10-01","2010-10-01",31,0,31,31,0,{"$f":"'SALARY TABLE'!S64","v":15700},15700,0,{"$f":"'SALARY TABLE'!L64","v":0.16264000000000001},0,{"$f":"'SALARY TABLE'!I12","v":0},0.1,0,0]
[null,null,66,"Yerravaripalem",null,null,null,null,null,null,null,null,null,null,null,null,null,null,null,null,67,40510,null,null,null,null,67,null,null,null,17,null,null," ",8," ","2010-10-01",{"$f":"'SALARY TABLE'!C12","v":15700},"00:00:00",1570,1570,1570,0,0,0.1,null,null,null,null,null,21550,52,21550,39540,39540,39540,null,null,null,null,">=DAY(A1)),12,IF(AND(MONTH(A2)>MONTH(A… months,",null,null,null,null,null,11,"2010-11-01","2010-11-01","2010-11-01","2010-11-01","2010-11-01",30,0,30,30,0,{"$f":"'SALARY TABLE'!S65","v":16150},16150,0,{"$f":"'SALARY TABLE'!L65","v":0.16264000000000001},0,{"$f":"'SALARY TABLE'!I13","v":0},0.1,0,0]
[null,null,null,null,null,null,null,null,null,null,null,null,null,null,null,null,null,null,null,null,68,41550,null,null,null,null,68,null,null,null,18,null,null," ",9," ","2010-11-01",{"$f":"'SALARY TABLE'!C13","v":16150},"00:00:00",1615,1615,1615,0,0,0.1,null,null,null,null,null,22175,53,22175,40510,40510,40510,null,null,null,null,"\"&A2-DATE(YEAR(A2),MONTH(A2)-IF(DAY(A2… days\"",null,null,null,null,null,12,"2010-12-01","2010-12-01","2010-12-01","2010-12-01","2010-12-01",31,0,31,31,0,{"$f":"'SALARY TABLE'!S66","v":16150},16150,0,{"$f":"'SALARY TABLE'!L66","v":0.16264000000000001},0,{"$f":"'SALARY TABLE'!I14","v":0},0.1,0,0]
[null,null,null,null,null,null,null,null,null,null,null,null,null,null,null,null,null,null,null,null,69,42590,null,null,null,null,69,null,null,null,19,null,null," ",10," ","2010-12-01",{"$f":"'SALARY TABLE'!C14","v":16150},"00:00:00",0,1615,1615,0,0,0.1,null,null,null,null,null,22800,54,22800,41550,41550,41550,null,null,null,null,null,null,null,null,null,null,13,"2011-01-01","2011-01-01","2011-01-01","2011-01-01","2011-01-01",31,0,31,31,0,{"$f":"'SALARY TABLE'!S67","v":16150},16150,0,{"$f":"'SALARY TABLE'!L67","v":0.24823999999999999},0,{"$f":"'SALARY TABLE'!I15","v":0},0.1,0,0]
[null,null,null,null,null,null,null,null,null,null,null,null,null,null,null,null,null,null,null,null,70,43630,null,null,null,null,70,null,null,null,20,null,null," ",11," ","2011-01-01",{"$f":"'SALARY TABLE'!C15","v":16150},"00:00:00",0,1615,1615,0,0,0.1,null,null,null,null,null,23500,55,23500,43630,43630,43630,null,null,null,null,null,null,null,null,null,null,14,"2011-02-01","2011-02-01","2011-02-01","2011-02-01","2011-02-01",28,0,28,28,0,{"$f":"'SALARY TABLE'!S68","v":16150},16150,0,{"$f":"'SALARY TABLE'!L68","v":0.24823999999999999},0,{"$f":"'SALARY TABLE'!I16","v":0},0.1,0,0]
[null,null,null,null,null,null,null,null,null,null,null,null,null,null,null,null,null,null,null,null,71,44740,null,null,null,null,71,null,null,null,21,null,null," ",12," ","2011-02-01",{"$f":"'SALARY TABLE'!C16","v":16150},"00:00:00",0,1615,1615,0,0,0.1,null,null,null,null,null,24200,56,24200,44740,44740,44740,null,null,null,null,null,null,null,null,null,null,null,null,null,null,null,null,null,null,null,"Half PayArrears",null,null,null,{"$f":"SUM(CB61:CB74)","v":0},"DA",{"$f":"SUM(CD61:CD74)","v":0},"HRA",null,{"$f":"SUM(CG62:CG74)","v":0},{"$f":"SUM(CH62:CH74)","v":0}]
[null,null,null,null,null,null,null,null,null,null,null,null,null,null,null,null,null,null,null,null,72,45850,null,null,null,null,72,null,null,null,22,null,null,{"$f":"IF(AH54=\"Applicable\",AC49,\" \")","v":" "},null,null,null,null,null,null,null,null,null,null,null,null,null,null,null,null,24900,57,24900,45850,45850,45850,null,null,null,null,{"$f":"IF(OR(MONTH(BG53)<MONTH(BG52),\nDAY(BG53)<DAY(BG52)),1,0)","v":0}]
[null,null,null,null,null,null,null,null,null,null,null,null,null,null,null,null,null,null,null,null,73,46960,null,null,null,null,73,null,null,null,23,null,null,{"$f":"IF(AH55=\"Applicable\",AC50,\" \")","v":" "},null,null,null,null,null,null,null,null,null,null,null,null,null,null,null,null,25600,58,25600,46960,46960,46960]
[null,null,null,null,null,null,null,null,null,null,null,null,null,null,null,null,null,null,null,null,74,48160,null,null,null,null,null,null,null,null,24,null,null,{"$f":"IF(AH56=\"Applicable\",AC51,\" \")","v":" "},null,null,null,null,null,null,null,null,null,null,null,null,null,null,null,null,26300,59,26300,48160,48160,48160]
[null,null,null,null,null,null,null,null,null,null,null,null,null,null,null,null,null,null,null,null,75,49360,null,null,null,null,null,null,null,null,25,null,null,{"$f":"IF(AH57=\"Applicable\",AC52,\" \")","v":" "},null,null,null,null,null,null,null,null,null,null,null,null,null,null,null,null,27000,60,27000,49360,49360,49360]
[null,null,null,null,null,null,null,null,null,null,null,null,null,null,null,null,null,null,null,null,76,50560,null,null,null,null,null,null,null,null,26,null,null,null,null,null,null,null,null,null,null,null,null,null,null,null,null,null,null,null,27750,61,null,50560,50560,50560]
[null,null,null,null,null,null,null,null,null,null,null,null,null,null,null,null,null,null,null,null,77,51760,null,null,null,null,null,null,null,null,27,null,null,null,null,null,null,null,null,null,null,null,null,null,null,null,null,null,null,null,28500,62,null,51760,51760,51760]
[null,null,null,null,null,null,null,null,null,null,null,null,null,null,null,null,null,null,null,null,78,53060,null,null,null,null,null,null,null,null,28,null,null,null,null,null,null,null,null,null,null,null,null,null,null,null,null,null,null,null,29250,63,null,53060,53060,53060]
[null,null,null,null,null,null,null,null,null,null,null,null,null,null,null,null,null,null,null,null,79,54360,null,null,null,null,null,null,null,null,29,null,null,null,null,null,null,null,null,null,null,null,null,null,null,null,null,null,null,null,30000,64,null,55660,55660,55660]
[null,null,null,null,null,null,null,null,null,null,null,null,null,null,null,null,null,null,null,null,80,55660,null,null,null,null,null,null,null,null,30,null,null,null,null,null,null,null,null,null,null,null,null,null,null,null,null,null,null,null,30765,65,null,56960,56960,56960]
[null,null,null,null,null,null,null,null,null,null,null,null,null,null,null,null,null,null,null,null,null,null,null,null,null,null,null,null,null,null,31,null,null,null,null,null,null,null,null,null,null,null,null,null,null,null,null,null,null,null,null,null,null,null,null,null,null,null,null,null,null,null,null,null,null,null,null,null,{"$f":"CELL(\"filename\")","v":"C:\\Documents and Settings\\Happy Home\\My Documents\\Downloads\\[INCOME TAX 2010-11 (1).xlsm]Data"}]
[]
[]
[null,null,null,6700,6900,7100,7300,7520,7740,7960,8200,8440,8680,8940,9200,9460,9740,10020,10300,10600,10900,11200,11530,11860,12190,12550,12910,13270,13660,14050,14440,14860,15280,15700,16150,16600,17050,17540,18030,18520,19050,19580,20110,20680,21250,21820,22430,23040,23650,24300,24950,25600,26300,27000,27700,28450,29200,29950,30750,31550,32350,33200,34050,34900,35800,36700,37600,38570,39540,40510,41550,42590,43630,44740,45850,46960,48160,49360,50560,51760,53060,54360,55660]
[null,null,null,6900,7100,7300,7520,7740,7960,8200,8440,8680,8940,9200,9460,9740,10020,10300,10600,10900,11200,11530,11860,12190,12550,12910,13270,13660,14050,14440,14860,15280,15700,16150,16600,17050,17540,18030,18520,19050,19580,20110,20680,21250,21820,22430,23040,23650,24300,24950,25600,26300,27000,27700,28450,29200,29950,30750,31550,32350,33200,34050,34900,35800,36700,37600,38570,39540,40510,41550,42590,43630,44740,45850,46960,48160,49360,50560,51760,53060,54360,55660,56960]
[]
[]
[]
[]
[null,null,null,null,null,null,null,null,null,null,null,null,null,null,null,{"$f":"IF(A5=I,HLOOKUP(Code!W3,Code!D88:CE89,2,Code!D89:CE89),'SALARY TABLE'!C5)","v":15700}]
[null,null,null,null,null,null,null,null,null,null,null,null,null,null,null,{"$f":"HLOOKUP(W3,D88:CE89,2,D89:CE89)","v":16150},null,null,null,null,null,null,null,null,null,null,null,null,null,null,null,null,null,null,null,null,null,null,null,null,null,null,null,null,null,null,null,null,null,null,null,null,null,null,null,null,null,null,null,null,null,null,null,null,null,null,"Loss of pay",null,null,null,null,null,null,"LPD",null,null,"FPD",null,"LPA","FPA","DA",null,"HMA",{"$f":"CF60","v":"HRA"},"HRA amount"]
[null,null,null,null,null,null,null,null,null,null,null,null,null,null,null,{"$f":"HLOOKUP(Code!W3,Code!D88:CE89,2,Code!D89:CE89)","v":16150},null,null,null,null,null,null,null,null,null,null,null,2,{"$f":"LOOKUP(AB96,AB97:AB98,AC97:AC98)","v":"Not Applicale"},null,null,null,null,null,null,null,null,null,null,null,null,null,null,null,null,null,null,null,null,null,null,null,null,null,null,null,null,null,null,null,null,null,null,null,null,null,1,"2010-01-01",{"$f":"BP96","v":"2010-01-01"},{"$f":"IF(AND(MONTH(BP96)=MONTH($BH$52),YEAR(BP96)=YEAR($BH$52)),$BH$52,BP96)","v":"2010-01-01"},{"$f":"IF(AND(MONTH(BP96)=MONTH($BH$53),YEAR(BP96)=YEAR($BH$53)),$BH$53,BP96)","v":"2010-01-01"},{"$f":"IF(DAY(BR96)>1,BR96,BS96)","v":"2010-01-01"},{"$f":"IF(BT96=$BH$52,LOOKUP(BT96,$BL$28:$BL$41,$BM$28:$BM$41)-DATEDIF(BQ96,BT96,\"d\"),IF(BT96=$BH$53,DATEDIF($BL$53,$BH$53,\"d\")+1,LOOKUP(BT96,$BL$28:$BL$41,$BM$28:$BM$41)))","v":31},{"$f":"IF(AND($BH$52<=BT96,BT96<=$BH$53),BU96,0)","v":0},{"$f":"IF(BV96>0,0,BU96)","v":31},{"$f":"LOOKUP(BP96,$BL$28:$BL$41,$BM$28:$BM$41)","v":31},{"$f":"BX96-BU96","v":0},{"$f":"CA61","v":8385},{"$f":"ROUND(BZ96*BW96/BX96,0)","v":8385},{"$f":"IF(BY96=0,0,ROUND(BZ96*BY96/BX96,0))","v":0},0,{"$f":"ROUND(CB96*CC96,0)","v":0},{"$f":"Data!CS119","v":0},0,"LPA"]
[null,null,null,null,null,null,null,null,null,null,null,null,null,null,null,null,null,null,null,null,null,null,null,null,null,null,null,1,"Applicable",null,null,null,null,null,null,null,null,null,null,null,null,null,null,null,null,null,null,null,null,null,null,null,null,null,null,null,null,null,null,null,null,null,null,null,null,null,2,"2010-02-01",{"$f":"BP97","v":"2010-02-01"},{"$f":"IF(AND(MONTH(BP97)=MONTH($BH$52),YEAR(BP97)=YEAR($BH$52)),$BH$52,BP97)","v":"2010-02-01"},{"$f":"IF(AND(MONTH(BP97)=MONTH($BH$53),YEAR(BP97)=YEAR($BH$53)),$BH$53,BP97)","v":"2010-02-01"},{"$f":"IF(DAY(BR97)>1,BR97,BS97)","v":"2010-02-01"},{"$f":"IF(BT97=$BH$52,LOOKUP(BT97,$BL$28:$BL$41,$BM$28:$BM$41)-DATEDIF(BQ97,BT97,\"d\"),IF(BT97=$BH$53,DATEDIF($BL$53,$BH$53,\"d\")+1,LOOKUP(BT97,$BL$28:$BL$41,$BM$28:$BM$41)))","v":28},{"$f":"IF(AND($BH$52<=BT97,BT97<=$BH$53),BU97,0)","v":0},{"$f":"IF(BV97>0,0,BU97)","v":28},28,{"$f":"BX97-BU97","v":0},15700,{"$f":"ROUND(BZ97*BW97/BX97,0)","v":15700},{"$f":"IF(BY97=0,0,ROUND(BZ97*BY97/BX97,0))","v":0},{"$f":"CC62","v":9.4159999999999994E-2},{"$f":"ROUND(CB97*CC97,0)","v":0},{"$f":"CE96","v":0},0,0,0]
[null,null,null,null,null,null,null,null,null,null,null,null,null,null,null,null,null,null,null,null,null,"gender","Tax Amount",null,null,null,null,2,"Not Applicale",null,null,null,null,null,null,null,null,null,null,null,null,null,null,null,null,null,null,null,null,null,null,null,null,null,null,null,null,null,null,null,null,null,null,null,null,null,3,"2010-03-01","2010-03-01","2010-03-01","2010-03-01","2010-03-01",31,0,31,31,0,15700,15700,0,9.4159999999999994E-2,{"$f":"ROUND(CB98*CC98,0)","v":0},{"$f":"'SALARY TABLE'!I42","v":0},0.1,{"$f":"IF(BY98=0,0,ROUND(CB98*CF98,0))","v":0},0]
[null,null,null,"DESIGNATION",null,40,{"$f":"LOOKUP(F99,D100:D152,E100:E152)","v":"School Assistant (Maths)"},null,null,null,null,null,null,null,null,{"$f":"IF(A5=I,HLOOKUP(Code!W3,Code!D88:CE89,2,Code!D89:CE89),'SALARY TABLE'!C5)","v":15700},null,null,null,null,null,{"$f":"code2!G4","v":1},{"$f":"'INCOME TAX'!$J$66","v":225963},{"$f":"'INCOME TAX'!J55","v":225963},{"$f":"VLOOKUP(V99,AE102:AF104,2)","v":160000},{"$f":"W99-Y99","v":65963},null,null,null,null,null,null,null,null,null,null,null,null,null,null,null,null,null,null,null,null,null,null,null,null,null,null,null,null,null,null,null,null,null,null,null,null,null,null,null,null,4,"2010-04-01","2010-04-01","2010-04-01","2010-04-01","2010-04-01",30,0,30,30,0,15700,15700,0,9.4159999999999994E-2,0,{"$f":"'SALARY TABLE'!I43","v":0},0.1,{"$f":"IF(BY99=0,0,ROUND(CB99*CF99,0))","v":0},0]
[null,null,null,1,"Assistant Director",null,null,null,null,null,null,null,null,null,null,null,null,null,null,null,null,null,null,null,null,null,null,null,null,null,null,null,null,null,null,null,null,null,null,null,null,null,null,null,null,null,null,null,null,null,null,null,null,null,null,null,null,null,null,null,null,null,null,null,null,null,5,"2010-05-01","2010-05-01","2010-05-01","2010-05-01","2010-05-01",31,0,31,31,0,15700,15700,0,9.4159999999999994E-2,0,{"$f":"'SALARY TABLE'!I44","v":0},0.1,0,0]
[null,null,null,2,"Assistant Engineer",null,null,null,null,null,null,null,null,null,null,null,null,null,null,null,null,"Annual Income",null,1,2,3,1,null,null,null,null,null,null,null,null,null,null,null,null,null,null,null,null,null,null,null,null,null,null,null,null,null,null,null,null,null,null,null,null,null,null,null,null,null,null,null,6,"2010-06-01","2010-06-01","2010-06-01","2010-06-01","2010-06-01",30,0,30,30,0,15700,15700,0,9.4159999999999994E-2,0,{"$f":"'SALARY TABLE'!I45","v":0},0.1,0,0]
[null,null,null,3,"Asst. Commissioner for Govt. Exams",null,null,null,null,null,null,null,null,null,null,null,null,null,null,null,null,0,160000,0,0,0,2,{"$f":"ROUND(IF(AND($W$99>V102,$W$99<W102),HLOOKUP($V$99,$X$101:$Z$107,AA102)*$Z$99,0),0)","v":0},null,{"$f":"AND($W$99>V102,$W$99<W102)","v":false},1,160000,null,{"$f":"HLOOKUP($V$99,$X$101:$Z$107,AA105)","v":0.1},null,null,null,null,null,null,null,null,null,null,null,null,null,null,null,null,null,null,null,null,null,null,null,null,null,null,null,null,null,null,null,null,7,"2010-07-01","2010-07-01","2010-07-01","2010-07-01","2010-07-01",31,0,31,31,0,15700,15700,0,0.16264000000000001,0,{"$f":"'SALARY TABLE'!I46","v":0},0.1,0,0]
[null,null,null,4,"Asst. Section Officer",null,null,null,null,null,null,null,null,null,null,null,null,null,null,null,null,160001,190000,0.1,null,0,3,0,null,false,2,190000,{"$f":"HLOOKUP($V$99,$X$101:$Z$107,AA105)-VLOOKUP(V99,AE102:AF104,2)","v":-159999.9},null,null,null,null,null,null,null,null,null,null,null,null,null,null,null,null,null,null,null,null,null,null,null,null,null,null,null,null,null,null,null,null,null,8,"2010-08-01","2010-08-01","2010-08-01","2010-08-01","2010-08-01",31,0,31,31,0,15700,15700,0,0.16264000000000001,0,{"$f":"'SALARY TABLE'!I47","v":0},0.1,0,0]
[null,null,null,5,"Asst. Statistical Officer",null,null,null,null,null,null,null,null,null,null,null,null,null,null,null,null,190001,240000,0.1,0.1,0,4,6596,null,true,3,240000,null,null,null,null,null,null,null,null,null,null,null,null,null,null,null,null,null,null,null,null,null,null,null,null,null,null,null,null,null,null,null,null,null,null,9,"2010-09-01","2010-09-01","2010-09-01","2010-09-01","2010-09-01",30,0,30,30,0,15700,15700,0,0.16264000000000001,0,{"$f":"'SALARY TABLE'!H48","v":7960},0.1,0,0]
[null,null,null,6,"Auditor",null,null,null,null,null,null,null,null,null,null,null,null,null,null,null,null,240001,500000,0.1,0.1,0.1,5,0,{"$f":"HLOOKUP($V$99,$X$101:$Z$107,AA105)","v":0.1},false,null,null,null,null,null,null,null,null,null,null,null,null,null,null,null,null,null,null,null,null,null,null,null,null,null,null,null,null,null,null,null,null,null,null,null,null,10,"2010-10-01","2010-10-01","2010-10-01","2010-10-01","2010-10-01",31,0,31,31,0,15700,15700,0,0.16264000000000001,0,{"$f":"'SALARY TABLE'!H49","v":8200},0.1,0,0]
[null,null,null,7,"Cashier",null,null,null,null,null,null,null,null,null,null,null,null,null,null,null,null,500001,800000,0.2,0.2,0.2,6,0,null,false,null,null,null,null,null,null,null,null,null,null,null,null,null,null,null,null,null,null,null,null,null,null,null,null,null,null,null,null,null,null,null,null,null,null,null,null,11,"2010-11-01","2010-11-01","2010-11-01","2010-11-01","2010-11-01",30,0,30,30,0,16150,16150,0,0.16264000000000001,0,{"$f":"'SALARY TABLE'!I50","v":0},0.1,0,0]
[null,null,null,8,"Deputy Director",null,null,null,null,null,null,null,null,null,null,null,null,null,null,null,null,800000,null,0.3,0.3,0.3,7,0,null,false,null,null,null,null,null,null,null,null,null,null,null,null,null,null,null,null,null,null,null,null,null,null,null,null,null,null,null,null,null,null,null,null,null,null,null,null,12,"2010-12-01","2010-12-01","2010-12-01","2010-12-01","2010-12-01",31,{"$f":"IF(AND($BH$52<=BT107,BT107<=$BH$53),BU107,0)","v":0},31,31,0,16150,16150,0,0.16264000000000001,{"$f":"ROUND(CB107*CC107,0)","v":0},{"$f":"'SALARY TABLE'!I51","v":0},0.1,0,0]
[null,null,null,9,"Deputy Educational Officer",null,null,null,null,null,null,null,null,null,null,null,null,null,null,null,null,null,null,null,null,null,null,{"$f":"SUM(AB102:AB107)","v":6596},null,null,null,null,null,null,null,null,null,null,null,null,null,null,null,null,null,null,null,null,null,null,null,null,null,null,null,null,null,null,null,null,null,null,null,null,null,null,13,"2011-01-01","2011-01-01","2011-01-01","2011-01-01","2011-01-01",31,0,31,31,0,16150,16150,0,0.24823999999999999,0,{"$f":"'SALARY TABLE'!I52","v":0},0.1,0,0]
[null,null,null,10,"Deputy Inspector of Schools",null,null,null,null,null,null,null,null,null,null,null,null,null,null,null,null,null,null,null,null,null,null,null,null,null,null,null,null,null,null,null,null,null,null,null,null,null,null,null,null,null,null,null,null,null,null,null,null,null,null,null,null,null,null,null,null,null,null,null,null,null,14,"2011-02-01","2011-02-01","2011-02-01","2011-02-01","2011-02-01",28,0,28,28,0,16150,16150,0,0.24823999999999999,0,{"$f":"'SALARY TABLE'!I53","v":"1 incre"},0.1,0,0]
[null,null,null,11,"District B.C. Welfare Officer",null,null,null,null,null,null,null,null,null,null,null,null,null,null,null,null,"Reader allowance",null,null,"SCA",1,null,null,null,null,null,null,null,null,null,null,null,null,null,null,null,null,null,null,null,null,null,null,null,null,null,null,null,null,null,null,null,null,null,null,null,null,null,null,null,null,null,null,null,null,null,null,null,null,null,"Half PayArrears",null,null,null,{"$f":"SUM(CB96:CB109)","v":0},"DA",{"$f":"SUM(CD96:CD109)","v":0},"HRA",null,{"$f":"SUM(CG98:CG109)","v":0}]
[null,null,null,12,"District Educational Officer",null,null,null,null,null,null,null,null,null,null,null,null,null,null,null,null,1,{"$f":"LOOKUP(V111,V112:W115,W112:W115)","v":"Not Applicable"},1,"Not Applicable",{"$f":"LOOKUP(Z110,X111:Y114,Y111:Y114)","v":"Not Applicable"}]
[null,null,null,13,"District Tribal Welfare Officer",null,null,null,null,null,null,null,null,null,null,null,null,null,null,null,null,1,"Not Applicable",2,"Non-Mandals"]
[null,null,null,14,"Divisional Engineer",null,null,null,null,null,null,null,null,null,null,null,null,null,null,null,null,2,400,3,"Mandals"]
[null,null,null,15,"Executive Engineer",null,null,null,null,null,null,null,null,null,null,null,null,null,null,null,null,3,500,4,"Hills / Hill Tops",null,null,null,null,null,null,null,null,null,null,null,null,null,null,null,null,null,null,null,null,null,null,null,null,null,null,null,null,null,null,null,null,null,null,null,null,null,null,null,null,null,null,null,null,null,null,null,{"$f":"$Z$4","v":0.1}]
[null,null,null,16,"Gazetted H.M. Gr-I ",null,null,null,null,null,null,null,null,null,null,null,null,null,null,null,null,4,600,null,null,null,null,null,null,null,null,null,null,null,null,null,null,null,null,null,null,null,null,null,null,null,null,null,null,null,null,null,null,null,null,null,null,null,null,null,null,null,null,null,null,null,"PT",null,null,"Basic Pay","DA %","DA","HRA","HMA","AI",{"$f":"'SALARY TABLE'!M4","v":"PP/Special pay"},{"$f":"'SALARY TABLE'!N4","v":"FPI"},{"$f":"'SALARY TABLE'!P4","v":"CA\n(PHA)"},"Total","PT"]
[null,null,null,17,"Gazetted H.M. Gr-II ",null,null,null,null,null,null,null,null,null,null,null,null,null,null,null,null,null,null,null,null,null,null,null,null,null,null,null,null,null,null,null,null,null,null,null,null,null,null,null,null,null,null,null,null,null,null,null,null,null,null,null,null,null,null,null,null,null,null,null,null,null,1,"2010-01-01",{"$f":"BP116","v":"2010-01-01"},{"$f":"'SALARY TABLE'!S55","v":8385},{"$f":"'SALARY TABLE'!L55","v":"00:00:00"},{"$f":"ROUND(BR116*BS116,0)","v":0},{"$f":"$BU$114*BR116","v":838.5},{"$f":"Data!$U$24","v":0},{"$f":"Data!$U$20","v":0},{"$f":"Data!$U$21","v":0},{"$f":"Data!$U$22","v":0},null,{"$f":"SUM(BT116:BZ116)+BR116","v":9223.5},{"$f":"IF(CA116>20000,200,IF(CA116>15000,150,IF(CA116>10000,100,IF(CA116>6000,80,IF(CA116>5000,60,IF(CA116>4000,45,IF(CA116>3000,35,IF(CA116>2000,25,0))))))))","v":80}]
[null,null,null,18,"Joint Director",null,null,null,null,null,null,null,null,null,null,null,null,null,null,null,null,null,null,null,null,null,null,null,null,null,null,null,null,null,null,null,null,null,null,null,null,null,null,null,null,null,null,null,null,null,null,null,null,null,null,null,null,null,null,null,null,null,null,null,null,null,2,"2010-02-01",{"$f":"BP117","v":"2010-02-01"},{"$f":"'SALARY TABLE'!S56","v":15700},{"$f":"'SALARY TABLE'!L56","v":"00:00:00"},{"$f":"ROUND(BR117*BS117,0)","v":0},{"$f":"$BU$114*BR117","v":1570},{"$f":"Data!$U$24","v":0},{"$f":"Data!$U$20","v":0},{"$f":"Data!$U$21","v":0},{"$f":"Data!$U$22","v":0},null,{"$f":"SUM(BT117:BZ117)+BR117","v":17270},{"$f":"IF(CA117>20000,200,IF(CA117>15000,150,IF(CA117>10000,100,IF(CA117>6000,80,IF(CA117>5000,60,IF(CA117>4000,45,IF(CA117>3000,35,IF(CA117>2000,25,0))))))))","v":150}]
[null,null,null,19,"Junior Assistant",null,null,null,null,null,null,null,null,null,null,null,null,null,null,null,null,"SCA",null,null,null,null,null,2,null,null,null,null,null,null,null,null,null,null,null,null,null,null,null,null,null,null,null,null,null,null,null,null,null,null,null,null,null,null,null,null,null,null,null,null,null,null,3,"2010-03-01","2010-03-01",{"$f":"'SALARY TABLE'!S57","v":15700},{"$f":"'SALARY TABLE'!L57","v":"02:15:35.424"},{"$f":"ROUND(BR118*BS118,0)","v":1478},1570,{"$f":"Data!$U$24","v":0},{"$f":"Data!$U$20","v":0},{"$f":"Data!$U$21","v":0},{"$f":"Data!$U$22","v":0},{"$f":"'SALARY TABLE'!P5","v":0},18748,150]
[null,null,null,20,"Junior Lecturer",null,null,null,null,null,null,null,null,null,null,null,null,null,null,null,null,{"$f":"Z110","v":1},null,{"$f":"'INCOME TAX'!J75","v":0},{"$f":"VLOOKUP(V119,AE122:AF124,2)","v":0},{"$f":"X119-Y119","v":0},null,"SCA",null,null,null,null,null,null,null,null,null,null,null,null,null,null,null,null,null,null,null,null,null,null,null,null,null,null,null,null,null,null,null,null,null,null,null,null,null,null,4,"2010-04-01","2010-04-01",{"$f":"'SALARY TABLE'!S58","v":15700},{"$f":"'SALARY TABLE'!L58","v":"02:15:35.424"},1478,1570,{"$f":"Data!$U$24","v":0},{"$f":"Data!$U$20","v":0},{"$f":"Data!$U$21","v":0},{"$f":"Data!$U$22","v":0},{"$f":"'SALARY TABLE'!P6","v":0},18748,150]
[null,null,null,21,"L.F.L. Head Master",null,null,null,null,null,null,null,null,null,null,null,null,null,null,null,null,null,null,null,null,null,null,null,null,null,null,null,null,null,null,null,null,null,null,null,null,null,null,null,null,null,null,null,null,null,null,null,null,null,null,null,null,null,null,null,null,null,null,null,null,null,5,"2010-05-01","2010-05-01",{"$f":"'SALARY TABLE'!S59","v":15700},{"$f":"'SALARY TABLE'!L59","v":"02:15:35.424"},1478,1570,{"$f":"Data!$U$24","v":0},{"$f":"Data!$U$20","v":0},{"$f":"Data!$U$21","v":0},{"$f":"Data!$U$22","v":0},{"$f":"'SALARY TABLE'!P7","v":0},18748,150]
[null,null,null,22,"L.F.L. Head Mistress",null,null,null,null,null,null,null,null,null,null,null,null,null,null,null,null,"Basic Pay",null,2,3,4,1,null,{"$f":"'SALARY TABLE'!C5","v":15700},{"$f":"IF(AND(AC121>=$V$122,AC121<=$W$122),HLOOKUP($V$119,$X$121:$Z$127,$AA$122),IF(AND(AC121>=$V$123,AC121<=$W$123),HLOOKUP($V$119,$X$121:$Z$127,$AA$123),IF(AND(AC121>=$V$124,AC121<=$W$124),HLOOKUP($V$119,$X$121:$Z$127,$AA$124),IF(AND(AC121>=$V$125,AC121<=$W$125),HLOOKUP($V$119,$X$121:$Z$127,$AA$125),IF(AND(AC121>=$V$126,AC121<=$W$126),HLOOKUP($V$119,$X$121:$Z$127,$AA$126),IF(AND(AC121>=$V$127,AC121<=$W$127),HLOOKUP($V$119,$X$121:$Z$127,$AA$127),0))))))","v":{"$error":"#N/A"}},{"$f":"IF($V$119=1,0,AD121)","v":0},null,null,null,null,null,null,null,null,null,null,null,null,null,null,null,null,null,null,null,null,null,null,null,null,null,null,null,null,null,null,null,null,null,null,null,6,"2010-06-01","2010-06-01",{"$f":"'SALARY TABLE'!S60","v":15700},{"$f":"'SALARY TABLE'!L60","v":"02:15:35.424"},1478,1570,{"$f":"Data!$U$24","v":0},{"$f":"Data!$U$20","v":0},{"$f":"Data!$U$21","v":0},{"$f":"Data!$U$22","v":0},{"$f":"'SALARY TABLE'!P8","v":0},18748,150]
[null,null,null,23,"Language Pandit",null,null,null,null,null,null,null,null,null,null,null,null,null,null,null,null,0,10600,325,400,475,2,{"$f":"ROUND(IF(AND($AC$121>=V122,$AC$121<=W122),HLOOKUP($V$119,$X$121:$Z$127,AA122),0),0)","v":0},{"$f":"'SALARY TABLE'!C6","v":15700},{"$f":"IF(AND(AC122>=$V$122,AC122<=$W$122),HLOOKUP($V$119,$X$121:$Z$127,$AA$122),IF(AND(AC122>=$V$123,AC122<=$W$123),HLOOKUP($V$119,$X$121:$Z$127,$AA$123),IF(AND(AC122>=$V$124,AC122<=$W$124),HLOOKUP($V$119,$X$121:$Z$127,$AA$124),IF(AND(AC122>=$V$125,AC122<=$W$125),HLOOKUP($V$119,$X$121:$Z$127,$AA$125),IF(AND(AC122>=$V$126,AC122<=$W$126),HLOOKUP($V$119,$X$121:$Z$127,$AA$126),IF(AND(AC122>=$V$127,AC122<=$W$127),HLOOKUP($V$119,$X$121:$Z$127,$AA$127),0))))))","v":{"$error":"#N/A"}},{"$f":"IF($V$119=1,0,AD122)","v":0},null,null,null,null,null,null,null,null,null,null,null,null,null,null,null,null,null,null,null,null,null,null,null,null,null,null,null,null,null,null,null,null,null,null,null,7,"2010-07-01","2010-07-01",{"$f":"'SALARY TABLE'!S61","v":15700},{"$f":"'SALARY TABLE'!L61","v":"03:54:12.096"},2553,1570,{"$f":"Data!$U$24","v":0},{"$f":"Data!$U$20","v":0},{"$f":"Data!$U$21","v":0},{"$f":"Data!$U$22","v":0},{"$f":"'SALARY TABLE'!P9","v":0},19823,150]
[null,null,null,24,"Language Pandit (Hindi)",null,null,null,null,null,null,null,null,null,null,null,null,null,null,null,null,10601,13660,400,475,550,3,{"$f":"ROUND(IF(AND($AC$121>=V123,$AC$121<=W123),HLOOKUP($V$119,$X$121:$Z$127,AA123),0),0)","v":0},{"$f":"'SALARY TABLE'!C7","v":15700},{"$error":"#N/A"},0,null,null,null,null,null,null,null,null,null,null,null,null,null,null,null,null,null,null,null,null,null,null,null,null,null,null,null,null,null,null,null,null,null,null,null,8,"2010-08-01","2010-08-01",{"$f":"'SALARY TABLE'!S62","v":15700},{"$f":"'SALARY TABLE'!L62","v":"03:54:12.096"},2553,1570,{"$f":"Data!$U$24","v":0},{"$f":"Data!$U$20","v":0},{"$f":"Data!$U$21","v":0},{"$f":"Data!$U$22","v":0},{"$f":"'SALARY TABLE'!P10","v":0},19823,150]
[null,null,null,25,"Language Pandit (Sanskrit)",null,null,null,null,null,null,null,null,null,null,null,null,null,null,null,null,13661,17050,475,575,625,4,{"$f":"ROUND(IF(AND($AC$121>V124,$AC$121<W124),HLOOKUP($V$119,$X$121:$Z$127,AA124),0),0)","v":{"$error":"#N/A"}},{"$f":"'SALARY TABLE'!C8","v":15700},{"$error":"#N/A"},0,null,null,null,null,null,null,null,null,null,null,null,null,null,null,null,null,null,null,null,null,null,null,null,null,null,null,null,null,null,null,null,null,null,null,null,9,"2010-09-01","2010-09-01",{"$f":"'SALARY TABLE'!S63","v":15700},{"$f":"'SALARY TABLE'!L63","v":"03:54:12.096"},2553,1570,{"$f":"Data!$U$24","v":0},{"$f":"Data!$U$20","v":0},{"$f":"Data!$U$21","v":0},{"$f":"Data!$U$22","v":0},{"$f":"'SALARY TABLE'!P11","v":0},19823,150]
[null,null,null,26,"Language Pandit (Tamil)",null,null,null,null,null,null,null,null,null,null,null,null,null,null,null,null,17051,21250,575,625,700,5,0,{"$f":"'SALARY TABLE'!C9","v":15700},{"$error":"#N/A"},0,null,null,null,null,null,null,null,null,null,null,null,null,null,null,null,null,null,null,null,null,null,null,null,null,null,null,null,null,null,null,null,null,null,null,null,10,"2010-10-01","2010-10-01",{"$f":"'SALARY TABLE'!S64","v":15700},{"$f":"'SALARY TABLE'!L64","v":"03:54:12.096"},2553,1570,{"$f":"Data!$U$24","v":0},{"$f":"Data!$U$20","v":0},{"$f":"Data!$U$21","v":0},{"$f":"Data!$U$22","v":0},{"$f":"'SALARY TABLE'!P12","v":0},19823,150]
[null,null,null,27,"Language Pandit (Telugu)",null,null,null,null,null,null,null,null,null,null,null,null,null,null,null,null,21251,28450,625,675,775,6,0,{"$f":"'SALARY TABLE'!C10","v":15700},{"$error":"#N/A"},0,null,null,null,null,null,null,null,null,null,null,null,null,null,null,null,null,null,null,null,null,null,null,null,null,null,null,null,null,null,null,null,null,null,null,null,11,"2010-11-01","2010-11-01",{"$f":"'SALARY TABLE'!S65","v":16150},{"$f":"'SALARY TABLE'!L65","v":"03:54:12.096"},2627,1615,{"$f":"Data!$U$24","v":0},{"$f":"Data!$U$20","v":0},{"$f":"Data!$U$21","v":0},{"$f":"Data!$U$22","v":0},{"$f":"'SALARY TABLE'!P13","v":0},20392,200]
[null,null,null,28,"Language Pandit (Urdu)",null,null,null,null,null,null,null,null,null,null,null,null,null,null,null,null,28451,null,675,725,850,7,0,{"$f":"'SALARY TABLE'!C11","v":15700},{"$error":"#N/A"},0,null,null,null,null,null,null,null,null,null,null,null,null,null,null,null,null,null,null,null,null,null,null,null,null,null,null,null,null,null,null,null,null,null,null,null,12,"2010-12-01","2010-12-01",{"$f":"'SALARY TABLE'!S66","v":16150},{"$f":"'SALARY TABLE'!L66","v":"03:54:12.096"},2627,1615,{"$f":"Data!$U$24","v":0},{"$f":"Data!$U$20","v":0},{"$f":"Data!$U$21","v":0},{"$f":"Data!$U$22","v":0},{"$f":"'SALARY TABLE'!P14","v":0},20392,200]
[null,null,null,29,"Mandal Educational Officer",null,null,null,null,null,null,null,null,null,null,null,null,null,null,null,null,null,null,null,null,null,null,{"$f":"SUM(AB122:AB127)","v":{"$error":"#N/A"}},{"$f":"'SALARY TABLE'!C12","v":15700},{"$error":"#N/A"},0,null,null,null,null,null,null,null,null,null,null,null,null,null,null,null,null,null,null,null,null,null,null,null,null,null,null,null,null,null,null,null,null,null,null,null,13,"2011-01-01","2011-01-01",{"$f":"'SALARY TABLE'!S67","v":16150},{"$f":"'SALARY TABLE'!L67","v":"05:57:27.936"},4009,1615,{"$f":"Data!$U$24","v":0},{"$f":"Data!$U$20","v":0},{"$f":"Data!$U$21","v":0},{"$f":"Data!$U$22","v":0},{"$f":"'SALARY TABLE'!P15","v":0},21774,200]
[null,null,null,30,"Office Subordinate",null,null,null,null,null,null,null,null,null,null,null,null,null,null,null,null,null,null,null,null,null,null,null,{"$f":"'SALARY TABLE'!C13","v":16150},{"$error":"#N/A"},0,null,null,null,null,null,null,null,null,null,null,null,null,null,null,null,null,null,null,null,null,null,null,null,null,null,null,null,null,null,null,null,null,null,null,null,14,"2011-02-01","2011-02-01",{"$f":"'SALARY TABLE'!S68","v":16150},{"$f":"'SALARY TABLE'!L68","v":"05:57:27.936"},4009,1615,{"$f":"Data!$U$24","v":0},{"$f":"Data!$U$20","v":0},{"$f":"Data!$U$21","v":0},{"$f":"Data!$U$22","v":0},{"$f":"'SALARY TABLE'!P16","v":0},21774,200]
[null,null,null,31,"Physical Education Teacher",null,null,null,null,null,null,null,null,null,null,null,null,null,null,null,null,null,null,null,null,null,null,null,{"$f":"'SALARY TABLE'!C14","v":16150},{"$error":"#N/A"},0,null,null,null,null,null,null,null,null,null,null,null,null,null,null,null,null,null,null,null,null,null,null,null,null,null,null,null,null,null,null,null,null,null,null,null,null,null,null,null,null,null,null,null,null,null,null,null,null,null,null,{"$f":"SUM(CD116:CD129)","v":0}]
[null,null,null,32,"Principal",null,null,null,null,null,null,null,null,null,null,null,null,null,null,null,null,null,null,null,null,null,null,null,{"$f":"'SALARY TABLE'!C15","v":16150},{"$error":"#N/A"},0]
[null,null,null,33,"Project Officer",null,null,null,null,null,null,null,null,null,null,null,null,null,null,null,null,null,null,null,null,null,null,null,{"$f":"'SALARY TABLE'!C16","v":16150},{"$error":"#N/A"},0]
[null,null,null,34,"R.J.D.S.E."]
[null,null,null,35,"Record Assistant"]
[null,null,null,36,"School Assistant"]
[null,null,null,37,"School Assistant (Bio. Sc.)",null,null,null,null,null,null,null,null,null,null,null,null,null,null,null,null,"CCA"]
[null,null,null,38,"School Assistant (English)",null,null,null,null,null,null,null,null,null,null,null,null,null,null,null,null,{"$f":"X148","v":1},null,{"$f":"'INCOME TAX'!J93","v":0},null,{"$f":"X137-Y137","v":0},null,"CCA"]
[null,null,null,39,"School Assistant (Hindi)"]
[null,null,null,40,"School Assistant (Maths)",null,null,null,null,null,null,null,null,null,null,null,null,null,null,null,null,"Basic Pay",null,2,3,4,1,null,{"$f":"AC121","v":15700},{"$f":"IF(AND(AC139>=$V$140,AC139<=$W$140),HLOOKUP($V$137,$X$139:$Z$143,$AA$140),IF(AND(AC139>=$V$141,AC139<=$W$141),HLOOKUP($V$137,$X$139:$Z$143,$AA$141),IF(AND(AC139>=$V$142,AC139<=$W$142),HLOOKUP($V$137,$X$139:$Z$143,$AA$142),IF(AND(AC139>=$V$143,AC139<=$W$143),HLOOKUP($V$137,$X$139:$Z$143,$AA$143),0))))","v":{"$error":"#N/A"}},{"$f":"IF($V$137=1,0,AD139)","v":0}]
[null,null,null,41,"School Assistant (Phy. Edn.)",null,null,null,null,null,null,null,null,null,null,null,null,null,null,null,null,0,8200,200,120,100,2,{"$f":"ROUND(IF(AND($AC$139>V140,$AC$139<W140),HLOOKUP($V$137,$X$139:$Z$143,AA140),0),0)","v":0},15700,{"$f":"IF(AND(AC140>=$V$140,AC140<=$W$140),HLOOKUP($V$137,$X$139:$Z$143,$AA$140),IF(AND(AC140>=$V$141,AC140<=$W$141),HLOOKUP($V$137,$X$139:$Z$143,$AA$141),IF(AND(AC140>=$V$142,AC140<=$W$142),HLOOKUP($V$137,$X$139:$Z$143,$AA$142),IF(AND(AC140>=$V$143,AC140<=$W$143),HLOOKUP($V$137,$X$139:$Z$143,$AA$143),0))))","v":{"$error":"#N/A"}},{"$f":"IF($V$137=1,0,AD140)","v":0}]
[null,null,null,42,"School Assistant (Phy. Science)",null,null,null,null,null,null,null,null,null,null,null,null,null,null,null,null,8201,13270,300,160,120,3,{"$f":"ROUND(IF(AND($AC$139>V141,$AC$139<W141),HLOOKUP($V$137,$X$139:$Z$143,AA141),0),0)","v":0},15700,{"$error":"#N/A"},0]
[null,null,null,43,"School Assistant (Soc. Stu.)",null,null,null,null,null,null,null,null,null,null,null,null,null,null,null,null,13271,18030,350,220,130,4,{"$error":"#N/A"},15700,{"$error":"#N/A"},0]
[null,null,null,44,"School Assistant (Telugu)",null,null,null,null,null,null,null,null,null,null,null,null,null,null,null,null,18031,null,525,350,140,5,0,15700,{"$error":"#N/A"},0]
[null,null,null,45,"School Assistant (Urdu)",null,null,null,null,null,null,null,null,null,null,null,null,null,null,null,null,null,null,null,null,null,6,0,15700,{"$error":"#N/A"},0]
[null,null,null,46,"Secondary Grade Teacher",null,null,null,null,null,null,null,null,null,null,null,null,null,null,null,null,null,null,null,null,null,7,0,15700,{"$error":"#N/A"},0,{"$f":"IF(AND($AC$139>V140,$AC$139<W140),HLOOKUP($V$137,$X$139:$Z$143,AA140),IF(AND($AC$139>V141,$AC$139<W141),HLOOKUP($V$137,$X$139:$Z$143,AA141),0))","v":0}]
[null,null,null,47,"Senior Assistant",null,null,null,null,null,null,null,null,null,null,null,null,null,null,null,null,null,null,null,null,null,null,0,15700,{"$error":"#N/A"},0]
[null,null,null,48,"Senior Lecturer",null,null,null,null,null,null,null,null,null,null,null,null,null,null,null,null,null,null,null,null,null,null,0,16150,{"$error":"#N/A"},0]
[null,null,null,49,"Superintendent",null,null,null,null,null,null,null,null,null,null,null,null,null,null,null,null,null,"CCA",1,null,null,null,{"$error":"#N/A"},16150,{"$error":"#N/A"},0]
[null,null,null,50,"Head Master",null,null,null,null,null,null,null,null,null,null,null,null,null,null,null,null,1,"Not Applicable",{"$f":"LOOKUP(X148,V149:W152,W149:W152)","v":"Not Applicable"},null,null,null,{"$error":"#N/A"},16150,{"$error":"#N/A"},0]
[null,null,null,51,"M.P.D.O",null,null,null,null,null,null,null,null,null,null,null,null,null,null,null,null,2,"Greater HYD Municipal Corporation",null,null,null,null,{"$error":"#N/A"},16150,{"$error":"#N/A"},0]
[null,null,null,52,"M.R.O",null,null,null,null,null,null,null,null,null,null,null,null,null,null,null,null,3,"Greater Vizag Municipal corporation and Vijayawada"]
[null,null,null,53,"Health assistant",null,null,null,null,null,null,null,null,null,null,null,null,null,null,null,null,4,"Other Municipal Corporations"]

{"sheet":"Mandals list Village wise","index":2,"n_rows":44,"n_cols":1,"rows_kept":44,"cut":false,"hidden":true,"merged":[[35,0,35,10],[42,0,42,10],[43,0,43,10],[36,0,36,10],[37,0,37,10],[38,0,38,10],[39,0,39,10],[40,0,40,10],[41,0,41,10],[34,0,34,10],[25,0,25,10],[26,0,26,10],[27,0,27,10],[28,0,28,10],[29,0,29,10],[30,0,30,10],[31,0,31,10],[32,0,32,10],[33,0,33,10],[10,0,10,10],[23,0,23,10],[24,0,24,10],[19,0,19,10],[12,0,12,10],[13,0,13,10],[14,0,14,10],[15,0,15,10],[11,0,11,10],[16,0,16,10],[20,0,20,10],[21,0,21,10],[22,0,22,10],[17,0,17,10],[18,0,18,10],[9,0,9,10],[4,0,4,10],[5,0,5,10],[6,0,6,10],[7,0,7,10],[0,0,0,10],[2,0,2,10],[1,0,1,10],[3,0,3,10],[8,0,8,10]]}
["List of Mandals in Adilabad District"]
["Adilabad • Bela • Boath • Dilawarpur • Jainad • Kaddampeddur • Khanpur • Kuntala • Mamda • Narnoor • Rebbana • Talamadugu • Tiryani • Asifabad • Bellampalle • Chennur • Gudihathnur • Jainoor • Kagaz Nagar • Kotapalle • Laxmanchanda • Mancherial • Nennal • Sarangapur • Tamsi • Utnur • Bazarhathnoor • Bhainsa • Dahegaon • Ichoda • Jaipur • Kasipet • Kouthala • Lohesra • Mandamarri • Neradigonda • Sirpur (T) • Tandur • Vemanpalle • Bejjur • Bheemini • Dandepalle • Inderavelly • Jannaram • Kerameri • Kubeer • Luxettipet • Mudhole • Nirmal • Sirpur (U) • Tanur • Wankdi"]
["List of Mandals in Anantapur District"]
["Agali • Amadagur • Amarapuram • Anantapur • Atmakur • Bathalapalle • Beluguppa • Bommanahal • Brahmasamudram • Bukkapatnam • Bukkarayasamudram • Chenne Kothapalle • Chilamathur • D.Hirchal • Dharmavaram • Gandlapenta • Garladinne • Gooty • Gorantla • Gudibanda • Gummagatta • Guntakal • Hindupur • Kadiri • Kalyandurg • Kambadur • Kanaganapalle • Kanekal • Kothacheruvu • Kudair • Kundurpi • Lepakshi • Madakasira • Mudigubba • Nallacheruvu • Nallamada • Nambulipulikunta • Narpala • Obuladevaracheruvu • Pamidi • Parigi • Peddapappur • Peddavadugur • Penu Konda • Putlur • Puttaparthi • Ramagiri • Raptadu • Rayadurg • Roddam • Rolla • Settur • Singanamala • Somandepalle • Tadimarri • Tadpatri • Talupula • Tanakal • Uravakonda • Vajrakarur • Vidapanakal • Yadiki • Yellanur"]
["List of Mandals in Chittoor District"]
["B Kothakota • Baireddi Palle • Bangarupalem • Buchinaidu Khandriga • Chandragiri • Chinnagottigallu • Chittoor • Chowdepalle • Gangadhara Nellore • Gangavaram • Gudi Palle • Gudipala • Gurramkonda • Irala • K V P Puram • Kalakada • Kalikiri • Kambhamvaripalle • Karvetinagar • Kuppam • Kurabalakota • Mandanpalle • Mulakalacheruvu • Nagalapuram • Nagari • Narayanavanam • Nimmanapalle • Nindra • Pakala • Palamaner • Palasamudram • Pedda Panjani • Peddamandyam • Peddathippasamudram • Penumuru • Pichatur • Pileru • Pulicherla • Punganur • Puthalapattu • Puttur • Rama Kuppam • Ramachandrapuram • Ramasamudram • Renigunta • Rompicherla • Santhi Puram • Satyavedu • Sodam • Somala • Srikalahasti • Srirangarajapuram • Thamballapalle • Thavanampalle • Thottambedu • Tirupati Rural • Tirupati Urban • Vadamalapeta • Varadaiahpalem • Vayalpad • Veduru Kuppam • Venkatagiri Kota • Vijaya Puram • Yadamari • Yerpedu • Yerravaripalem"]
["List of Mandals in Cuddapah District"]
["Atlur • B Kodur • Badvel • Brahmamgarimattam • Chakrayapet • Chapad • Chennur (Cuddapah District) • ChinnaChowk • Chinnamandem • Chintha Kommadinne • Chitvel • Cuddapah • Duvvur • Galiveedu • Gopavaram • Jammalamadugu • Kalasapadu • Kamalapuram • Khajipet • Kodur • Kondapuram • Lakkireddipalle • Lingala • Muddanur • Mylavaram • Mydukur • Nandalur • Obulavaripalle • Peddamudium • Penagaluru • Pendlimarri • Porumamilla • Proddutur • Pulivendla • Pullampeta • Railway Koduru • Rajampet • Raju Palem • Ramapuram • Rayachoti • S Mydukur • Sambepalle • Sidhout • Simhadripuram • T Sundupalle • Thandur • Vallur • Veeraballe • Veerapunayunipalle • Vempalle • Vemula • Vontimitta • Yerraguntla"]
["List of Mandals in East Godavari District"]
["Addateegala • Ainavilli • Alamuru • Allavaram • Amalapuram • Ambajipeta • Anaparthi • Atreyapuram • Bandarulanka • Biccavolu • Devipatnam • Gandepalle • Gangavaram (East Godavari District) • Gokavaram • Gollaprolu • I Polavaram • Jaggampeta • Kadiam • Kajuluru • Kakinada (Rural) • Kakunada (Urban) • Kapileswarapuram • Karapa • Katrenikona • Kirlampudi • Korukonda • Kotananduru • Kothapalli • Kothapeta • Malikipuram • Mamidikuduru • Mandapeta • Maredumilli • Mummidivaram • P Gannavaram • Pamarru • Pedapudi • Peddapuram • Pithapuram • Prathipadu • Rajahmundry(Rural) • Rajahmundry(Urban) • Rajanagaram • Rajavommangi • Ramachandrapuram (East Godavari District) • Rampachodavaram • Rangampeta • Ravulapalem • Rayavaram • Razole • Sakhinetipalle • Samalkota • Sankhavaram • Seethanagaram • Thallarevu • Thondangi • Tuni • Uppalaguptam • Y Ramavaram • Yeleswaram"]
["List of Mandals in Guntur District"]
["Achampeta • Amaravathi • Amruthalur • Bapatla • Bellamkonda • Bhattiprolu (Guntur District) • Bollapalle • Chebrole • Cherukupalle • Chilakaluripet • Dachepalle • Duggirala • Durgi • Edlapadu • Guntur • Gurazala • Ipuru • Kakumanu • Karempudi • Karlapalem • Kollipara • Kollur • Krosuru • Machavaram • Macherla • Mangalagiri • Medikonduru • Muppalla • Nadendla • Nagaram • Nakarikallu • Narasaraopeta • Nizampatnam • Nuzendla • Pedakakani • Pedakurapadu • Pedanandipadu • Phirangipuram • Piduguralla • Pittalavanipalem • Ponnur • Prathipadu (Guntur District) • Rajupalem • Rentacrintala • Repalle • Rompicherla (Guntur District) • Sattenapalle • Savalyapuram • Tadikonda • Tenali • Thadepalle • Thullur • Tsundur • Vatticherukuru • Veldurthi • Vemuru • Vinukonda"]
["List of Mandals in Karimnagar District"]
["Bheemadevarpalle • Boinpalle • Chandurthi • Choppadandi • Dharmapuri • Dharmaram • Ellanthakunta • Gambhiraopet • Gangadhara • Gollapalle • Husnabad • Huzurabad • Ibrahimpatnam • Jagtial • Jammikunta • Julapalle • Kamalapur • Kamanpur • Karimnagar • Kataram • Kathlapur • Kesavapatnam • Kodimial • Koheda • Konaraopeta • Koratla • Mahadevpur • Malharrao • Mallapur • Mallial • Manakondur • Manthani • Medipalle • Metpalle • Mustabad • Mutharam Mahadevpur • Mutharam Manthani • Odela • Peddapalle • Pegadapalle • Raikal (KarimnagarDistrict) • Ramadugu • Ramagundam • Saidapur • Sarangapur (KarimnagarDistrict) • Sirsilla • Srirampur • Sultanabad • Thimmapur • Veenavanka • Velgatoor • Vemulawada • Yella Reddi Peta"]
["List of Mandals in Khammam District"]
["Aswapuram • Aswaraopeta • Bayyaram • Bhadrachalam • Bonakal • Burgampadu • Chandrugonda • Cherla • Chinthakani • Chintur • Dammapeta • Dummugudem • Enkuru • Garla • Gundala • Julurpad • Kalluru • Karepalli • Khammam Rural • Khammam Urban • Konijerla • Kothagudem • Kukunoor • Kunavaram • Kusumanchi • Madhira • Manuguru • Mudigonda • Mulakalapalle • Nelakondapalle • Palawancha • Penuballi • Pinapaka • Sathupalle • Singareni • Tekulapalle • Thallada • Thirumalayapalem • Vararamachandrapuram • Velairpad • Vemsoor • Venkatapuram • Wazeed • Wyra • Yellandu • Yerrupalem"]
["List of Mandals in Krishna District"]
["A Konduru • Agiripalle • Avanigadda • Bantumilli • Bapulapadu • Challapalli • Chandarlapadu • Chatrai • G Konduru • Gampalagudem • Gannavaram • Ghantasala • Gudivada • Gudlavalleru • Gudur • Ibrahimpatnam (Krishna District) • Jaggayyapeta • Kaikalur • Kalidindi • Kanchika Cherla • Kankipadu • Koduru • Kruthivennu • Machilipatnam • Mandavalli • Mopidevi • Movva • Mudinepalli • Musunuru • Mylavaram (Krishna District) • Nagayalanka • Nandigama • Nandivada • Nuzvid • Pamarru (Krishna District • Pamidimukkala • Pedana • Pedaparupudi • Penamaluru • Penuganchiprolu • Reddigudem • Thotlavalluru • Tiruvuru • Unguturu • Vatsavai • Veerullapadu • Vijayawada Rural • Vijayawada Urban • Vissannapet • Vuyyuru"]
["List of Mandals in Kurnool District"]
["Adoni • Allagadda • Alur • Aspari • Atmakur • Banaganapalle • Bandi Atmakur • Bethamcherla • Bugganipalle • C.Belagal • Chagalamarri • Chippagiri • Devanakonda • Dhone • Dornipadu • Gadivemula • Gonegandla • Gospadu • Gudur • Halaharvi • Holagunda • Jupadu Bungalow • Kallur • Kodumur • Koilkuntla • Kolimigundla • Kosigi • Kothapalle • Kowthalam • Krishnagiri • Kurnool • Maddikera East • Mahanandi • Mantralayam • Midthur • Nandavaram • Nandi Kotkur • Nandyal • Orvakal • Owk • Pagidyala • Pamulapadu • Panyam • Pattikanda • Peapally • Pedda Kadubur • Rudravaram • Sanjamala • Sirvel • Srisailam • Tuggali • Uyyalawada • Veldurthi (Kurnool District) • Velgodu • Yemmiganur"]
["List of Mandals in Mahaboobnagar District"]
["Achampeta (Mahaboobnagar District) • Addakal • Aiza • Alampur • Amangal • Amrabad • Atmakur (Mahaboobnagar District) • Balanagar • Balmoor • Bhoothpur • Bijinapalle • Bomraspeta • Chinna Chinta Kunta • Damaragidda • Devarkadara • Dhanwada • Dharur (Mahboobanagar District • Doulatabad • Farooqnagar • Gadwal • Ghanpur • Ghattu • Gopalpeta • Hanwada • Itikyal • Jadcherla • Kalwakurthy • Keshampeta • Kodair • Kodangal • Koilkonda • Kollapur • Kondurg • Kosgi • Kothakota • Kothur • Lingal • Maddur • Madgul • Maganoor • Mahbubnagar • Makthal • Maldakal • Manopadu • Midjil • Nagar Kurnool • Narayanpet • Narva • Nawabpet • Pangal • Pebbair • Peddakothapalle • Peddamandadi • Tadoor • Talakondapalle • Telkapalle • Thimmajipeta • Uppununthala • Utkoor • Vangoor • Veepangandla • Veldanda • Waddepalle • Wanaparthy"]
["List of Mandals in Medak District"]
["Alladurg • Andole • Chegunta • Chinna Kodur • Doultabad • Dubbak • Eddumailaram • Gajwel • Hathnoora • Jagdevpur • Jharasangam • Jinnaram • Kalher • Kangti • Kohir • Kondapak • Kondapur • Kowdipalle • Kulcharam • Manoor • Medak • Mirdoddi • Mulug • Munpalle • Nanganur • Narayankhed • Narsapur • Nyalkal • Papannapet • Patancheru • Pulkal • Raikode • Ramachandrapuram (Medak District) • Ramayampet • Regode • Sadasivpet • Sangareddy • Shankarampet (A) • Shankarampet (R) • Shivampet • Siddipet • Tekmal • Tupran • Wargal • Yeldurthy • Zahirabad •"]
["List of Mandals in Nalgonda District"]
["Alair • Anumula • Atmakur (M) • Atmakur (S) • Bhuvanagiri • Bibinagar • Bommalaramaram • Chandam Pet • Chandur • Chilkur • Chintha Palle • Chityala • Chivvemla • Choutuppal • Dameracherla • Devarakonda • Garide Palle • Gundala • Gundla Palle • Gurrampode • Huzurnagar • Jaji Reddi Gudem • Kangal • Kattangoor • Kethepalle • Kodad • M Turkapalle • Marri Guda • Mattampalle • Mellachervu • Miryalaguda • Mothey • Mothkur • Munagala • Munugode • Nadigudem • Nakrekal • Nalgonda • Nampalle • Narayanapur • Narketpalle • Nered Cherla • Nidamanur • Nuthankal • Pedda Adiserlapalle • Peddavura • Penpahad • Pochampalle • Rajapet • Ramannapeta • Saligouraram • Suryapet • Thipparthi • Thirumalagiri • Thripuraram • Thunga Thurthi • Valigonda • Vemulapalle • Yadagirigutta •"]
["List of Mandals in Nellore District"]
["Allur • Ananthasagaram • Anumasamudrampeta • Atmakur • Balayapalle • Bogole • Buchireddipalem • Chejerla • Chillakur • Chittamur • Dagadarthi • Dakkili • Doravarisatram • Duttalur • Gudur • Indukurpet • Jaladanki • Kaligiri • Kaluvoya • Kavali • Kodavalur • Kondapuram (Nellore District) • Kota • Kovur • Manubolu • Marripadu • Muthukur • Naidupeta • Nellore • Ojili • Pellakur • Podlakur • Rapur • Sangam • Seetharamapuram • Sullurpeta • Sydapuram • Tada • Thotapalligudur • Udayagiri • Vakadu • Varikuntapadu • Venkatachalam • Venkatagiri • Vidavalur • Vinjamur •"]
["List of Mandals in Nizamabad District"]
["Armur • Balkonda • Banswada • Bheemgal • Bhiknur • Bichkunda • Birkoor • Bodhan • Dhar Palle • Dich Palle • Domakonda • Gandhari • Jakranpalle • Jukkal • Kamareddy • Kammar Palle • Kotgiri • Lingampet • Machareddy • Madnur • Makloor • Mortad • Naga Reddipet • Nandipet • Navipet • Nizam Sagar • Nizamabad • Pitlam • Ranjal • Sadasivanagar • Sirkonda • Tadwai • Varni • Velpur • Yeda Palle • Yellareddy •"]
["List of Mandals in Prakasam District"]
[" • Ardhaveedu • Ballikuruva • Bestavaripeta • Chadrasekara Puram • Chimakurthi • Chinaganjam • Chirala • Cumbum • Darsi • Donakonda • Dornala • Gi• Gudluru • Hanumanthunipadu • Inkollu • Janakavaram Panguluru • Kandukur • Kanigiri • Karamchedu • Komarolu • Konakanamitla • Kondapi • Korisapadu • Kothapatnam • Kurichedu • Lingasamudram • Maddipadu • Markapur • Marripudi • Martur • Mundlamuru • Naguluppalapadu • Ongole • Pamur • Parchur • Pedaaraveedu • Pedacherlopalle • Podili • Ponnaluru • Pullalacheruvu • Racherla • Santhamaguluru • Santhanuthlapadu • Singarayakonda • Tangutur • Tarlapadu • Thallur • Tripuranthakam • Ulavapadu • Veligandla • Vetapalem • Voletivaripalem • Yeddanapudi • Yerragondapalem • Zarugumilli"]
["List of Mandals in Rangareddy District"]
["Balanagar • Bantaram • Basheerabad • Chevella • Dharur • Domah • Gandeed • Ghatkesar • Hayathnagar • Ibrahimpatam • Kandukur • Keesara • Kulkacharla • Maheswaram • Malkajgiri • Manchal • Marpalle • Medchal • Moinabad • Mominpet • Nawabpet(Rangareddy District) • Pargi • Peddemul • Pudur • Quthbullapur • Rajendranagar • Saroornagar • Serilingampalle • Shabad • Shamirpet • Shamshabad • Shankarpalle • Tandur (Rangareddy District) • Uppal • Vikarabad • Yacharam • Yelal •"]
["List of Mandals in Srikakulam District"]
["Amadalavalasa • Battili • Bhamini • Burja • Etcherla • Ganguvari Singadam • Kaligapatnam • Hiramandalam • Ichchapuram • Jalumuru • Kanchili • Kaviti • Kotabommili • Kothuru • Laveru • Mandasa • Meilaputti • Nandigam • Narasannapeta • Palakonda • Palasa • Pathapatnam • Polaki • Ponduru • Rajam • Ranastalam • Regidiamadalavalasa • Santhabommali • Santhakaviti • Saravakota • Sarubujjili • Seethampeta • Sompeta • Srikakulam • Tekkali • Vajrapukothuru • Vangara • Veeraghattam •"]
["List of Mandals in Visakhapatnam District"]
["Anakapalli • Anandapuram • Ananthagiri • Araku Valley • Atchutapuram • Bheemunipatnam • Butchayyapeta • Cheedikada • Chintapalle • Chodavaram • Devarapalle • Dumbriguda • Gajuwaka • Gangaraju Madugula • Golugonda • Gudem Kothaveedhi • Hukumpeta • K Kotapadu • Kasimkota • Kotauratla • Koyyuru • Madugula • Makavarapalem • Munagapaka • Munchingiputtu • Nakkapalli • Narsipatnam • Nathavaram • Paderu • Padmanabham • Paravada • Payakaraopeta • Pedabayalu • Pedagantyada • Pendurthi • Rambilli • Ravikamatham • Rolugunta • S Rayavaram • Sabbavaram • Visakhapatnam • Visakhapatnam(U) • Yelamanchili"]
["List of Mandals in Vizianagaram District"]
["Badangi • Balajipeta • Bhoghapuram • Bobbili • Bondapalle • Chintalavalasa • Cheepurupalle • Dattirajeru • Denkada • Gajapathinagaram • Gantyada • Garividi • Garugubilli • Gummalakshmipuram • Gurla • Jami • Jiyyamma Valasa • Komarada • Kothavalasa • Kurupam • Lakkavarapukota • Makkuva • Mentada • Merakamudidam • Nellimarla • Pachipenta • Parvathipuram • Pusapatirega • Ramabhadrapuram • Salur • Seethanagaram (Vizianagaram District) • Srungavarapukota • Therlam • Vepada • Vizianagaram"]
["List of Mandals in Warangal District"]
["Atmakur (Warangal District) • Bachannapeta • Bhupalpalle • Chennaraopet • Cheriyal • Chityal • Devaruppula • Dharmasagar • Dornakal • Duggondi • Eturnagaram • Geesugonda • Ghanapur • Ghanpur(Stn) • Govindaraopet • Gudur • Hanamkonda • Hasanparthy • Jangaon • Kesamudram • Khanapur • Kodakandla • Kothagudem • Kuravi • Lingala Ghanpur • Maddur (Warangal District) • Mahabubabad • Mangapet • Maripeda • Mogullapalle • Mulug (Warangal District) • Nallabelly • Narmetta • Narsampet • Narsimhulapet • Nekkonda • Nellikudur • Palakurthi • Parkal • Parvathagiri • Raghunatha Palle • Raiparthy • Regonda • Sangem • Shayampet • Tadvai • Thorrur • Venkatapur • Wardhannapet • Zaffergadh"]
["List of Mandals in West Godavari District"]
["Achanta • Akiveedu • Attili • Bheemavaram • Bhimadole • Buttayagudem • Chagallu • Chintalapudi • Denduluru • Devarapalle • Dwaraka Tirumala • Eluru • Ganapavaram • Gopalapuram • Iragavaram • Jangareddigudem • Jeelugumilli • Kalla • Kamavarapukota • Kovvur • Koyyalagudem • Lingapalem • Mogalthur • Nallajerla • Narasapuram • Nidadavole • Nidamarru • Palacole • Palakoderu • Pedapadu • Pedavegi • Pentapadu • Penugonda • Penumantra • Peravali • Poduru • Polavaram • T Narasapuram • Tadepalligudem • Tanuku • Thallapudi • Undi • Undrajavaram • Unguturu • Veeravasaram • Yelamanchili"]

{"sheet":"code2","index":3,"n_rows":27,"n_cols":9,"rows_kept":27,"cut":false,"hidden":true,"merged":[[0,3,0,4]]}
[1,"Adilabad District","Adilabad","DDO Desgn",null,1,"Sri.",1]
[2,"Not applicable","Ananthapur",1,"Assistant Director",2,"Smt."]
[3,"SPSR Nellore District","Nellore",2,"Deputy Director",3,"Kum."]
[4,"Chittoor District","Chittoor",3,"Deputy Educational Officer","GENDER",1,null,{"$f":"IF(G4=1,G1,IF(G4=2,G2&\"/\"&G3,G1&\"/\"&G2))","v":"Sri."}]
[5,"East Godavari District","Kakinada",4,"Deputy Inspector of Schools"]
[6,"Guntur District","Guntur",5,"Gazetted H.M. Gr-I "]
[7,"Hyderabad District","Hyderabad",6,"Gazetted H.M. Gr-II "]
[8,"Kareemnagar District","Kareem Nagar",7,"Head Master"]
[9,"Khammam District","Khammam",8,"Head Mistress"]
[10,"Krishna District","Machilipatnam",9,"Mandal Educational Officer"]
[11,"Kurnool District","Kurnool",10,"Principal"]
[12,"Mahboobnagar District","Mahboobnagar",11,"Project Officer"]
[13,"Medak District","Sanga Reddy",12,"R.J.D.S.E."]
[14,"Nalgonda District","Nalgonda",null,null,null,null,null,{"$f":"IF(Data!$T$5=0,Code!G99,Data!$T$5)","v":"School Assistant (Maths)"}]
[15,"Nizamabad District","Nizamabad"]
[16,"Prakasham District","Ongole"]
[17,"Ranga Reddy District","Hyderabad"]
[18,"Sreekakulam District","Sreekakulam"]
[19,"Vishakapatnam District","Vishakapatnam"]
[20,"Vizianagaram District","Vizianagaram"]
[21,"Warangal District","Warangal"]
[22,"West Godavari District","Elure"]
[23,"YSR Kadapa District","Kadapa"]
[]
[null,"Not applicable"]
[null,"SPSR Nellore District"]
[null,"Chittoor District"]

{"sheet":"Data","index":4,"n_rows":126,"n_cols":46,"rows_kept":126,"cut":false,"hidden":false,"merged":[[1,13,61,13],[2,16,2,25],[39,17,39,20],[40,17,40,20],[38,16,38,21],[26,16,26,21],[27,15,37,15],[48,17,48,20],[47,17,47,20],[54,17,54,20],[55,17,55,20],[39,16,49,16],[29,20,29,21],[36,21,37,25],[50,16,58,16],[50,17,50,20],[1,43,61,43],[42,40,47,40],[8,20,8,21],[9,16,9,21],[23,20,23,21],[38,22,38,25],[59,16,59,25],[13,17,13,19],[24,22,24,25],[26,22,26,25],[32,20,34,25],[44,17,44,20],[21,20,21,21],[56,17,56,20],[6,20,6,21],[46,17,46,20],[62,14,62,42],[53,17,53,20],[42,17,42,20],[45,17,45,20],[51,17,51,20],[43,23,43,25],[48,23,48,24],[45,22,45,24],[46,22,46,24],[47,22,47,24],[57,17,57,20],[39,15,58,15],[44,22,44,24],[42,22,43,22],[52,17,52,20],[61,17,61,24],[0,14,0,42],[4,20,4,21],[5,20,5,21],[24,20,24,21],[10,20,10,21],[19,20,19,21],[20,20,20,21],[3,15,8,15],[10,15,25,15],[7,17,7,19],[3,20,3,21],[11,20,11,21],[8,17,8,19],[16,18,16,19],[17,19,17,21],[12,24,12,25],[7,41,39,41],[46,41,58,41],[23,22,23,25],[25,22,25,25],[25,17,25,19],[58,17,58,20],[41,24,41,25],[39,22,39,25],[40,24,40,25],[41,17,41,20],[27,20,27,21],[35,20,35,21],[22,20,22,21],[20,24,20,25],[43,17,43,20],[56,23,56,24],[49,17,49,20]]}
[null,null,null,null,null,null,null,null,null,null,null,null,null,null,"http://gsreddy.tk                     http://gsreddy.tk              http://gsreddy.tk"]
[null,null," ",null,null,null,null,null,null,null,null,null,null,"http://gsreddy.tk         http://gsreddy.tk         http://gsreddy.tk         http://gsreddy.tk           http://gsreddy.tk              ",null,null,null,null,null,null,null,null,null,null,null,null,null,null,null,null,null,null,null,null,null,null,null,null,null,null,null,null,null,"http://gsreddy.tk          http://gsreddy.tk           http://gsreddy.tk           http://gsreddy.tk             http://gsreddy.tk         "]
[null,null," ",null,null,null,null,null,null,null,null,null,null,null,null,null,"INCOME TAX 2010-2011"]
[null,null," ",null,null,null,null,null,null,null,null,null,null,null,null,"Personal details",1,"Name of the Employee",null,1,"G.Bhasker Reddy",null,"GENDER","M","F","S. C",null,null,null,null,null,null,3850,10]
[null,null," ",null,null,null,null,null,null,null,null,null,null,null,null,null,2,"Designation",null,null,53,null,null,null,null,null,null,null,null,null,null,null,3950]
[null,null," ",null,null,null,null,null,null,null,null,null,null,null,null,null,3,"PAN NO"]
[null,null," ",null,null,null,null,null,null,null,null,null,null,null,null,null,4,"Name of the Office",null,null,"ZPPHS,Balayapalli"]
[null,null," ",null,null,null,null,null,null,null,null,null,null,null,null,null,5,"District",null,null,3,null,null,null,null,null,null,null,null,null,null,null,null,null,null,null,null,null,null,null,null,"Enter your details in only green color cells"]
[null,null," ",null,null,null,null,null,null,null,null,null,null,null,null,null,6,"Mandalm",null,null,5,null,null,null,null,null,null,null,null,null,null,null,4050,20]
[null,null," ",null,null,null,null,null,null,null,null,null,null,null,null,null,"EARNINGS",null,null,null,null,null,null,null,null,null,null,null,null,null,null,null,4150]
[null,null," ",null,null,null,null,null,null,null,null,null,null,null,null,"Earnings",1,"Basic Pay as on JAN - 2010 in RPS 2005(with Notionals)",null,null,7200]
[null,null," ",null,null,null,null,null,null,null,null,null,null,null,null,null,2,"Basic Pay as on FEB - 2010 in RPS 2010",null,null,{"$f":"U11","v":7200},null,null,null,null,null,null,10,null,null,null,null,4260]
[null,null," ",null,null,null,null,null,null,null,null,null,null,null,null,null,3,"8/16/24 scale or one Extra increment",null,null,null,null,null,null,"Taxable Amount"]
[null,null," ",null,null,null,null,null,null,null,null,null,null,null,null,null,4,"Stepup benefit or one extra increment",null,null,null,null,null,null,"Gross",{"$f":"Y50","v":263821}]
[null,null,null,null,null,null,null,null,null,null,null,null,null,null,null,null,5,"Half Pay leave",null,null,"    To",null,null,null,"<1 laksh",{"$f":"Y51","v":16013}]
[null,null,null,null,null,null,null,null,null,null,null,null,null,null,null,null,6,"Loss of Pay ",null,null,"    To",null,null,null,">1 laksh",0]
[null,null,null,null,null,null,null,null,null,null,null,null,null,null,null,null,7,"HRA","HRA REVISED PERCENT",null,null,"From",null,null,"Tax amount",65963]
[null,null,null,null,null,null,null,null,null,null,null,null,null,null,null,null,8,"AHRA",null,"City Compensatory Allowance(CCA)",null,null,null,null,"Tax",6794]
[null,null,null,null,null,null,null,null,null,null,null,null,null,null,null,null,9,"Reader allowance(RA)",null,"Special Compensatory allowance (SCA)",null,null,null,null,"Ad. Tax","Nil"]
[null,null,null,null,null,null,null,null,null,null,null,null,null,null,null,null,10,"Additional Increments  (AI)",null,null,null,null,null,null,"Net Tax",6794,null,null,null,null,null,null,{"$f":"4480+115","v":4595},null,null,null,null,null,null,75]
[null,null,null,null,null,null,null,null,null,null,null,null,null,null,null,null,11,"Personal Pay(PP)/Special Pay",null,null,null,null,null,null,"visit:gsreddy.tk",null,null,null,null,null,null,null,{"$f":"AG20+115","v":4710}]
[null,null,null,null,null,null,null,null,null,null,null,null,null,null,null,null,12,"Family Planning Increment (F.P.I)"]
[null,null,null,null,null,null,null,null,null,null,null,null,null,null,null,null,13,"CA(PHA)"]
[null,null,null,null,null,null,null,null,null,null,null,null,null,null,null,null,14,"HMA",null,null,null,null,"VISIT:gsreddy.tk",null,null,null,null,null,null,null,null,null,{"$f":"AG21+115","v":4825},null,null,null,0]
[null,null,null,null,null,null,null,null,null,null,null,null,null,null,null,null,15,"Increment Month",null,null,null,null,"GSREDDY"]
[null,null,null,null,null,null,null,null,null,null,null,null,null,null,null,null,16,"Child Education Consession",null,null,null,null,"CELL:9666570250"]
[null,null,null,null,null,null,null,null,null,null,null,null,null,null,null,null,"SALARY DEDUCTIONS",null,null,null,null,null,null,null,null,null,null,null,null,null,null,null,{"$f":"#REF!+125","v":{"$error":"#REF!"}},75,null,15,60]
[null,null,null,null,null,null,null,null,null,null,null,null,null,null,null,"Salary Deductions",1,"ZPPF/GPF/CPS",null,null,"ZPPF/GPF REVISED AMOUNT",null,{"$f":"IF(Code!AB12=1,\"Not Applicable\",\"Enter amonut\")","v":"Enter amonut"},null,null,null,null,null,null,null,null,null,{"$f":"AG27+125","v":{"$error":"#REF!"}},null,null,30,75]
[null,null,null,null,null,null,null,null,null,null,null,null,null,null,null,null,null,null,null,null,null,null,{"$f":"IF(Code!AB13=1,\"Not Applicable\",\"Enter amonut\")","v":"Enter amonut"}]
[null,null,null,null,null,null,null,null,null,null,null,null,null,null,null,null,2,"APGLI",null,null,"APGLI REVISED AMOUNT(RPS 10)",null,{"$f":"IF(Code!AB14=1,\"Not Applicable\",\"Enter amonut\")","v":"Enter amonut"},null,null,null,null,null,null,null,null,null,5470,null,null,120]
[null,null,null,null,null,null,null,null,null,null,null,null,null,null,null,null,null,null,null,null,null,null,null,null,null,null,null,null,null,null,null,null,5605,null,15]
[null,null,null,null,null,null,null,null,null,null,null,null,null,null,null,null,null,null,null,null,null,null,null,null,null,null,null,null,null,null,null,null,5750,null,30]
[null,null,null,null,null,null,null,null,null,null,null,null,null,null,null,null,5,"GIS",null,null,"ZPPF/GPF LOAN AND FESTIVAL ADVANCE CAN NOT BE TREATED AS SAVINGS.                                 [Use Legal Pepar for print]"]
[null,null,null,null,null,null,null,null,null,null,null,null,null,null,null,null,6,"EWF"]
[null,null,null,null,null,null,null,null,null,null,null,null,null,null,null,null,7,"SWF"]
[null,null,null,null,null,null,null,null,null,null,null,null,null,null,null,null,8,"LIC(SALARY)",null,null,"REVISED LIC AMOUNT",null,{"$f":"IF(Code!AC20=1,\"Not Applicable\",\"Enter amonut\")","v":"Enter amonut"},null,null,null,null,null,null,null,null,null,5895]
[null,null,null,null,null,null,null,null,null,null,null,null,null,null,null,null,9,"LIC(BYHAND)",null,null,null,"TOTAL DEDUCTION U/S 80C  Max. Rs 1,00,000/- + 20,000/- Infrustructure Bond, Total Rs.1,20,000/-"]
[null,null,null,null,null,null,null,null,null,null,null,null,null,null,null,null,10,"Advance Tax",null,null,{"$f":"IF(Code!AB96=1,'ADVANCE TAX'!C15,0)","v":0}]
[null,null,null,null,null,null,null,null,null,null,null,null,null,null,null,null,"NON SALARY DEDUCTIONS",null,null,null,null,null,null,null,null,null,null,null,null,null,null,null,8170,null,null,"SA(SS)"]
[null,null,null,null,null,null,null,null,null,null,null,null,null,null,null,"Non salary deductions","Below 1 laksh deductions","Housing Loan Principle",null,null,null,null,"D.A",null,null,null,null,null,null,null,null,null,8385,null,null,"SA(PS)"]
[null,null,null,null,null,null,null,null,null,null,null,null,null,null,null,null,null,"Tuition Fee for two Children",null,null,null,null,9.4159999999999994E-2,"TO",0.16264000000000001,null,null,null,null,null,null,null,8600,null,null,"SA(ENG)"]
[null,null,null,null,null,null,null,null,null,null,null,null,null,null,null,null,null,"N.S.C.",null,null,null,null,0.16264000000000001,"TO",0.24823999999999999]
[null,null,null,null,null,null,null,null,null,null,null,null,null,null,null,null,null,"P.L.I",null,null,null,null,"EARNED\nLEAVE",null,null,null,null,null,null,null,null,null,null,null,null,null,null,null,null,null,"Arrear Earnings"]
[null,null,null,null,null,null,null,null,null,null,null,null,null,null,null,null,null,"L.I.C(Jeevan Suraksha)",null,null,null,null,null,null,null,null,null,null,null,null,null,null,8815,null,null,"SA(TEL)"]
[null,null,null,null,null,null,null,null,null,null,null,null,null,null,null,null,null,"ING Life Insurance/Bajaj allianzlife insurance",null,null,null,null,null,null,null,"ZPPF/CSS"]
[null,null,null,null,null,null,null,null,null,null,null,null,null,null,null,null,null,"Interest on Housing loan(V/S 24(L)(VI)",null,null,null,null,"RPS ARREARS",null,null,null,null,null,null,null,null,null,9050,null,null,"SA(HIN)"]
[null,null,null,null,null,null,null,null,null,null,null,null,null,null,null,null,null,"Fixed deposits for more than 5 years",null,null,null,null,"NOTIONAL ARREARS",null,null,null,null,null,null,null,null,null,9775,null,null,"GR-I TP",null,null,null,null,null,"Check and submit.I am not responsiable for any mistaktes.any doubts call."]
[null,null,null,null,null,null,null,null,null,null,null,null,null,null,null,null,null,"PUBLIC PROVIDENT FUND (P.P.F)",null,null,null,null,"IR ARREARS(3 Months)",null,null,null,null,null,null,null,null,null,10030,null,null,"GR-I HP"]
[null,null,null,null,null,null,null,null,null,null,null,null,null,null,null,null,null,null,null,null,null,null,null,"Taxable Amount",null,null,null,null,null,null,null,null,10285,null,null,"GR-II TP",null,null,null,null,null,null,null,null,4260,"D.Lakshmidevi"]
[null,null,null,null,null,null,null,null,null,null,null,null,null,null,null,null,null,null,null,null,null,null,null,"Gross",{"$f":"'INCOME TAX'!J17","v":263821},null,null,null,null,null,null,null,10565,null,null,"GR-II HP",null,null,null,null,null,null,null,null,4370,"M.Karunakumari"]
[null,null,null,null,null,null,null,null,null,null,null,null,null,null,null,null,"Above 1 laksh deductions",null,null,null,null,null,null,"<1 laksh",{"$f":"'INCOME TAX'!J54","v":16013}]
[null,null,null,null,null,null,null,null,null,null,null,null,null,null,null,null,null,null,null,null,null,null,null,">1 laksh",{"$f":"SUM('INCOME TAX'!J57:J64)","v":0},null,null,null,null,null,null,null,10845,null,null,"PET",null,null,null,null,null,null,null,null,4480,"Ch.Gayatri"]
[null,null,null,null,null,null,null,null,null,null,null,null,null,null,null,null,null,"Infrastructure Bonds(Max Rs.20,000/- only)",null,null,null,null,null,"Tax amount",{"$f":"'INCOME TAX'!J68","v":65963},null,null,null,null,null,null,null,11125,null,null,"PED",null,null,null,null,null,null,null,null,4595,"V.Vishnumohanrao"]
[null,null,null,null,null,null,null,null,null,null,null,null,null,null,null,null,null,"Donations (80 G)",null,null,null,null,null,"Tax",{"$f":"'INCOME TAX'!$J$72","v":6794},null,null,null,null,null,null,null,11440,null,null,"SGT",null,null,null,null,null,null,null,null,4710,"Ch.Seenaiah"]
[null,null,null,null,null,null,null,null,null,null,null,null,null,null,null,null,null,"Exption on PHC dependent (80DD)",null,null,null,null,null,"Ad. Tax",{"$f":"'INCOME TAX'!$J$73","v":"Nil"},null,null,null,null,null,null,null,11755,null,null,null,null,null,null,null,null,null,null,null,4825,"G.Uma"]
[null,null,null,null,null,null,null,null,null,null,null,null,null,null,null,null,null,"Exp. On Medical Treatment",null,null,null,null,null,"Net Tax",{"$f":"'INCOME TAX'!J74","v":6794},null,null,null,null,null,null,null,12385,null,null,null,null,null,null,null,null,null,null,null,4950,"G.Saivijaya Kumar"]
[null,null,null,null,null,null,null,null,null,null,null,null,null,null,null,null,null,"interest on Education loan",null,null,null,null,null,"visit:gsreddy.tk",null,null,null,null,null,null,null,null,12700,null,null,null,null,null,null,null,null,null,null,null,5075,"T.Subba Rao"]
[null,null,null,null,null,null,null,null,null,null,null,null,null,null,null,null,null,"Mediclaim Insurance (80-D)",null,null,null,null,null,null,null,null,null,null,null,null,null,null,null,null,null,null,null,null,null,null,null,null,null,null,5200,"D.Sivaramaiah"]
[null,null,null,null,null,null,null,null,null,null,null,null,null,null,null,null,null,"New section 80CCF from financial year 2010-11",null,null,null,20000]
[null,null,null,null,null,null,null,null,null,null,null,null,null,null,null,null,"PRESENTED BY GSREDDY,STU,BALAYAPALLI.cell:9666570520",null,null,null,null,null,null,null,null,null,null,null,null,null,null,null,13030,null,null,null,null,null,null,null,null,null,null,null,5335,"G.MohanRaju"]
[null,null,null,null,null,null,null,null,null,null,null,null,null,null,null,null,null,null,null,null,null,null,null,null,null,null,null,null,null,null,null,null,15975,null,null,null,null,null,null,null,null,null,null,null,5470,"N.Bharathy"]
[null,null,null,null,null,null,null,null,null,null,null,null,null,null,null,null,null,"Thanks for using this software & visit my website gsreddy.tk",null,null,null,null,null,null,null,null,null,null,null,null,null,null,{"$f":"AG61+475","v":16450},null,null,null,null,null,null,null,null,null,null,null,null,"P.Mallikarjuna"]
[null,null,null,null,null,null,null,null,null,null,null,null,null,null,"http://gsreddy.tk                     http://gsreddy.tk              http://gsreddy.tk",null,null,null,null,null,null,null,null,null,null,null,null,null,null,null,null,null,null,null,null,null,null,null,null,null,null,null,null,null,5605,"V.Sreenivasulu"]
[null,null,null,null,null,null,null,null,null,null,null,null,null,null,null,null,null,null,null,null,null,null,null,null,null,null,null,null,null,null,null,null,{"$f":"16925+550","v":17475},null,null,null,null,null,null,null,null,null,null,null,5750]
[null,null,null,null,null,null,null,null,null,null,null,null,null,null,null,null,null,null,null,null,null,null,null,null,null,null,null,null,null,null,null,null,{"$f":"AG64+550","v":18025},null,null,null,null,null,null,null,null,null,null,null,5895]
[null,null,null,null,null,null,null,null,null,null,null,null,null,null,null,null,null,null,null,null,null,null,null,null,null,null,null,null,null,null,null,null,{"$f":"AG65+550","v":18575},null,null,null,null,null,null,null,null,null,null,null,6040]
[null,null,null,null,null,null,null,null,null,null,null,null,null,null,null,null,null,null,null,null,null,null,null,null,null,null,null,null,null,null,null,null,{"$f":"AG66+550","v":19125},null,null,null,null,null,null,null,null,null,null,null,6195]
[null,null,null,null,null,null,null,null,null,null,null,null,null,null,null,null,null,null,null,null,null,null,null,null,null,null,null,null,null,null,null,null,{"$f":"19125+550","v":19675},null,null,null,null,null,null,null,null,null,null,null,6350]
[null,null,null,null,null,null,null,null,null,null,null,null,null,null,null,null,null,null,null,null,null,null,null,null,null,null,null,null,null,null,null,null,{"$f":"19675+625","v":20300},null,null,null,null,null,null,null,null,null,null,null,6505]
[null,null,null,null,null,null,null,null,null,null,null,null,null,null,null,null,null,null,null,null,null,null,null,null,null,null,null,null,null,null,null,null,{"$f":"AG69+625","v":20925},null,null,null,null,null,null,null,null,null,null,null,6675]
[null,null,null,null,null,null,null,null,null,null,null,null,null,null,null,null,null,null,null,null,null,null,null,null,null,null,null,null,null,null,null,null,{"$f":"AG70+625","v":21550},null,null,null,null,null,null,null,null,null,null,null,6845]
[null,null,null,null,null,null,null,null,null,null,null,null,null,null,null,null,null,null,null,null,null,null,null,null,null,null,null,null,null,null,null,null,{"$f":"AG71+625","v":22175},null,null,null,null,null,null,null,null,null,null,null,7015]
[null,null,null,null,null,null,null,null,null,null,null,null,null,null,null,null,null,null,null,null,null,null,null,null,null,null,null,null,null,null,null,null,{"$f":"22175+625","v":22800},null,null,null,null,null,null,null,null,null,null,null,7200]
[null,null,null,null,null,null,null,null,null,null,null,null,null,null,null,null,null,null,null,null,null,null,null,null,null,null,null,null,null,null,null,null,{"$f":"AG73+700","v":23500},null,null,null,null,null,null,null,null,null,null,null,7385]
[null,null,null,null,null,null,null,null,null,null,null,null,null,null,null,null,null,null,null,null,null,null,null,null,null,null,null,null,null,null,null,null,24200,null,null,null,null,null,null,null,null,null,null,null,7570]
[null,null,null,null,null,null,null,null,null,null,null,null,null,null,null,null,null,null,null,null,null,null,null,null,null,null,null,null,null,null,null,null,24900,null,null,null,null,null,null,null,null,null,null,null,7770]
[null,null,null,null,null,null,null,null,null,null,null,null,null,null,null,null,null,null,null,null,null,null,null,null,null,null,null,null,null,null,null,null,25600,null,null,null,null,null,null,null,null,null,null,null,7970]
[null,null,null,null,null,null,null,null,null,null,null,null,null,null,null,null,null,null,null,null,null,null,null,null,null,null,null,null,null,null,null,null,26300,null,null,null,null,null,null,null,null,null,null,null,8170]
[null,null,null,null,null,null,null,null,null,null,null,null,null,null,null,null,null,null,null,null,null,null,null,null,null,null,null,null,null,null,null,null,27000,null,null,null,null,null,null,null,null,null,null,null,8385]
[null,null,null,null,null,null,null,null,null,null,null,null,null,null,null,null,null,null,null,null,null,null,null,null,null,null,null,null,null,null,null,null,{"$f":"AG79+750","v":27750},null,null,null,null,null,null,null,null,null,null,null,8600]
[null,null,null,null,null,null,null,null,null,null,null,null,null,null,null,null,null,null,null,null,null,null,null,null,null,null,null,null,null,null,null,null,{"$f":"AG80+750","v":28500},null,null,null,null,null,null,null,null,null,null,null,8815]
[null,null,null,null,null,null,null,null,null,null,null,null,null,null,null,null,null,null,null,null,null,null,null,null,null,null,null,null,null,null,null,null,{"$f":"AG81+750","v":29250},null,null,null,null,null,null,null,null,null,null,null,9050]
[null,null,null,null,null,null,null,null,null,null,null,null,null,null,null,null,null,null,null,null,null,null,null,null,null,null,null,null,null,null,null,null,{"$f":"AG82+750","v":30000},null,null,null,null,null,null,null,null,null,null,null,9285]
[null,null,null,null,null,null,null,null,null,null,null,null,null,null,null,null,null,null,null,null,null,null,null,null,null,null,null,null,null,null,null,null,{"$f":"AG83+765","v":30765},null,null,null,null,null,null,null,null,null,null,null,9520]
[null,null,null,null,null,null,null,null,null,null,null,null,null,null,null,null,null,null,null,null,null,null,null,null,null,null,null,null,null,null,null,null,null,null,null,null,null,null,null,null,null,null,null,null,9775]
[null,null,null,null,null,null,null,null,null,null,null,null,null,null,null,null,null,null,null,null,null,null,null,null,null,null,null,null,null,null,null,null,null,null,null,null,null,null,null,null,null,null,null,null,10030]
[null,null,null,null,null,null,null,null,null,null,null,null,null,null,null,null,null,null,null,null,null,null,null,null,null,null,null,null,null,null,null,null,null,null,null,null,null,null,null,null,null,null,null,null,10285]
[null,null,null,null,null,null,null,null,null,null,null,null,null,null,null,null,null,null,null,null,null,null,null,null,null,null,null,null,null,null,null,null,null,null,null,null,null,null,null,null,null,null,null,null,10565]
[null,null,null,null,null,null,null,null,null,null,null,null,null,null,null,null,null,null,null,null,null,null,null,null,null,null,null,null,null,null,null,null,null,null,null,null,null,null,null,null,null,null,null,null,10845]
[null,null,null,null,null,null,null,null,null,null,null,null,null,null,null,null,null,null,null,null,null,null,null,null,null,null,null,null,null,null,null,null,null,null,null,null,null,null,null,null,null,null,null,null,11125]
[null,null,null,null,null,null,null,null,null,null,null,null,null,null,null,null,null,null,null,null,null,null,null,null,null,null,null,null,null,null,null,null,null,null,null,null,null,null,null,null,null,null,null,null,11440]
[null,null,null,null,null,null,null,null,null,null,null,null,null,null,null,null,null,null,null,null,null,null,null,null,null,null,null,null,null,null,null,null,null,null,null,null,null,null,null,null,null,null,null,null,11755]
[null,null,null,null,null,null,null,null,null,null,null,null,null,null,null,null,null,null,null,null,null,null,null,null,null,null,null,null,null,null,null,null,null,null,null,null,null,null,null,null,null,null,null,null,12070]
[null,null,null,null,null,null,null,null,null,null,null,null,null,null,null,null,null,null,null,null,null,null,null,null,null,null,null,null,null,null,null,null,null,null,null,null,null,null,null,null,null,null,null,null,12385]
[null,null,null,null,null,null,null,null,null,null,null,null,null,null,null,null,null,null,null,null,null,null,null,null,null,null,null,null,null,null,null,null,null,null,null,null,null,null,null,null,null,null,null,null,12700]
[null,null,null,null,null,null,null,null,null,null,null,null,null,null,null,null,null,null,null,null,null,null,null,null,null,null,null,null,null,null,null,null,null,null,null,null,null,null,null,null,null,null,null,null,13030]
[null,null,null,null,null,null,null,null,null,null,null,null,null,null,null,null,null,null,null,null,null,null,null,null,null,null,null,null,null,null,null,null,null,null,null,null,null,null,null,null,null,null,null,null,13390]
[null,null,null,null,null,null,null,null,null,null,null,null,null,null,null,null,null,null,null,null,null,null,null,null,null,null,null,null,null,null,null,null,null,null,null,null,null,null,null,null,null,null,null,null,13750]
[null,null,null,null,null,null,null,null,null,null,null,null,null,null,null,null,null,null,null,null,null,null,null,null,null,null,null,null,null,null,null,null,null,null,null,null,null,null,null,null,null,null,null,null,14175]
[null,null,null,null,null,null,null,null,null,null,null,null,null,null,null,null,null,null,null,null,null,null,null,null,null,null,null,null,null,null,null,null,null,null,null,null,null,null,null,null,null,null,null,null,14600]
[null,null,null,null,null,null,null,null,null,null,null,null,null,null,null,null,null,null,null,null,null,null,null,null,null,null,null,null,null,null,null,null,null,null,null,null,null,null,null,null,null,null,null,null,15025]
[null,null,null,null,null,null,null,null,null,null,null,null,null,null,null,null,null,null,null,null,null,null,null,null,null,null,null,null,null,null,null,null,null,null,null,null,null,null,null,null,null,null,null,null,15500]
[null,null,null,null,null,null,null,null,null,null,null,null,null,null,null,null,null,null,null,null,null,null,null,null,null,null,null,null,null,null,null,null,null,null,null,null,null,null,null,null,null,null,null,null,15975]
[null,null,null,null,null,null,null,null,null,null,null,null,null,null,null,null,null,null,null,null,null,null,null,null,null,null,null,null,null,null,null,null,null,null,null,null,null,null,null,null,null,null,null,null,16450]
[null,null,null,null,null,null,null,null,null,null,null,null,null,null,null,null,null,null,null,null,null,null,null,null,null,null,null,null,null,null,null,null,null,null,null,null,null,null,null,null,null,null,null,null,16925]
[null,null,null,null,null,null,null,null,null,null,null,null,null,null,null,null,null,null,null,null,null,null,null,null,null,null,null,null,null,null,null,null,null,null,null,null,null,null,null,null,null,null,null,null,17475]
[null,null,null,null,null,null,null,null,null,null,null,null,null,null,null,null,null,null,null,null,null,null,null,null,null,null,null,null,null,null,null,null,null,null,null,null,null,null,null,null,null,null,null,null,18025]
[null,null,null,null,null,null,null,null,null,null,null,null,null,null,null,null,null,null,null,null,null,null,null,null,null,null,null,null,null,null,null,null,null,null,null,null,null,null,null,null,null,null,null,null,18575]
[null,null,null,null,null,null,null,null,null,null,null,null,null,null,null,null,null,null,null,null,null,null,null,null,null,null,null,null,null,null,null,null,null,null,null,null,null,null,null,null,null,null,null,null,19125]
[null,null,null,null,null,null,null,null,null,null,null,null,null,null,null,null,null,null,null,null,null,null,null,null,null,null,null,null,null,null,null,null,null,null,null,null,null,null,null,null,null,null,null,null,19675]
[null,null,null,null,null,null,null,null,null,null,null,null,null,null,null,null,null,null,null,null,null,null,null,null,null,null,null,null,null,null,null,null,null,null,null,null,null,null,null,null,null,null,null,null,20300]
[null,null,null,null,null,null,null,null,null,null,null,null,null,null,null,null,null,null,null,null,null,null,null,null,null,null,null,null,null,null,null,null,null,null,null,null,null,null,null,null,null,null,null,null,20925]
[null,null,null,null,null,null,null,null,null,null,null,null,null,null,null,null,null,null,null,null,null,null,null,null,null,null,null,null,null,null,null,null,null,null,null,null,null,null,null,null,null,null,null,null,21550]
[null,null,null,null,null,null,null,null,null,null,null,null,null,null,null,null,null,null,null,null,null,null,null,null,null,null,null,null,null,null,null,null,null,null,null,null,null,null,null,null,null,null,null,null,22175]
[null,null,null,null,null,null,null,null,null,null,null,null,null,null,null,null,null,null,null,null,null,null,null,null,null,null,null,null,null,null,null,null,null,null,null,null,null,null,null,null,null,null,null,null,22800]
[null,null,null,null,null,null,null,null,null,null,null,null,null,null,null,null,null,null,null,null,null,null,null,null,null,null,null,null,null,null,null,null,null,null,null,null,null,null,null,null,null,null,null,null,23500]
[null,null,null,null,null,null,null,null,null,null,null,null,null,null,null,null,null,null,null,null,null,null,null,null,null,null,null,null,null,null,null,null,null,null,null,null,null,null,null,null,null,null,null,null,24200]
[null,null,null,null,null,null,null,null,null,null,null,null,null,null,null,null,null,null,null,null,null,null,null,null,null,null,null,null,null,null,null,null,null,null,null,null,null,null,null,null,null,null,null,null,24900]
[null,null,null,null,null,null,null,null,null,null,null,null,null,null,null,null,null,null,null,null,null,null,null,null,null,null,null,null,null,null,null,null,null,null,null,null,null,null,null,null,null,null,null,null,25600]
[null,null,null,null,null,null,null,null,null,null,null,null,null,null,null,null,null,null,null,null,null,null,null,null,null,null,null,null,null,null,null,null,null,null,null,null,null,null,null,null,null,null,null,null,26300]
[null,null,null,null,null,null,null,null,null,null,null,null,null,null,null,null,null,null,null,null,null,null,null,null,null,null,null,null,null,null,null,null,null,null,null,null,null,null,null,null,null,null,null,null,27000]
[null,null,null,null,null,null,null,null,null,null,null,null,null,null,null,null,null,null,null,null,null,null,null,null,null,null,null,null,null,null,null,null,null,null,null,null,null,null,null,null,null,null,null,null,27750]
[null,null,null,null,null,null,null,null,null,null,null,null,null,null,null,null,null,null,null,null,null,null,null,null,null,null,null,null,null,null,null,null,null,null,null,null,null,null,null,null,null,null,null,null,28500]
[null,null,null,null,null,null,null,null,null,null,null,null,null,null,null,null,null,null,null,null,null,null,null,null,null,null,null,null,null,null,null,null,null,null,null,null,null,null,null,null,null,null,null,null,29250]
[null,null,null,null,null,null,null,null,null,null,null,null,null,null,null,null,null,null,null,null,null,null,null,null,null,null,null,null,null,null,null,null,null,null,null,null,null,null,null,null,null,null,null,null,30000]
[null,null,null,null,null,null,null,null,null,null,null,null,null,null,null,null,null,null,null,null,null,null,null,null,null,null,null,null,null,null,null,null,null,null,null,null,null,null,null,null,null,null,null,null,30765]

{"sheet":"INCOME TAX","index":5,"n_rows":88,"n_cols":16,"rows_kept":88,"cut":false,"hidden":false,"merged":[[51,3,51,6],[61,3,61,6],[62,3,62,6],[52,3,52,6],[33,3,33,5],[1,11,87,11],[87,1,87,10],[75,1,75,2],[34,5,34,6],[66,2,66,5],[85,6,85,10],[85,1,85,3],[21,3,21,6],[22,3,22,6],[1,1,1,10],[5,8,5,10],[6,8,6,10],[82,1,82,2],[2,8,2,10],[50,3,50,6],[63,3,63,6]]}
[]
[null,{"$f":"CONCATENATE(\"INCOME TAX RETURN FOR THE YEAR \",RIGHT(Data!Q3,10))","v":"INCOME TAX RETURN FOR THE YEAR  2010-2011"}]
[null,1,"Name of the Employee                 ",null,null,null,null,":",{"$f":"CONCATENATE(LOOKUP(code2!H1,code2!F1:G3),Data!U4)","v":"Sri.G.Bhasker Reddy"},null,null,null,null,"Gross amount",null,{"$f":"J19","v":263821}]
[null,2,"Desigation & Address   ",null,null,null,null,":",{"$f":"Designation","v":"School Assistant (Maths)"},null,null,null,null,"HRA",null,{"$f":"J24","v":19805}]
[null,null,null,null,null,null,null,null,{"$f":"Data!U7","v":"ZPPHS,Balayapalli"}]
[null,null,null,null,null,null,null,null,{"$f":"IF(Mandals!Z1=Mandals!Z8,\" \",CONCATENATE(Mandals!AA2,\" Mandalm\"))","v":"Balayapalli Mandalm"}]
[null,null,null,null,null,null,null,null,{"$f":"Mandals!Z1","v":"Nellore District"}]
[null,3,"Income Tax No. if already alloted",null,null,null,null,":",{"$f":"Data!U6","v":0}]
[null,4,"Income Receipts For The Year"]
[null,null,"a)","Pay",null,null,null,":","Rs.",{"$f":"'SALARY TABLE'!$C$28","v":198050}]
[null,null,"b)","Personal pay/H.M.A/AI/CA/FPI",null,null,null,":","Rs.",{"$f":"'SALARY TABLE'!I28+'SALARY TABLE'!L28+'SALARY TABLE'!M28+'SALARY TABLE'!N28+'SALARY TABLE'!P28","v":0}]
[null,null,"c)","Dearness Allowance(D.A)",null,null,null,":","Rs.",{"$f":"'SALARY TABLE'!$E$28","v":45966}]
[null,null,"d)","House Rent Allowance",null,null,null,":","Rs.",{"$f":"'SALARY TABLE'!$F$28","v":19805}]
[null,null,"e)","I.R",null,null,null,":","Rs.",{"$f":"'SALARY TABLE'!H28","v":0}]
[null,null,"f )","Child Education Consession",null,null,null,":","Rs.",{"$f":"'SALARY TABLE'!Q25","v":0}]
[null,null,"g)","others(F.P.I/C.A/SCA/RA/CCA etc)",null,null,null,":","Rs.",{"$f":"Data!$Z$46+Data!$Z$47+'SALARY TABLE'!G28+'SALARY TABLE'!J28+'SALARY TABLE'!O28+'SALARY TABLE'!K28","v":0}]
[null,5,"Gross salary(a+b+c+d+e+f+g)",null,null,null,null,":","Rs.",{"$f":"SUM(J10:J16)","v":263821}]
[null,6,"Income from other sources",null,null,null,null,":","Rs.",0]
[null,7,"Gross Total income(5+6)",null,null,null,null,":","Rs.",{"$f":"J17+J18","v":263821}]
[null,8,"House rent allowance ",null,null,null,"vis 10(2A),13(A)"]
[null,null,"a)","Actual House Rent received",null,null,null,":","Rs.",{"$f":"'SALARY TABLE'!$F$28","v":19805}]
[null,null,"b)",{"$f":"\"Excess of house rent received over & above of 10% of (Pay+DA)\"","v":"Excess of house rent received over & above of 10% of (Pay+DA)"},null,null,null,":","Rs.",{"$f":"ROUND((J10+J12)*10%,0)","v":24402}]
[null,null,"c)","40% of (Pay+DA)    (deduct (a) or (b) or (c) which ever less)          ",null,null,null,":","Rs.",{"$f":"ROUND(0.4*(J10+J12),0)","v":97606}]
[null,null,null,null,null,null,null,":","Rs.",{"$f":"IF(J21>J22,J22,IF(J21>J23,J23,J21))","v":19805}]
[null,9,"Net Salary Income (7-8)",null,null,null,null,":","Rs.",{"$f":"J19-SMALL(J21:J23,1)","v":244016}]
[null,10,"Deductions"]
[null,null,"Professional Tax u/s 16 III",null,null,null,null,":","Rs.",{"$f":"'SALARY TABLE'!$W$28","v":2000}]
[null,null,"Special/conveyance/traveling allowance",null,null,null,null,":","Rs.",0]
[null,11,"Net Salary Income (9-10)",null,null,null,null,":","Rs.",{"$f":"J25-J27","v":242016}]
[null,12,"Deductions Under Chapter VI - A"]
[null,null,"a)","C.M. Relief Fund and flag day",null,null,null,":","Rs.",{"$f":"'SALARY TABLE'!Y12+'SALARY TABLE'!Y8","v":0}]
[null,null,"b)","Housing Loan Interst",null,null,null,":","Rs.",{"$f":"Data!V46","v":0}]
[null,null,"c)","T.W.F/E.W.F/S.W.F",null,null,null,":","Rs.",{"$f":"'SALARY TABLE'!$Y$5+'SALARY TABLE'!Y14","v":40}]
[null,null,"d)","Exemption from conveyance allowance u/s.10(14)(i)",null,null,null,":","Rs.",{"$f":"'SALARY TABLE'!P28","v":0}]
[null,null,null,"Total",null,"(a+b+c+d)",null,":","Rs.",{"$f":"J31+J32+J33+J34","v":40}]
[null,13,"Net Salary Income (11-12)",null,null,null,null,":","Rs.",{"$f":"J29-J35","v":241976}]
[null,14,"Deductions Under Section 80 C.C.E"]
[null,null,"a)","L.I.C",null,null,null,":","Rs.",{"$f":"'SALARY TABLE'!T28","v":0}]
[null,null,"b)","L.I.C(Personal)",null,null,null,":","Rs.",{"$f":"Data!T37","v":0}]
[null,null,"c)","P.L.I",null,null,null,":","Rs.",{"$f":"Data!V43","v":0}]
[null,null,"d)","G.I.S",null,null,null,":","Rs.",{"$f":"'SALARY TABLE'!S28","v":720}]
[null,null,"e)","A.P.G.L.I.S",null,null,null,":","Rs.",{"$f":"'SALARY TABLE'!U28","v":0}]
[null,null,"f)",{"$f":"Code!AD12","v":"ZPPF"},null,null,null,":","Rs.",{"$f":"'SALARY TABLE'!R28","v":15293}]
[null,null,"g)","CSS",null,null,null,":","Rs.",{"$f":"IF(D43=\"CPS\",'SALARY TABLE'!V28,0)","v":0}]
[null,null,"h)","N.S.E",null,null,null,":","Rs.",{"$f":"Data!V42","v":0}]
[null,null,"i)","Tution Fee",null,null,null,":","Rs.",{"$f":"Data!V41","v":0}]
[null,null,"j)","Houseing Loan Principle",null,null,null,":","Rs.",{"$f":"Data!V40","v":0}]
[null,null,"k)",{"$f":"Data!R47","v":"Fixed deposits for more than 5 years"},null,null,null,":","Rs.",{"$f":"Data!V47","v":0}]
[null,null,"l)","L.I.C(Jeevan Suraksha)",null,null,null,":","Rs.",{"$f":"Data!V44","v":0}]
[null,null,"m)",{"$f":"Data!R45","v":"ING Life Insurance/Bajaj allianzlife insurance"},null,null,null,":","Rs.",{"$f":"Data!V45","v":0}]
[null,null,"n)","P.P.F",null,null,null,":","Rs.",{"$f":"Data!V48","v":0}]
[null,null,"o)",{"$f":"Data!R49","v":0},null,null,null,":","Rs.",{"$f":"Data!V49","v":0}]
[null,null,"p)",{"$f":"Data!R50","v":0},null,null,null,":","Rs.",{"$f":"Data!V50","v":0}]
[null,15,"Total (a+b+c+d+e+f+g+h+i+j+k+l+m+n+o+p)",null,null,null,null,":","Rs.",{"$f":"SUM(J38:J53)","v":16013}]
[null,16,"Taxable Income(14-15)",null,null,null,null,":","Rs.",{"$f":"IF(SUM(J38:J53)>100000,J36-100000,J36-J54)","v":225963}]
[null,17,"Taxable income after deductions of savings"]
[null,null,"a)",{"$f":"Data!R54","v":"Donations (80 G)"},null,null,null,":","Rs.",{"$f":"Data!V54","v":0}]
[null,null,"b)",{"$f":"Data!R55","v":"Exption on PHC dependent (80DD)"},null,null,null,":","Rs.",{"$f":"Data!V55","v":0}]
[null,null,"c)",{"$f":"Data!R56","v":"Exp. On Medical Treatment"},null,null,null,":","Rs.",{"$f":"Data!V56","v":0}]
[null,null,"d)",{"$f":"Data!R57","v":"interest on Education loan"},null,null,null,":","Rs.",{"$f":"Data!V57","v":0}]
[null,null,"e)",{"$f":"Data!R58","v":"Mediclaim Insurance (80-D)"},null,null,null,":","Rs.",{"$f":"Data!V58","v":0},null,null,null,"Income Tax Slabs 2009/2010 for Men"]
[null,null,"f)",{"$f":"Data!R53","v":"Infrastructure Bonds(Max Rs.20,000/- only)"},null,null,null,":","Rs.",{"$f":"Data!V53","v":0}]
[null,null,"g)",{"$f":"Data!R52","v":0},null,null,null,":","Rs.",{"$f":"Data!V52","v":0}]
[null,null,"h)",{"$f":"Data!$R$51","v":0},null,null,null,":","Rs.",{"$f":"Data!V51","v":0}]
[null,18,"Total (a+b+c+d+e+f+g+h)",null,null,null,null,":","Rs.",{"$f":"SUM(J57:J64)","v":0},null,null,null,"Income: upto 1.6 lacs","NO TAX"]
[null,19,"Tax Payble income(16-18)",null,null,null,null,":","Rs.",{"$f":"IF(J55<J65,\"Nil\",J55-J65)","v":225963},null,null,null,"Income : 1.6 lacs to 3 lacs",0.1]
[null,20,{"$f":"CONCATENATE(\"No Tax for income upto Rs.\",J67)","v":"No Tax for income upto Rs.160000"},null,null,null,null,":","Rs.",{"$f":"IF(code2!G4=1,160000,IF(code2!G4=2,190000,240000))","v":160000}]
[null,21,"Final Taxable amount (19-20)",null,null,null,null,":","Rs.",{"$f":"IF((J66-J67)<0,\"Nil\",J66-J67)","v":65963}]
[null,22,"Tax(see note)",null,null,null,null,":","Rs.",{"$f":"tax","v":6596},null,null,null,"Income : 3 lacs to 5 lacs",0.2]
[null,23,"Education cess(2%)",null,null,null,null,":","Rs.",{"$f":"IF(J69=\"Nil\",\"Nil\",ROUND((2%*J69),0))","v":132},null,null,null,"Income : above 5 lacs",0.3]
[null,24,"Secondary & Higher Education cess(1%)",null,null,null,null,":","Rs.",{"$f":"IF(J69=\"Nil\",\"Nil\",ROUND((1%*J69),0))","v":66}]
[null,25,"Tax to be paid",null,null,null,null,":","Rs.",{"$f":"IF(J69=\"Nil\",\"Nil\",SUM(J69:J71))","v":6794},null,null,null,"Income Tax Slabs 2009/2010 or Women"]
[null,26,"Advance tax paid",null,null,null,null,":","Rs.",{"$f":"IF(OR(J69=\"Nil\",'ADVANCE TAX'!B3=\"Not Applicable  \"),\"Nil\",'SALARY TABLE'!X28)","v":"Nil"}]
[null,27,"Net TAX to be paid",null,null,null,null,":","Rs.",{"$f":"IF(OR(J68=\"Nil\",J66=\"Nil\",J72=\"Nil\"),\"Nil\",IF(J73=\"Nil\",J72,J72-J73))","v":6794}]
[]
[null,"Note:",null,"Annual Income","Men","Women","Senior citizen ",null,null,null,null,null,null,"Income : upto 1.9 lacs","NO TAX"]
[null,null,null,"Below 1,60,000","No Tax","No Tax","No Tax",null,null,null,null,null,null,"Income : 1.9 lacs to 3 lacs",0.1]
[null,null,null,"1,60,001-1,90,000",0.1,"No Tax","No Tax",null,null,null,null,null,null,"Income : 3 lacs to 5 lacs",0.2]
[null,null,null,"1,90,001-2,40,000",0.1,0.1,"No Tax",null,null,null,null,null,null,"Income : above 5 lacs",0.3]
[null,null,null,"2,40,001-5,00,000",0.1,0.1,0.1]
[null,null,null,"5,00,001-8,00,000",0.2,0.2,0.2,null,null,null,null,null,null,"Income Tax slabs 2009/2010 for Senior Citizen"]
[null,null,null,"8,00,000 Above",0.3,0.3,0.3,null,null,null,null,null,null,"Income : upto 2.4 lacs","NO TAX"]
[null,"Note:",null,"1.Deduct savings amount(col. No. 14) from taxable income Under section 80 C.C.E (Limit Rs.100000)    ",null,null,null,null,null,null,null,null,null,"Income : 2.4 lacs to 3 lacs",0.1]
[null,null,null,"2.Penalty u/s. 271F: Failure to furnish a return of income as required u/s.139 before the end of the ",null,null,null,null,null,null,null,null,null,"Income : 3 lacs to 5 lacs",0.2]
[null,null,null,"relevant assessment year shall entail the assessee liable for a penalty of Rs.5,000-00",null,null,null,null,null,null,null,null,null,"Income : above 5 lacs",0.3]
[null,"COUNTER SIGNED",null,null,null,null,"SIGNATURE OF EMPLOYEE"]
[]
[null,"Designed by G.S.Reddy,Venkatagiri,cell:9666570250"]

{"sheet":"SALARY TABLE","index":6,"n_rows":89,"n_cols":81,"rows_kept":89,"cut":false,"hidden":false,"merged":[[68,4,68,6],[1,28,32,28],[32,1,32,26],[28,22,28,26],[29,22,29,26],[30,22,30,26],[31,22,31,26],[53,19,55,20],[34,1,34,16],[1,1,1,26],[2,1,2,26],[28,1,28,4]]}
[]
[null,{"$f":"CONCATENATE(\"Statement Showing Monthwise income of Sri.\",\" \",Data!U4,\" for the year \",RIGHT(Data!Q3,10))","v":"Statement Showing Monthwise income of Sri. G.Bhasker Reddy for the year  2010-2011"}]
[]
[null,"Month","Basic pay","D.A","D.A","H.R.A","AHRA","IR","HMA","SCA","CCA","AI","PP/Special pay","FPI","RA","CA\n(PHA)","Total \nIncome",{"$f":"Code!AD12","v":"ZPPF"},"G.I.S","L.I.C","A.P.G.L.I.S",{"$f":"IF(R4=\"CPS\",\"CSS\",\" \")","v":" "},"PT","Advance Tax","CMRF/\nTWF\n/SWF","Total\ndeductions","Net",null,null,null,null,null,0]
[null,"2010-03-01",{"$f":"R57","v":15700},{"$f":"Data!$W$41","v":9.4159999999999994E-2},{"$f":"ROUND((D5*C5),0)","v":1478},{"$f":"Code!AP64","v":1570},{"$f":"Code!AR64","v":0},null,{"$f":"IF($C5=0,0,IF(Code!$AM$3=1,ROUND(Data!$U$24/2,0),Data!$U$24))","v":0},{"$f":"Code!AE121","v":0},{"$f":"Code!AE139","v":0},{"$f":"IF($C5=0,0,IF(Code!$AM$3=1,ROUND(Data!$U$20/2,0),Data!$U$20))","v":0},{"$f":"IF($C5=0,0,IF(Code!$AM$3=1,ROUND(Data!$U$21/2,0),Data!$U$21))","v":0},{"$f":"IF($C5=0,0,IF(Code!$AM$3=1,ROUND(Data!$U$22/2,0),Data!$U$22))","v":0},{"$f":"IF(Code!$W$111=\"Not Applicable\",0,Code!$W$111)","v":0},{"$f":"IF($C5=0,0,IF(Code!$AM$3=1,ROUND(Code!AL36/2,0),Code!AL36))","v":0},{"$f":"C5+E5+F5+G5+H5+I5+J5+K5+L5+M5+N5+O5+P5","v":18748},{"$f":"Code!AV33","v":0},{"$f":"Code!AH3","v":60},{"$f":"Code!AV48","v":0},{"$f":"Code!AV18","v":0},null,{"$f":"IF(Code!$AE$3=2,Code!CB118,\" \")","v":150},{"$f":"IF(Code!$AB$96=1,'ADVANCE TAX'!C3,\" \")","v":" "},{"$f":"ewf","v":20},{"$f":"SUM(R5:Y5)","v":230},{"$f":"Q5-Z5","v":18518},null,null,null,null,null,3850,0]
[null,"2010-04-01",15700,{"$f":"Data!W41","v":9.4159999999999994E-2},1478,{"$f":"Code!AP65","v":1570},{"$f":"Code!AR65","v":0},null,{"$f":"IF($C6=0,0,IF(Code!$AM$3=1,ROUND(Data!$U$24/2,0),Data!$U$24))","v":0},{"$f":"Code!AE122","v":0},{"$f":"Code!AE140","v":0},{"$f":"IF($C6=0,0,IF(Code!$AM$3=1,ROUND(Data!$U$20/2,0),Data!$U$20))","v":0},{"$f":"IF($C6=0,0,IF(Code!$AM$3=1,ROUND(Data!$U$21/2,0),Data!$U$21))","v":0},{"$f":"IF($C6=0,0,IF(Code!$AM$3=1,ROUND(Data!$U$22/2,0),Data!$U$22))","v":0},{"$f":"IF(Code!$W$111=\"Not Applicable\",0,Code!$W$111)","v":0},{"$f":"IF($C6=0,0,IF(Code!$AM$3=1,ROUND(Code!AL37/2,0),Code!AL37))","v":0},{"$f":"C6+E6+F6+G6+H6+I6+J6+K6+L6+M6+N6+O6+P6","v":18748},{"$f":"Code!AV34","v":0},{"$f":"S5","v":60},{"$f":"Code!AV49","v":0},{"$f":"Code!AV19","v":0},null,{"$f":"IF(Code!$AE$3=2,Code!CB119,\" \")","v":150},{"$f":"IF(Code!$AB$96=1,'ADVANCE TAX'!C4,\" \")","v":" "},null,210,18538,null,null,null,null,null,3950,30]
[null,"2010-05-01",15700,{"$f":"Data!W41","v":9.4159999999999994E-2},1478,{"$f":"Code!AP66","v":1570},{"$f":"Code!AR66","v":0},null,{"$f":"IF($C7=0,0,IF(Code!$AM$3=1,ROUND(Data!$U$24/2,0),Data!$U$24))","v":0},{"$f":"Code!AE123","v":0},{"$f":"Code!AE141","v":0},{"$f":"IF($C7=0,0,IF(Code!$AM$3=1,ROUND(Data!$U$20/2,0),Data!$U$20))","v":0},{"$f":"IF($C7=0,0,IF(Code!$AM$3=1,ROUND(Data!$U$21/2,0),Data!$U$21))","v":0},{"$f":"IF($C7=0,0,IF(Code!$AM$3=1,ROUND(Data!$U$22/2,0),Data!$U$22))","v":0},{"$f":"IF(Code!$W$111=\"Not Applicable\",0,Code!$W$111)","v":0},{"$f":"IF($C7=0,0,IF(Code!$AM$3=1,ROUND(Code!AL38/2,0),Code!AL38))","v":0},18748,{"$f":"Code!AV35","v":0},60,{"$f":"Code!AV50","v":0},{"$f":"Code!AV20","v":0},null,{"$f":"IF(Code!$AE$3=2,Code!CB120,\" \")","v":150},{"$f":"IF(Code!$AB$96=1,'ADVANCE TAX'!C5,\" \")","v":" "},null,210,18538,null,null,null,null,null,4050,60]
[null,"2010-06-01",15700,{"$f":"Data!W41","v":9.4159999999999994E-2},1478,{"$f":"Code!AP67","v":1570},{"$f":"Code!AR67","v":0},null,{"$f":"IF($C8=0,0,IF(Code!$AM$3=1,ROUND(Data!$U$24/2,0),Data!$U$24))","v":0},{"$f":"Code!AE124","v":0},{"$f":"Code!AE142","v":0},{"$f":"IF($C8=0,0,IF(Code!$AM$3=1,ROUND(Data!$U$20/2,0),Data!$U$20))","v":0},{"$f":"IF($C8=0,0,IF(Code!$AM$3=1,ROUND(Data!$U$21/2,0),Data!$U$21))","v":0},{"$f":"IF($C8=0,0,IF(Code!$AM$3=1,ROUND(Data!$U$22/2,0),Data!$U$22))","v":0},{"$f":"IF(Code!$W$111=\"Not Applicable\",0,Code!$W$111)","v":0},{"$f":"IF($C8=0,0,IF(Code!$AM$3=1,ROUND(Code!AL39/2,0),Code!AL39))","v":0},18748,{"$f":"Code!AV36","v":0},60,{"$f":"Code!AV51","v":0},{"$f":"Code!AV21","v":0},null,{"$f":"IF(Code!$AE$3=2,Code!CB121,\" \")","v":150},{"$f":"IF(Code!$AB$96=1,'ADVANCE TAX'!C6,\" \")","v":" "},null,210,18538,null,null,null,null,null,4150]
[null,"2010-07-01",15700,{"$f":"Data!$Y$41","v":0.16264000000000001},2553,{"$f":"Code!AP68","v":1570},{"$f":"Code!AR68","v":0},null,{"$f":"IF($C9=0,0,IF(Code!$AM$3=1,ROUND(Data!$U$24/2,0),Data!$U$24))","v":0},{"$f":"Code!AE125","v":0},{"$f":"Code!AE143","v":0},{"$f":"IF($C9=0,0,IF(Code!$AM$3=1,ROUND(Data!$U$20/2,0),Data!$U$20))","v":0},{"$f":"IF($C9=0,0,IF(Code!$AM$3=1,ROUND(Data!$U$21/2,0),Data!$U$21))","v":0},{"$f":"IF($C9=0,0,IF(Code!$AM$3=1,ROUND(Data!$U$22/2,0),Data!$U$22))","v":0},{"$f":"IF(Code!$W$111=\"Not Applicable\",0,Code!$W$111)","v":0},{"$f":"IF($C9=0,0,IF(Code!$AM$3=1,ROUND(Code!AL40/2,0),Code!AL40))","v":0},19823,{"$f":"Code!AV37","v":0},60,{"$f":"Code!AV52","v":0},{"$f":"Code!AV22","v":0},null,{"$f":"IF(Code!$AE$3=2,Code!CB122,\" \")","v":150},{"$f":"IF(Code!$AB$96=1,'ADVANCE TAX'!C7,\" \")","v":" "},null,210,19613,null,null,null,null,null,4260]
[null,"2010-08-01",15700,{"$f":"Data!$Y$41","v":0.16264000000000001},2553,{"$f":"Code!AP69","v":1570},{"$f":"Code!AR69","v":0},null,{"$f":"IF($C10=0,0,IF(Code!$AM$3=1,ROUND(Data!$U$24/2,0),Data!$U$24))","v":0},{"$f":"Code!AE126","v":0},{"$f":"Code!AE144","v":0},{"$f":"IF($C10=0,0,IF(Code!$AM$3=1,ROUND(Data!$U$20/2,0),Data!$U$20))","v":0},{"$f":"IF($C10=0,0,IF(Code!$AM$3=1,ROUND(Data!$U$21/2,0),Data!$U$21))","v":0},{"$f":"IF($C10=0,0,IF(Code!$AM$3=1,ROUND(Data!$U$22/2,0),Data!$U$22))","v":0},{"$f":"IF(Code!$W$111=\"Not Applicable\",0,Code!$W$111)","v":0},{"$f":"IF($C10=0,0,IF(Code!$AM$3=1,ROUND(Code!AL41/2,0),Code!AL41))","v":0},19823,{"$f":"Code!AV38","v":0},60,{"$f":"Code!AV53","v":0},{"$f":"Code!AV23","v":0},null,{"$f":"IF(Code!$AE$3=2,Code!CB123,\" \")","v":150},{"$f":"IF(Code!$AB$96=1,'ADVANCE TAX'!C8,\" \")","v":" "},null,210,19613,null,null,null,null,null,4370]
[null,"2010-09-01",15700,{"$f":"Data!$Y$41","v":0.16264000000000001},2553,{"$f":"Code!AP70","v":1570},{"$f":"Code!AR70","v":0},null,{"$f":"IF($C11=0,0,IF(Code!$AM$3=1,ROUND(Data!$U$24/2,0),Data!$U$24))","v":0},{"$f":"Code!AE127","v":0},{"$f":"Code!AE145","v":0},{"$f":"IF($C11=0,0,IF(Code!$AM$3=1,ROUND(Data!$U$20/2,0),Data!$U$20))","v":0},{"$f":"IF($C11=0,0,IF(Code!$AM$3=1,ROUND(Data!$U$21/2,0),Data!$U$21))","v":0},{"$f":"IF($C11=0,0,IF(Code!$AM$3=1,ROUND(Data!$U$22/2,0),Data!$U$22))","v":0},{"$f":"IF(Code!$W$111=\"Not Applicable\",0,Code!$W$111)","v":0},{"$f":"IF($C11=0,0,IF(Code!$AM$3=1,ROUND(Code!AL42/2,0),Code!AL42))","v":0},19823,{"$f":"Code!AV39","v":0},60,{"$f":"Code!AV54","v":0},{"$f":"Code!AV24","v":0},null,{"$f":"IF(Code!$AE$3=2,Code!CB124,\" \")","v":150},{"$f":"IF(Code!$AB$96=1,'ADVANCE TAX'!C9,\" \")","v":" "},null,210,19613,null,null,null,null,null,4480]
[null,"2010-10-01",15700,{"$f":"Data!$Y$41","v":0.16264000000000001},2553,{"$f":"Code!AP71","v":1570},{"$f":"Code!AR71","v":0},null,{"$f":"IF($C12=0,0,IF(Code!$AM$3=1,ROUND(Data!$U$24/2,0),Data!$U$24))","v":0},{"$f":"Code!AE128","v":0},{"$f":"Code!AE146","v":0},{"$f":"IF($C12=0,0,IF(Code!$AM$3=1,ROUND(Data!$U$20/2,0),Data!$U$20))","v":0},{"$f":"IF($C12=0,0,IF(Code!$AM$3=1,ROUND(Data!$U$21/2,0),Data!$U$21))","v":0},{"$f":"IF($C12=0,0,IF(Code!$AM$3=1,ROUND(Data!$U$22/2,0),Data!$U$22))","v":0},{"$f":"IF(Code!$W$111=\"Not Applicable\",0,Code!$W$111)","v":0},{"$f":"IF($C12=0,0,IF(Code!$AM$3=1,ROUND(Code!AL43/2,0),Code!AL43))","v":0},19823,{"$f":"Code!AV40","v":0},60,{"$f":"Code!AV55","v":0},{"$f":"Code!AV25","v":0},null,{"$f":"IF(Code!$AE$3=2,Code!CB125,\" \")","v":150},{"$f":"IF(Code!$AB$96=1,'ADVANCE TAX'!C10,\" \")","v":" "},null,210,19613,null,null,null,null,null,4595]
[null,"2010-11-01",16150,{"$f":"Data!$Y$41","v":0.16264000000000001},2627,{"$f":"Code!AP72","v":1615},{"$f":"Code!AR72","v":0},null,{"$f":"IF($C13=0,0,IF(Code!$AM$3=1,ROUND(Data!$U$24/2,0),Data!$U$24))","v":0},{"$f":"Code!AE129","v":0},{"$f":"Code!AE147","v":0},{"$f":"IF($C13=0,0,IF(Code!$AM$3=1,ROUND(Data!$U$20/2,0),Data!$U$20))","v":0},{"$f":"IF($C13=0,0,IF(Code!$AM$3=1,ROUND(Data!$U$21/2,0),Data!$U$21))","v":0},{"$f":"IF($C13=0,0,IF(Code!$AM$3=1,ROUND(Data!$U$22/2,0),Data!$U$22))","v":0},{"$f":"IF(Code!$W$111=\"Not Applicable\",0,Code!$W$111)","v":0},{"$f":"IF($C13=0,0,IF(Code!$AM$3=1,ROUND(Code!AL44/2,0),Code!AL44))","v":0},20392,{"$f":"Code!AV41","v":0},60,{"$f":"Code!AV56","v":0},{"$f":"Code!AV26","v":0},null,{"$f":"IF(Code!$AE$3=2,Code!CB126,\" \")","v":200},{"$f":"IF(Code!$AB$96=1,'ADVANCE TAX'!C11,\" \")","v":" "},null,260,20132,null,null,null,null,null,4710]
[null,"2010-12-01",16150,{"$f":"Data!$Y$41","v":0.16264000000000001},2627,{"$f":"Code!AP73","v":1615},{"$f":"Code!AR73","v":0},null,{"$f":"IF($C14=0,0,IF(Code!$AM$3=1,ROUND(Data!$U$24/2,0),Data!$U$24))","v":0},{"$f":"Code!AE130","v":0},{"$f":"Code!AE148","v":0},{"$f":"IF($C14=0,0,IF(Code!$AM$3=1,ROUND(Data!$U$20/2,0),Data!$U$20))","v":0},{"$f":"IF($C14=0,0,IF(Code!$AM$3=1,ROUND(Data!$U$21/2,0),Data!$U$21))","v":0},{"$f":"IF($C14=0,0,IF(Code!$AM$3=1,ROUND(Data!$U$22/2,0),Data!$U$22))","v":0},{"$f":"IF(Code!$W$111=\"Not Applicable\",0,Code!$W$111)","v":0},{"$f":"IF($C14=0,0,IF(Code!$AM$3=1,ROUND(Code!AL45/2,0),Code!AL45))","v":0},20392,{"$f":"Code!AV42","v":0},60,{"$f":"Code!AV57","v":0},{"$f":"Code!AV27","v":0},null,{"$f":"IF(Code!$AE$3=2,Code!CB127,\" \")","v":200},{"$f":"IF(Code!$AB$96=1,'ADVANCE TAX'!C12,\" \")","v":" "},{"$f":"swf","v":20},280,20112,null,null,null,null,null,4825]
[null,"2011-01-01",16150,{"$f":"Data!$Y$42","v":0.24823999999999999},4009,{"$f":"Code!AP74","v":1615},{"$f":"Code!AR74","v":0},null,{"$f":"IF($C15=0,0,IF(Code!$AM$3=1,ROUND(Data!$U$24/2,0),Data!$U$24))","v":0},{"$f":"Code!AE131","v":0},{"$f":"Code!AE149","v":0},{"$f":"IF($C15=0,0,IF(Code!$AM$3=1,ROUND(Data!$U$20/2,0),Data!$U$20))","v":0},{"$f":"IF($C15=0,0,IF(Code!$AM$3=1,ROUND(Data!$U$21/2,0),Data!$U$21))","v":0},{"$f":"IF($C15=0,0,IF(Code!$AM$3=1,ROUND(Data!$U$22/2,0),Data!$U$22))","v":0},{"$f":"IF(Code!$W$111=\"Not Applicable\",0,Code!$W$111)","v":0},{"$f":"IF($C15=0,0,IF(Code!$AM$3=1,ROUND(Code!AL46/2,0),Code!AL46))","v":0},21774,{"$f":"Code!AV43","v":0},60,{"$f":"Code!AV58","v":0},{"$f":"Code!AV28","v":0},null,{"$f":"IF(Code!$AE$3=2,Code!CB128,\" \")","v":200},{"$f":"IF(Code!$AB$96=1,'ADVANCE TAX'!C13,\" \")","v":" "},null,260,21514,null,null,null,null,null,4950]
[null,"2011-02-01",16150,{"$f":"Data!$Y$42","v":0.24823999999999999},4009,{"$f":"Code!AP75","v":1615},{"$f":"Code!AR75","v":0},null,{"$f":"IF($C16=0,0,IF(Code!$AM$3=1,ROUND(Data!$U$24/2,0),Data!$U$24))","v":0},{"$f":"Code!AE132","v":0},{"$f":"Code!AE150","v":0},{"$f":"IF($C16=0,0,IF(Code!$AM$3=1,ROUND(Data!$U$20/2,0),Data!$U$20))","v":0},{"$f":"IF($C16=0,0,IF(Code!$AM$3=1,ROUND(Data!$U$21/2,0),Data!$U$21))","v":0},{"$f":"IF($C16=0,0,IF(Code!$AM$3=1,ROUND(Data!$U$22/2,0),Data!$U$22))","v":0},{"$f":"IF(Code!$W$111=\"Not Applicable\",0,Code!$W$111)","v":0},{"$f":"IF($C16=0,0,IF(Code!$AM$3=1,ROUND(Code!AL47/2,0),Code!AL47))","v":0},21774,{"$f":"Code!AV44","v":0},60,{"$f":"Code!AV59","v":0},{"$f":"Code!AV29","v":0},null,{"$f":"IF(Code!$AE$3=2,Code!CB129,\" \")","v":200},{"$f":"IF(Code!$AB$96=1,'ADVANCE TAX'!C14,\" \")","v":" "},null,260,21514,null,null,null,null,null,5075]
[null,"D.A Arrears(Jan 10 to june 10)",null,null,{"$f":"DA","v":6481},{"$f":"ROUND((Code!Z4*C17),0)","v":0},null,null,null,null,null,null,null,null,null,null,{"$f":"C17+E17+F17+G17+H17+I17+J17+K17+L17+M17+N17+O17+P17","v":6481},{"$f":"IF($R$4=\"cps\",\" \",Q17)","v":6481},null,null,null,{"$f":"IF($R$4=\"cps\",Q17,\" \")","v":" "},null,null,null,6481,0,null,null,null,null,null,5200]
[null,"D.A Arrears(July 10 to Dec 10)",null,null,{"$f":"SECONDDA","v":8140},{"$f":"ROUND((Code!Z4*C18),0)","v":0},null,null,null,null,null,null,null,null,null,null,8140,{"$f":"IF($R$4=\"cps\",\" \",Q18)","v":8140},null,null,null,{"$f":"IF($R$4=\"cps\",Q18,\" \")","v":" "},null,null,null,8140,0,null,null,null,null,null,5335]
[null,"surrender leave",{"$f":"IF(Code!AD3=15,ROUND('SALARY TABLE'!M55/2,0),IF(Code!AD3=30,ROUND('SALARY TABLE'!M55,0),0))","v":7850},null,{"$f":"ELDA","v":1949},{"$f":"ROUND((V57*C19),0)","v":785},null,null,null,null,null,{"$f":"IF(Code!$AD$3=15,ROUND(LOOKUP(Code!$AL$15,'SALARY TABLE'!$B$5:$B$16,'SALARY TABLE'!L5:L16)/2,0),IF(Code!$AD$3=30,ROUND(LOOKUP(Code!$AL$15,'SALARY TABLE'!$B$5:$B$16,'SALARY TABLE'!L5:L16),0),0))","v":0},{"$f":"IF(Code!$AD$3=15,ROUND(LOOKUP(Code!$AL$15,'SALARY TABLE'!$B$5:$B$16,'SALARY TABLE'!M5:M16)/2,0),IF(Code!$AD$3=30,ROUND(LOOKUP(Code!$AL$15,'SALARY TABLE'!$B$5:$B$16,'SALARY TABLE'!M5:M16),0),0))","v":0},{"$f":"IF(Code!$AD$3=15,ROUND(LOOKUP(Code!$AL$15,'SALARY TABLE'!$B$5:$B$16,'SALARY TABLE'!N5:N16)/2,0),IF(Code!$AD$3=30,ROUND(LOOKUP(Code!$AL$15,'SALARY TABLE'!$B$5:$B$16,'SALARY TABLE'!N5:N16),0),0))","v":0},null,null,{"$f":"C19+E19+F19+G19+H19+I19+J19+K19+L19+M19+N19+O19+P19","v":10584},{"$f":"IF($R$4=\"cps\",\" \",IF(Code!AL15=\" \",\" \",IF(Code!AD3=15,ROUND(LOOKUP(Code!AL15,'SALARY TABLE'!B55:B68,'SALARY TABLE'!F55:F68)/2,0),ROUND(LOOKUP(Code!AL15,'SALARY TABLE'!B55:B68,'SALARY TABLE'!F55:F68),0))))","v":672},null,null,null,{"$f":"IF(OR($R$4=\"ZPPF\",$R$4=\"GPF\"),\" \",IF(Code!AL15=\" \",\" \",IF(Code!AD3=15,ROUND(LOOKUP(Code!AL15,'SALARY TABLE'!B55:B68,'SALARY TABLE'!F55:F68)/2,0),ROUND(LOOKUP(Code!AL15,'SALARY TABLE'!B55:B68,'SALARY TABLE'!F55:F68),0))))","v":" "},null,null,null,672,9912,null,null,null,null,null,5470]
[null,"IR Arrears(Jan 09 to Mar 09)",null,null,{"$f":"Data!X48","v":0},{"$f":"ROUND((Code!Z4*C20),0)","v":0},null,{"$f":"Data!Z48","v":0},null,null,null,null,null,null,null,null,0,0,null,null,null," ",null,null,null,0,0]
[null,"Notional Inc Arrears",{"$f":"Data!X47","v":0},null,null,{"$f":"ROUND((Code!Z4*C21),0)","v":0},null,null,null,null,null,null,null,null,null,null,{"$f":"Data!$Z$47","v":0},0,null,null,null," ",null,null,null,0,0]
[null,"RPS Arrears",{"$f":"Data!X46","v":0},null,null,null,null,null,null,null,null,null,null,null,null,null,{"$f":"Data!$Z$46","v":0},0,null,null,null," ",null,null,null,0,0]
[null,"8/16/24 Y Fixation+stepup arrears",{"$f":"IF(Code!AC17=1,0,IF(Code!AG18=1,Code!AF38,0))","v":0},{"$f":"LOOKUP(Code!AF31,'SALARY TABLE'!B5:B16,'SALARY TABLE'!D5:D16)","v":{"$error":"#VALUE!"}},{"$f":"ROUND(IF(Code!AC17=1,0,IF(Code!AG18=1,Code!AF38*D23,0)),0)","v":0},{"$f":"ROUND((Code!Z4*C23),0)","v":0},null,null,null,null,null,null,null,null,null,null,{"$f":"C23+E23+F23+I23+L23+M23+N23+P23+G23+H23+O23+J23+K23","v":0},0,null,null,null," ",null,null,null,0,0,null,null,null,null,null,5605]
[null,"Haly pay arrears",{"$f":"Code!CB75","v":0},null,{"$f":"Code!CD75","v":0},{"$f":"Code!CH75","v":0},null,null,null,null,null,null,null,null,null,null,{"$f":"C24+E24+F24+I24+L24+M24+N24+P24+G24+H24+O24+J24+K24","v":0},null,null,null,null,null,null,null,null,0,0,null,null,null,null,null,5750]
[null,"Child Education Consession",null,null,null,null,null,null,null,null,null,null,null,null,null,null,0,null,null,null,null,null,null,null,null,0,0]
[null,"setpup arrears",{"$f":"IF(Code!AG26=1,0,IF(Code!AG23=1,Code!AF50,0))","v":0},{"$f":"LOOKUP(Code!AF43,'SALARY TABLE'!B5:B16,'SALARY TABLE'!D5:D16)","v":{"$error":"#VALUE!"}},{"$f":"ROUND(IF(Code!AG26=1,0,IF(Code!AG23=1,Code!AF50*D26,0)),0)","v":0},{"$f":"ROUND((Code!Z4*C26),0)","v":0},null,null,null,null,null,null,null,null,null,null,{"$f":"C26+E26+F26+I26+L26+M26+N26+P26+G26+H26+O26+J26+K26","v":0},null,null,null,null," ",null,null,null,0,0]
[null,"Loss of Pay",{"$f":"Code!CB110","v":0},null,{"$f":"Code!CD110","v":0},{"$f":"Code!CG110","v":0},null,null,null,null,null,null,null,null,null,null,{"$f":"C27+E27+F27+I27+L27+M27+N27+P27+G27+H27+O27+J27+K27","v":0},null,null,null,null,null,null,null,null,0,0]
[null,"Total",{"$f":"ROUND(SUM(C5:C27),0)","v":198050},0,{"$f":"ROUND(SUM(E5:E27),0)","v":45966},19805,0,0,0,0,0,0,0,0,0,0,{"$f":"ROUND(SUM(Q5:Q27),0)","v":263821},15293,720,0,0,0,2000,0,40,{"$f":"ROUND(SUM(Z5:Z27),0)","v":18053},{"$f":"ROUND(SUM(AA5:AA27),0)","v":245768},null,null,null,null,null,5895]
[null,null,null,null,null,null,null,null,null,null,null,null,null,null,null,null,null,null,null,null,null,null,"SIGNATURE OF EMPLOYEE",null,null,null,null,null,null,null,null,null,6195]
[null,null,null,null,null,null,null,{"$f":"ROUND(LOOKUP(Code!AL15,'SALARY TABLE'!A55:F68,'SALARY TABLE'!F55:F68),5)","v":0},null,null,null,{"$f":"I30+F30","v":0},null,null,null,null,null,null,null,null,null,null,{"$f":"'INCOME TAX'!I5","v":"ZPPHS,Balayapalli"},null,null,null,null,null,null,null,null,null,6350]
[null,null,null,null,null,null,null,null,null,null,null,null,null,null,null,null,null,null,null,null,null,null,{"$f":"'INCOME TAX'!I6","v":"Balayapalli Mandalm"},null,null,null,null,null,null,null,null,null,6505]
[null,null,null,null,null,null,null,null,null,null,null,null,null,null,null,null,null,null,null,null,null,null,{"$f":"'INCOME TAX'!I7","v":"Nellore District"}]
[null,"Designed by G.S.Reddy,SA(Maths),ZPPHS,Balayapalli,Balayapalli(M),Cell:9666570250",null,null,null,null,null,null,null,null,null,null,null,null,null,null,null,null,null,null,null,null,null,null,null,null,null,null,null,null,null,null,6675]
[null,null,null,null,null,null,null,null,null,null,null,null,null,null,null,null,null,null,null,null,null,null,null,null,null,null,null,null,null,null,null,null,6845]
[null,null,null,null,null,null,null,null,null,null,null,null,null,null,null,null,null,null,null,null,null,null,null,null,null,null,null,null,null,null,null,null,7015]
[null,null,null,null,null,null,null,null,null,null,null,null,null,null,null,null,null,null,null,null,null,null,null,null,null,null,null,null,null,null,null,null,7200]
[null,null,null,null,null,null,null,null,null,null,null,null,null,null,null,null,null,null,null,null,null,null,null,null,null,null,null,null,null,null,null,null,7385]
[null,null,null,null,null,null,null,null,null,null,null,null,null,null,null,null,null,null,null,null,null,null,null,null,null,null,null,null,null,null,null,null,7570]
[null,null,null,null,null,null,null,null,null,null,null,null,null,null,null,null,null,null,null,null,null,null,null,null,null,null,null,null,null,null,null,null,7770]
[null,null,null,null,null,null,null,null,null,null,null,null,null,null,null,null,null,null,null,null,null,null,null,null,null,null,null,null,null,null,null,null,7970]
[null,null,null,null,null,null,null,null,null,null,null,null,null,null,null,null,null,null,null,null,null,null,null,null,null,null,null,null,null,null,null,null,8170]
[null,null,null,null,null,null,null,null,null,null,null,null,null,null,null,null,null,null,null,null,null,null,null,null,null,null,null,null,null,null,null,null,8385]
[null,null,null,null,null,null,null,null,null,null,null,null,null,null,null,null,null,null,null,null,null,null,null,null,null,null,null,null,null,null,null,null,8600]
[null,null,null,null,null,null,null,null,null,null,null,null,null,null,null,null,null,null,null,null,null,null,null,null,null,null,null,null,null,null,null,null,8815]
[null,null,null,null,null,null,null,null,null,null,null,null,null,null,null,null,null,null,null,null,null,null,null,null,null,null,null,null,null,null,null,null,9050]
[null,{"$f":"I","v":40483},null,null,null,null,null,null,null,null,null,null,null,null,null,null,null,null,null,null,null,null,null,null,null,null,null,null,null,null,null,null,9285]
[null,null,null,null,null,null,null,null,null,null,null,null,null,null,null,null,null,null,null,null,null,null,null,null,null,null,null,null,null,null,null,null,9520]
[null,6700,6900,7100,7300,7520,7740,7960,8200,8440,8680,8940,9200,9460,9740,10020,10300,10600,10900,11200,11530,11860,12190,12550,12910,13270,13660,14050,14440,14860,15280,15700,16150,16600,17050,17540,18030,18520,19050,19580,20110,20680,21250,21820,22430,23040,23650,24300,24950,25600,26300,27000,27700,28450,29200,29950,30750,31550,32350,33200,34050,34900,35800,36700,37600,38570,39540,40510,41550,42590,43630,44740,45850,46960,48160,49360,50560,51760,53060,54360,55660]
[null,6900,7100,7300,7520,7740,7960,8200,8440,8680,8940,9200,9460,9740,10020,10300,10600,10900,11200,11530,11860,12190,12550,12910,13270,13660,14050,14440,14860,15280,15700,16150,16600,17050,17540,18030,18520,19050,19580,20110,20680,21250,21820,22430,23040,23650,24300,24950,25600,26300,27000,27700,28450,29200,29950,30750,31550,32350,33200,34050,34900,35800,36700,37600,38570,39540,40510,41550,42590,43630,44740,45850,46960,48160,49360,50560,51760,53060,54360,55660,56960]
[null,null,null,null,null,null,null,null,null,null,null,null,null,null,null,null,null,null,null,null,null,null,null,null,null,null,null,null,null,null,null,null,10285]
[null,null,null,null,null,null,null,null,null,null,null,null,null,null,null,null,null,null,null,null,null,null,null,null,null,null,null,null,null,null,null,null,10565]
[null,null,null,null,null,null,null,null,null,null,null,null,null,null,null,null,null,null,null,null,null,null,null,null,null,null,null,null,null,null,null,null,10845]
[null,null,null,null,null,null,null,null,"1 incre",null,null,null,null,null,null,null,null,null,null,null,null,null,null,null,null,null,null,null,null,null,null,null,11125]
[null,null,null,null,null,null,null,null,"8/16/24y",null,null,null,null,null,null,"Half Pay",null,"Loss of Pay","stepup","HRA",null,null,null,null,null,null,null,null,null,null,null,null,11440]
[1,"2010-01-01",{"$f":"VLOOKUP(Code!AA3,Code!AA5:AB77,2)","v":8385},{"$f":"ROUND(C55*60.288/100,0)","v":5055},{"$f":"ROUND(C55*73.476/100,0)","v":6161},{"$f":"E55-D55","v":1106},null,null,{"$f":"C55","v":8385},null,null,0,{"$f":"LOOKUP(Code!AL15,B5:B16,C5:C16)","v":15700},null,1,{"$f":"Code!CA61","v":8385},null,{"$f":"Code!CA96","v":8385},{"$f":"C55","v":8385},null,null,"EL",null,null,null,null,null,null,null,null,null,null,11755]
[2,"2010-02-01",{"$f":"VLOOKUP(Code!V3,Code!U5:V84,2)","v":15700},{"$f":"ROUND(C56*9.416/100,0)","v":1478},{"$f":"ROUND(C56*16.264/100,0)","v":2553},{"$f":"E56-D56","v":1075},null,null,{"$f":"C56","v":15700},null,null,0,null,null,2,{"$f":"Code!CA62","v":15700},null,{"$f":"Code!CA97","v":15700},{"$f":"C56","v":15700},null,null,null,null,null,null,null,null,null,null,null,null,null,12070]
[3,"2010-03-01",{"$f":"IF(B5=I,HLOOKUP(Code!W3,B48:CC49,2,B49:CC49),'SALARY TABLE'!C56)","v":15700},{"$f":"ROUND(C57*9.416/100,0)","v":1478},{"$f":"ROUND(C57*16.264/100,0)","v":2553},1075,null,null,{"$f":"IF(Code!AG18=1,IF('SALARY TABLE'!B57>=Code!AF31,LOOKUP(C57,B48:CC48,B49:CC49),C57),C57)","v":15700},null,null,{"$f":"D5","v":9.4159999999999994E-2},null,null,3,{"$f":"Code!CA63","v":15700},null,{"$f":"Code!CA98","v":15700},{"$f":"IF(Code!$AG$23=1,IF('SALARY TABLE'!B57>=Code!$AF$43,LOOKUP(I57,$B$48:$CC$48,$B$49:$CC$49),I57),I57)","v":15700},1,{"$f":"Code!AS64","v":0.1},{"$f":"LOOKUP(Code!AK15,'SALARY TABLE'!T57:U68,U57:U68)","v":0.1},null,null,null,null,null,null,null,null,null,null,12385]
[4,"2010-04-01",{"$f":"IF(B6=I,HLOOKUP(Code!W3,B48:CC49,2,B49:CC49),'SALARY TABLE'!C57)","v":15700},{"$f":"ROUND(C58*9.416/100,0)","v":1478},{"$f":"ROUND(C58*16.264/100,0)","v":2553},1075,null,null,{"$f":"IF(Code!AG18=1,IF('SALARY TABLE'!B58>=Code!AF31,LOOKUP(C58,B48:CC48,B49:CC49),C58),C58)","v":15700},null,null,9.4159999999999994E-2,null,null,4,{"$f":"Code!CA64","v":15700},null,{"$f":"Code!CA99","v":15700},{"$f":"IF(Code!$AG$23=1,IF('SALARY TABLE'!B58>=Code!$AF$43,LOOKUP(I58,$B$48:$CC$48,$B$49:$CC$49),I58),I58)","v":15700},2,{"$f":"Code!AS65","v":0.1},null,null,null,null,null,null,null,null,null,null,null,12700]
[5,"2010-05-01",{"$f":"IF(B7=I,HLOOKUP(Code!W3,B48:CC49,2,B49:CC49),'SALARY TABLE'!C58)","v":15700},{"$f":"ROUND(C59*9.416/100,0)","v":1478},{"$f":"ROUND(C59*16.264/100,0)","v":2553},1075,null,null,{"$f":"IF(Code!AG18=1,IF('SALARY TABLE'!B59>=Code!AF31,LOOKUP(C59,B48:CC48,B49:CC49),C59),C59)","v":15700},null,null,9.4159999999999994E-2,null,null,5,{"$f":"Code!CA65","v":15700},null,{"$f":"Code!CA100","v":15700},{"$f":"IF(Code!$AG$23=1,IF('SALARY TABLE'!B59>=Code!$AF$43,LOOKUP(I59,$B$48:$CC$48,$B$49:$CC$49),I59),I59)","v":15700},3,{"$f":"Code!AS66","v":0.1},null,null,null,null,null,null,null,null,null,null,null,13030]
[6,"2010-06-01",{"$f":"IF(B8=I,HLOOKUP(Code!W3,B48:CC49,2,B49:CC49),'SALARY TABLE'!C59)","v":15700},{"$f":"ROUND(C60*9.416/100,0)","v":1478},{"$f":"ROUND(C60*16.264/100,0)","v":2553},1075,null,{"$f":"SUM(F55:F60)","v":6481},{"$f":"IF(Code!AG18=1,IF('SALARY TABLE'!B60>=Code!AF31,LOOKUP(C60,B48:CC48,B49:CC49),C60),C60)","v":15700},null,null,9.4159999999999994E-2,null,null,6,{"$f":"Code!CA66","v":15700},null,{"$f":"Code!CA101","v":15700},{"$f":"IF(Code!$AG$23=1,IF('SALARY TABLE'!B60>=Code!$AF$43,LOOKUP(I60,$B$48:$CC$48,$B$49:$CC$49),I60),I60)","v":15700},4,{"$f":"Code!AS67","v":0.1},null,null,null,null,null,null,null,null,null,null,null,13390]
[7,"2010-07-01",{"$f":"IF(B9=I,HLOOKUP(Code!W3,B48:CC49,2,B49:CC49),'SALARY TABLE'!C60)","v":15700},{"$f":"ROUND(C61*16.264/100,0)","v":2553},{"$f":"ROUND(C61*24.824/100,0)","v":3897},{"$f":"E61-D61","v":1344},null,null,{"$f":"IF(Code!AG18=1,IF('SALARY TABLE'!B61>=Code!AF31,LOOKUP(C61,B48:CC48,B49:CC49),C61),C61)","v":15700},null,null,0.16264000000000001,null,null,7,{"$f":"Code!CA67","v":15700},null,{"$f":"Code!CA102","v":15700},{"$f":"IF(Code!$AG$23=1,IF('SALARY TABLE'!B61>=Code!$AF$43,LOOKUP(I61,$B$48:$CC$48,$B$49:$CC$49),I61),I61)","v":15700},5,{"$f":"Code!AS68","v":0.1},null,null,null,null,null,null,null,null,null,null,null,13750]
[8,"2010-08-01",{"$f":"IF(B10=I,HLOOKUP(Code!W3,B48:CC49,2,B49:CC49),'SALARY TABLE'!C61)","v":15700},2553,3897,1344,null,null,{"$f":"IF(Code!AG18=1,IF('SALARY TABLE'!B62>=Code!AF31,LOOKUP(C62,B48:CC48,B49:CC49),C62),C62)","v":15700},null,null,0.16264000000000001,null,null,8,{"$f":"Code!CA68","v":15700},null,{"$f":"Code!CA103","v":15700},{"$f":"IF(Code!$AG$23=1,IF('SALARY TABLE'!B62>=Code!$AF$43,LOOKUP(I62,$B$48:$CC$48,$B$49:$CC$49),I62),I62)","v":15700},6,{"$f":"Code!AS69","v":0.1},null,null,null,null,null,null,null,null,null,null,null,14175]
[9,"2010-09-01",{"$f":"IF(B11=I,HLOOKUP(Code!W3,B48:CC49,2,B49:CC49),'SALARY TABLE'!C62)","v":15700},2553,3897,1344,null,null,{"$f":"IF(Code!AG18=1,IF('SALARY TABLE'!B63>=Code!AF31,LOOKUP(C63,B48:CC48,B49:CC49),C63),C63)","v":15700},null,null,0.16264000000000001,null,null,9,{"$f":"Code!CA69","v":15700},null,{"$f":"Code!CA104","v":15700},{"$f":"IF(Code!$AG$23=1,IF('SALARY TABLE'!B63>=Code!$AF$43,LOOKUP(I63,$B$48:$CC$48,$B$49:$CC$49),I63),I63)","v":15700},7,{"$f":"Code!AS70","v":0.1},null,null,null,null,null,null,null,null,null,null,null,14600]
[10,"2010-10-01",{"$f":"IF(B12=I,HLOOKUP(Code!W3,B48:CC49,2,B49:CC49),'SALARY TABLE'!C63)","v":15700},2553,3897,1344,null,null,{"$f":"IF(Code!AG18=1,IF('SALARY TABLE'!B64>=Code!AF31,LOOKUP(C64,B48:CC48,B49:CC49),C64),C64)","v":15700},null,null,0.16264000000000001,null,null,10,{"$f":"Code!CA70","v":15700},null,{"$f":"Code!CA105","v":15700},{"$f":"IF(Code!$AG$23=1,IF('SALARY TABLE'!B64>=Code!$AF$43,LOOKUP(I64,$B$48:$CC$48,$B$49:$CC$49),I64),I64)","v":15700},8,{"$f":"Code!AS71","v":0.1},null,null,null,null,null,null,null,null,null,null,null,15025]
[11,"2010-11-01",{"$f":"IF(B13=I,HLOOKUP(Code!W3,B48:CC49,2,B49:CC49),'SALARY TABLE'!C64)","v":16150},2627,4009,1382,null,null,{"$f":"IF(Code!AG18=1,IF('SALARY TABLE'!B65>=Code!AF31,LOOKUP(C65,B48:CC48,B49:CC49),C65),C65)","v":16150},null,null,0.16264000000000001,null,null,11,{"$f":"Code!CA71","v":16150},null,{"$f":"Code!CA106","v":16150},{"$f":"IF(Code!$AG$23=1,IF('SALARY TABLE'!B65>=Code!$AF$43,LOOKUP(I65,$B$48:$CC$48,$B$49:$CC$49),I65),I65)","v":16150},9,{"$f":"Code!AS72","v":0.1},null,null,null,null,null,null,null,null,null,null,null,15500]
[12,"2010-12-01",{"$f":"IF(B14=I,HLOOKUP(Code!W3,B48:CC49,2,B49:CC49),'SALARY TABLE'!C65)","v":16150},2627,4009,1382,null,{"$f":"SUM(F61:F66)","v":8140},{"$f":"IF(Code!AG18=1,IF('SALARY TABLE'!B66>=Code!AF31,LOOKUP(C66,B48:CC48,B49:CC49),C66),C66)","v":16150},null,null,0.16264000000000001,null,null,12,{"$f":"Code!CA72","v":16150},null,{"$f":"Code!CA107","v":16150},{"$f":"IF(Code!$AG$23=1,IF('SALARY TABLE'!B66>=Code!$AF$43,LOOKUP(I66,$B$48:$CC$48,$B$49:$CC$49),I66),I66)","v":16150},10,{"$f":"Code!AS73","v":0.1},null,null,null,null,null,null,null,null,null,null,null,15975]
[13,"2011-01-01",{"$f":"IF(B15=I,HLOOKUP(Code!W3,B48:CC49,2,B49:CC49),'SALARY TABLE'!C66)","v":16150},{"$f":"ROUND(C67*24.824/100,0)","v":4009},4009,0,null,null,{"$f":"IF(Code!AG18=1,IF('SALARY TABLE'!B67>=Code!AF31,LOOKUP(C67,B48:CC48,B49:CC49),C67),C67)","v":16150},null,null,0.24823999999999999,null,null,13,{"$f":"Code!CA73","v":16150},null,{"$f":"Code!CA108","v":16150},{"$f":"IF(Code!$AG$23=1,IF('SALARY TABLE'!B67>=Code!$AF$43,LOOKUP(I67,$B$48:$CC$48,$B$49:$CC$49),I67),I67)","v":16150},11,{"$f":"Code!AS74","v":0.1},null,null,null,null,null,null,null,null,null,null,null,16450]
[14,"2011-02-01",{"$f":"IF(B16=I,HLOOKUP(Code!W3,B48:CC49,2,B49:CC49),'SALARY TABLE'!C67)","v":16150},{"$f":"ROUND(C68*24.824/100,0)","v":4009},4009,0,null,null,{"$f":"IF(Code!AG18=1,IF('SALARY TABLE'!B68>=Code!AF31,LOOKUP(C68,B48:CC48,B49:CC49),C68),C68)","v":16150},null,null,0.24823999999999999,null,null,14,{"$f":"Code!CA74","v":16150},null,{"$f":"Code!CA109","v":16150},{"$f":"IF(Code!$AG$23=1,IF('SALARY TABLE'!B68>=Code!$AF$43,LOOKUP(I68,$B$48:$CC$48,$B$49:$CC$49),I68),I68)","v":16150},12,{"$f":"Code!AS75","v":0.1},null,null,null,null,null,null,null,null,null,null,null,16925]
[null,null,null,null,"DA",null,null,"To Zp","Total",null,null,null,null,null,null,null,null,null,null,null,null,null,null,null,null,null,null,null,null,null,null,null,17475]
[null,"EL",{"$f":"IF(Code!AC8=1,SUM(IF(Code!AD3=15,ROUND(LOOKUP(Code!AN15,'SALARY TABLE'!A55:L68,'SALARY TABLE'!L55:L68)*C19+ROUND(LOOKUP(Code!AL15,'SALARY TABLE'!B55:B68,'SALARY TABLE'!F55:F68)/2,0),ROUND(LOOKUP(Code!AN15,'SALARY TABLE'!A55:L68,'SALARY TABLE'!L55:L68)*C19+ROUND(LOOKUP(Code!AL15,'SALARY TABLE'!B55:B68,'SALARY TABLE'!F55:F68),0),0)))))","v":1948.7239999999999},null,{"$f":"LOOKUP(Code!AN15,'SALARY TABLE'!A55:L68,'SALARY TABLE'!L55:L68)","v":0.16264000000000001},{"$f":"ROUND(E70*C19,0)","v":1277},null,{"$f":"ROUND(LOOKUP(Code!AN15,'SALARY TABLE'!A55:F68,'SALARY TABLE'!F55:F68)/2,0)","v":672},{"$f":"F70+H70","v":1949},null,{"$f":"IF(Code!AD3=15,'SALARY TABLE'!I70,IF(Code!AD3=30,'SALARY TABLE'!I71,0))","v":1949},null,null,null,null,null,null,null,null,null,null,null,null,null,null,null,null,null,null,null,null,null,18025]
[null,null,null,null,null,null,null,{"$f":"ROUND(LOOKUP(Code!AN15,'SALARY TABLE'!A55:F68,'SALARY TABLE'!F55:F68),0)","v":1344},{"$f":"F70+H71","v":2621},null,null,null,null,null,null,null,null,null,null,null,null,null,null,null,null,null,null,null,null,null,null,null,18575]
[null,null,null,null,null,null,null,null,null,null,null,null,null,null,null,null,null,null,null,null,null,null,null,null,null,null,null,null,null,null,null,null,19125]
[null,null,null,null,null,null,null,null,null,null,null,null,null,null,null,null,null,null,null,null,null,null,null,null,null,null,null,null,null,null,null,null,19675]
[null,null,null,null,null,null,null,null,null,null,null,null,null,null,null,null,null,null,null,null,null,null,null,null,null,null,null,null,null,null,null,null,20300]
[null,null,null,null,null,null,null,null,null,null,null,null,null,null,null,null,null,null,null,null,null,null,null,null,null,null,null,null,null,null,null,null,20925]
[null,null,null,null,null,null,null,null,null,null,null,null,null,null,null,null,null,null,null,null,null,null,null,null,null,null,null,null,null,null,null,null,21550]
[null,null,null,null,null,null,null,null,null,null,null,null,null,null,null,null,null,null,null,null,null,null,null,null,null,null,null,null,null,null,null,null,22175]
[null,null,null,null,null,null,null,null,null,null,null,null,null,null,null,null,null,null,null,null,null,null,null,null,null,null,null,null,null,null,null,null,22800]
[null,null,null,null,null,null,null,null,null,null,null,null,null,null,null,null,null,null,null,null,null,null,null,null,null,null,null,null,null,null,null,null,23500]
[null,null,null,null,null,null,null,null,null,null,null,null,null,null,null,null,null,null,null,null,null,null,null,null,null,null,null,null,null,null,null,null,24200]
[null,null,null,null,null,null,null,null,null,null,null,null,null,null,null,null,null,null,null,null,null,null,null,null,null,null,null,null,null,null,null,null,24900]
[null,null,null,null,null,null,null,null,null,null,null,null,null,null,null,null,null,null,null,null,null,null,null,null,null,null,null,null,null,null,null,null,25600]
[null,null,null,null,null,null,null,null,null,null,null,null,null,null,null,null,null,null,null,null,null,null,null,null,null,null,null,null,null,null,null,null,26300]
[null,null,null,null,null,null,null,null,null,null,null,null,null,null,null,null,null,null,null,null,null,null,null,null,null,null,null,null,null,null,null,null,27000]
[null,null,null,null,null,null,null,null,null,null,null,null,null,null,null,null,null,null,null,null,null,null,null,null,null,null,null,null,null,null,null,null,27750]
[null,null,null,null,null,null,null,null,null,null,null,null,null,null,null,null,null,null,null,null,null,null,null,null,null,null,null,null,null,null,null,null,28500]
[null,null,null,null,null,null,null,null,null,null,null,null,null,null,null,null,null,null,null,null,null,null,null,null,null,null,null,null,null,null,null,null,29250]
[null,null,null,null,null,null,null,null,null,null,null,null,null,null,null,null,null,null,null,null,null,null,null,null,null,null,null,null,null,null,null,null,30000]
[null,null,null,null,null,null,null,null,null,null,null,null,null,null,null,null,null,null,null,null,null,null,null,null,null,null,null,null,null,null,null,null,30765]

{"sheet":"ADVANCE TAX","index":7,"n_rows":15,"n_cols":5,"rows_kept":15,"cut":false,"hidden":false,"merged":[[1,1,1,2],[6,4,8,9]]}
[]
[null,"Advance tax"]
["2010-03-01",{"$f":"IF(Code!$AB$96=1,A3,\"Not Applicable  \")","v":"Not Applicable  "}]
["2010-04-01",{"$f":"IF(Code!$AB$96=1,A4,\"Not Applicable  \")","v":"Not Applicable  "}]
["2010-05-01",{"$f":"IF(Code!$AB$96=1,A5,\"Not Applicable  \")","v":"Not Applicable  "}]
["2010-06-01",{"$f":"IF(Code!$AB$96=1,A6,\"Not Applicable  \")","v":"Not Applicable  "}]
["2010-07-01",{"$f":"IF(Code!$AB$96=1,A7,\"Not Applicable  \")","v":"Not Applicable  "},null,null,"If Advance Tax not Paid.\nClear all cell values"]
["2010-08-01",{"$f":"IF(Code!$AB$96=1,A8,\"Not Applicable  \")","v":"Not Applicable  "}]
["2010-09-01",{"$f":"IF(Code!$AB$96=1,A9,\"Not Applicable  \")","v":"Not Applicable  "}]
["2010-10-01",{"$f":"IF(Code!$AB$96=1,A10,\"Not Applicable  \")","v":"Not Applicable  "}]
["2010-11-01",{"$f":"IF(Code!$AB$96=1,A11,\"Not Applicable  \")","v":"Not Applicable  "}]
["2010-12-01",{"$f":"IF(Code!$AB$96=1,A12,\"Not Applicable  \")","v":"Not Applicable  "}]
["2011-01-01",{"$f":"IF(Code!$AB$96=1,A13,\"Not Applicable  \")","v":"Not Applicable  "}]
["2011-02-01",{"$f":"IF(Code!$AB$96=1,A14,\"Not Applicable  \")","v":"Not Applicable  "}]
[null,null,{"$f":"SUM(C3:C14)","v":0}]

{"sheet":"ITR-I Page 1","index":8,"n_rows":121,"n_cols":38,"rows_kept":121,"cut":false,"hidden":true,"merged":[[110,0,110,8],[110,9,110,19],[111,0,111,27],[112,0,112,4],[120,17,120,24],[120,26,120,32],[100,24,100,34],[101,0,101,34],[103,1,103,14],[103,19,103,31],[104,0,104,34],[106,2,106,7],[98,1,98,3],[98,4,98,10],[98,12,98,14],[98,15,98,22],[98,24,98,27],[98,28,98,34],[97,1,97,3],[97,4,97,10],[97,12,97,14],[97,15,97,22],[97,24,97,27],[97,28,97,34],[96,1,96,3],[96,4,96,10],[96,12,96,14],[96,15,96,22],[96,24,96,27],[96,28,96,34],[93,1,93,3],[93,29,93,34],[95,1,95,3],[95,4,95,10],[95,12,95,14],[95,15,95,22],[95,24,95,27],[95,28,95,34],[87,1,87,3],[87,31,87,34],[89,0,93,0],[89,1,90,1],[89,2,90,10],[89,11,90,15],[89,16,90,21],[89,22,90,28],[89,29,90,34],[91,2,91,10],[91,11,91,15],[91,16,91,21],[91,22,91,28],[91,29,91,34],[92,2,92,10],[92,11,92,15],[92,16,92,21],[92,22,92,28],[92,29,92,34],[86,26,86,30],[86,31,86,34],[83,31,83,34],[84,2,84,8],[84,9,84,15],[84,16,84,20],[84,21,84,25],[84,26,84,30],[84,31,84,34],[75,31,77,34],[79,0,87,0],[79,1,81,1],[79,2,81,8],[79,9,81,15],[79,16,81,20],[79,21,81,25],[79,26,81,30],[79,31,81,34],[82,2,82,8],[82,9,82,15],[82,16,82,20],[82,21,82,25],[82,26,82,30],[82,31,82,34],[83,2,83,8],[83,9,83,15],[83,16,83,20],[83,21,83,25],[83,26,83,30],[86,2,86,8],[86,9,86,15],[86,16,86,20],[86,21,86,25],[75,2,77,8],[75,9,77,15],[75,16,77,19],[75,20,77,22],[75,23,77,26],[75,27,77,30],[73,2,74,8],[73,9,74,15],[73,16,73,19],[73,20,73,22],[73,23,73,26],[73,27,73,30],[67,5,67,12],[67,13,67,23],[67,27,67,28],[67,31,67,33],[69,0,77,0],[69,1,71,1],[69,2,71,8],[69,9,71,15],[69,16,71,19],[69,20,71,22],[69,23,71,26],[69,27,71,30],[69,31,71,34],[72,2,72,8],[72,9,72,15],[72,16,72,19],[72,20,72,22],[72,23,72,26],[72,27,72,30],[72,31,72,34],[73,31,73,34],[74,23,74,26],[74,27,74,30],[74,31,74,34],[60,0,65,0],[60,25,60,26],[60,27,60,34],[61,21,61,34],[63,11,63,14],[65,21,65,34],[47,27,47,32],[49,0,53,15],[49,17,49,29],[54,0,59,0],[55,18,55,24],[56,18,56,24],[57,18,57,24],[58,27,58,34],[59,25,59,26],[59,27,59,34],[45,17,46,17],[45,27,45,32],[40,18,40,24],[40,25,40,26],[40,27,40,32],[41,25,41,26],[41,27,41,32],[42,2,42,15],[42,25,42,26],[42,27,42,32],[39,25,39,26],[39,27,39,32],[32,25,32,26],[32,27,32,32],[43,27,43,32],[44,2,44,17],[44,25,44,26],[44,27,44,32],[33,25,33,26],[33,27,33,32],[34,27,34,32],[35,18,35,24],[36,18,36,24],[37,2,37,16],[29,25,29,26],[29,27,29,32],[30,25,30,26],[30,27,30,32],[31,25,31,26],[31,27,31,34],[37,25,37,26],[37,27,37,32],[38,25,38,26],[38,27,38,32],[28,18,28,19],[28,20,28,24],[27,3,27,4],[27,5,27,9],[27,11,27,12],[27,13,27,16],[27,18,27,19],[27,20,27,24],[33,0,44,0],[33,2,33,19],[38,2,38,18],[20,0,32,0],[28,3,28,4],[28,5,28,9],[28,11,28,12],[28,13,28,16],[29,2,29,12],[39,18,39,24],[20,27,20,32],[21,27,21,32],[22,2,22,24],[22,27,22,32],[26,3,26,4],[26,5,26,9],[26,11,26,12],[26,13,26,16],[26,18,26,19],[26,20,26,24],[23,2,23,11],[23,27,23,32],[24,2,24,16],[25,3,25,4],[25,5,25,9],[25,11,25,12],[25,13,25,16],[25,18,25,19],[25,20,25,24],[13,5,13,15],[13,16,13,24],[13,25,13,34],[14,0,19,0],[14,1,14,15],[15,1,15,14],[17,1,17,13],[17,16,17,26],[17,27,17,33],[18,1,18,10],[18,11,18,16],[18,27,18,34],[19,15,19,16],[19,22,19,23],[19,24,19,34],[12,20,12,24],[12,27,12,28],[12,29,12,31],[12,32,12,33],[6,26,6,34],[7,1,7,13],[7,14,7,24],[7,25,7,34],[9,26,9,33],[10,1,10,13],[10,14,10,24],[1,33,3,33],[1,34,2,34],[2,4,2,25],[3,4,3,24],[4,0,13,0],[4,25,4,33],[5,1,5,8],[5,9,5,16],[5,17,5,24],[5,25,5,34],[0,0,3,0],[0,1,3,3],[0,4,0,24],[0,25,0,34],[1,4,1,25],[1,26,3,26],[1,27,3,27],[1,28,3,28],[1,29,3,29],[1,31,3,32],[11,20,11,24],[11,26,11,34],[12,1,12,13],[12,14,12,19]]}
["FORM","SARAL-II (ITR-I)",null,null,"INDIAN INCOME TAX RETURN",null,null,null,null,null,null,null,null,null,null,null,null,null,null,null,null,null,null,null,null,"Assessment Year"]
[null,null,null,null,"[For Individual having Income from Salary/Pension/income from One House Property(Excluding loss brought forward from previous years)/Income from Other Sources (Excluding Winning from Lottery and income from Race Horses)]",null,null,null,null,null,null,null,null,null,null,null,null,null,null,null,null,null,null,null,null,null,2,0,1,1,null,"-",null,1,2]
[null,null,null,null,"(Please see Rule 12 of the Income-tax Rules, 1962)(Also see attached instuctions)"]
[]
["PERSONAL INFORMATION","First name",null,null,null," ",null,null,null,"Middle name",null,null,null,null,null," ",null,"Last name",null,null,null," ",null,null,null,"Pan No"]
[null,{"$f":"'[7]BIODATA FOR ITR-1'!$F$2","v":0},null,null,null,null,null,null,null,{"$f":"'[7]BIODATA FOR ITR-1'!$F$3","v":"KUMAR"},null,null,null,null,null,null,null,{"$f":"'[7]BIODATA FOR ITR-1'!$F$4","v":"BANDYOPADHYAY"},null,null,null,null,null,null,null,{"$f":"'[7]BIODATA FOR ITR-1'!$F$6","v":"AA55666D"}]
[null,"Flat /Door/Block No.",null,null,null,null,null,null,null,null,null,null,null,null,"Name Of Premises/Building/Village",null,null,null,null,null,null,null,null,null,null,"Date of Birth (DD/MM/YYYY)","Date of Birth"]
[null,{"$f":"'[7]BIODATA FOR ITR-1'!$F$10","v":"150 D"},null,null,null,null,null,null,null,null,null,null,null,null,{"$f":"'[7]BIODATA FOR ITR-1'!$F$11","v":"Kalisthanpara"},null,null,null,null,null,null,null,null,null,null,{"$f":"'[7]BIODATA FOR ITR-1'!$F$8","v":"1963-01-04"}]
[]
[null,"Road/Street/Post Office",null,null,null,null,null,null,null,null,null,null,null,null,"Area/Locality",null,null,null,null,null,null," ",null,null,null,"Employer Category (Tick) ","Employer Category",null,null,null,null,null,null,null,"√"]
[null,{"$f":"'[7]BIODATA FOR ITR-1'!$F$12","v":"Jiaganj"},null,null,null,null,null,null,null,null,null,null,null,null,{"$f":"'[7]BIODATA FOR ITR-1'!$F$13","v":"Jiaganj"},null,null,null,null,null,null,null,null,null,null,null,"√","Govt.",null,null,null,"PSU",null,"Others"]
[null,"Town/City/District",null,null,null,null,null,null,null,null,null,null,null,null,"State",null,null,null,null,null,"Pin code ",null,null,null,null,"Sex (Tick)","Employer Category"]
[null,{"$f":"'[7]BIODATA FOR ITR-1'!$F$14","v":"Murshidabad"},null,null,null,null,null,null,null,null,null,null,null,null,{"$f":"'[7]BIODATA FOR ITR-1'!$F$16","v":"West Bengal"},null,null,null,null,null,{"$f":"'[7]BIODATA FOR ITR-1'!$F$15","v":742123},null,null,null,null,null,"√",{"$f":"'[7]BIODATA FOR ITR-1'!$F$18","v":"male"},null,"√",null,null,{"$f":"'[7]BIODATA FOR ITR-1'!$J$18","v":0},null," "]
[null,"Email Addrs.",null,null,null,null,null,null,null,null,null,null,null,null,null,null,"(STD Code) - Phone Number "]
["FILING STATUS","Designation of Assessing Officer (Ward/Circle)",null,null,null,null,null,null,null,null,null,null,null,null,null,null,null,null,"Return Filed Under Section-",null,null,null,null,null,null,null,null,null,null,1,null,1]
[null,{"$f":"'[7]BIODATA FOR ITR-1'!$F$5","v":"U.D.C."},null,null,null,null,null,null,null,null,null,null,null,null,null," ",null,null,"[Please see instruction number-9(i)]"]
[null,"Whether original or Revised return? (Tick)",null,null,null,null,null,null,null,null,null,null,null,null,"√",null,null,null," ","√","  Original",null,null,null," ",null,null,null,null,"     Revised"]
[null,"If revised, enter Receipt No and Date of filing original return (DD/MM/YYYY)",null,null,null,null,null,null,null,null,null,null,null,null,null,null,"ORIGINAL",null,null,null,null,null,null,null,null,null,null," "]
[null,"Original return(DD/MM/YYYY)",null,null,null,null,null,null,null,null,null,{"$f":"'[7]BIODATA FOR ITR-1'!$F$17","v":40823}]
[null,"Residential Status (Tick)",null,null,null,null,null,null,null,"√",null,"√","Resident",null,null,null,null,"  Non-Resident",null,null,null,null," ",null," Resident but not ordinarily Resident "]
["INCOME & DEDUCTIONS",1,"Income chargeable under the Head 'Salaries',Pension",null,null,null,null,null,null,null,null,null,null,null,null,null,null,null,null,null,null,null,null,null,null,null,1,{"$f":"'[7]Auto Salary Statement'!$R$23","v":467759}]
[null,2,"Income chargeable under the Head 'House Property'(enter-ve sign in case of loss, if any)",null,null,null,null,null,null,null,null,null,null,null,null,null,null,null,null,null,null,null,null,null,null,null,2,0]
[null,3,"Income chargeable under the Head 'Other Sources' (enter-ve sign in case of loss, if any)",null,null,null,null,null,null,null,null,null,null,null,null,null,null,null,null,null,null,null,null,null,null,null,3,0]
[null,4,"Gross Total Income (1+2+3)",null,null,null,null,null,null,null,null,null,null,null,null,null,null,null,null,null,null,null,null,null,null,null,4,{"$f":"SUM(AB21:AG23)","v":467759}]
[null,5,"Deductions under chapter VIA (Section "]
[null,null,"a","80C",null,{"$f":"'[7]BIODATA FOR ITR-1'!$F$43","v":69080},null,null,null,null,"e","80DD",null,{"$f":"'[7]BIODATA FOR ITR-1'!$F$49","v":0},null,null,null,"I","80GG",null,0]
[null,null,"b","80CCC",null,0,null,null,null,null,"f","80DDB",null,{"$f":"'[7]BIODATA FOR ITR-1'!$F$50","v":0},null,null,null,"j","80GGA",null,0]
[null,null,"c","80CCD",null,{"$f":"'[7]BIODATA FOR ITR-1'!$F$52","v":0},null,null,null,null,"g","80E",null,{"$f":"'[7]BIODATA FOR ITR-1'!$F$48","v":0},null,null,null,"k","80GGC",null,0]
[null,null,"d","80D",null,{"$f":"'[7]BIODATA FOR ITR-1'!$F$47","v":0},null,null,null,null,"h","80G",null,{"$f":"'[7]BIODATA FOR ITR-1'!$F$46","v":0},null,null,null,"l","80U",null,{"$f":"'[7]BIODATA FOR ITR-1'!$F$53","v":0}]
[null,6,"Deductions (Total of 5a to5i)",null,null,null,null,null,null,null,null,null,null," ",null,null,null,null,null,null,null,null,null,null,null,6,null,{"$f":"SUM(F26:I29)+SUM(N26:Q29)+SUM(U26:Y29)","v":69080}]
[null,7,"Total Income (4-6)",null,null,null,null,null,null,null,null,null,null,null,null,null,null,null,null,null,null,null,null,null,null,7,null,{"$f":"(AB24-AB30)","v":398679}]
[null,6,"Net Agricultural Income (Enter only if greater than Rs.5,000)",null,null,null,null,null,null,null,null,null,null,null,null,null,null,null,null,null,null,null,null,null,null,6]
[null,7,"Aggregate Income' (5+6)",null,null,null,null,null,null,null,null,null,null,null,null,null,null,null,null,null,null,null,null,null,null,7,null,{"$f":"AB31+AB32","v":398679}]
["TAX COMPUTATION",8,"Tax Payable on 'Aggregate Income'",null,null,null,null,null,null,null,null,null,null,null,null,null,null,null,null,null,null,null,null,null,null,8,null,{"$f":"'[7]AUTO FORM 16'!$I$47","v":23868},null,null,null,null,null,null,null,{"$f":"IF(AB33-160000<=0,\"0\",IF(AB33>=500000,\"0\",IF(AB33-160000>=0,ROUND(AB33-160000,)*10%,0)))","v":23867.9},{"$f":"IF(AB33-300000<=500000,\"0\",IF(AB33-300000>=500000,ROUND(AB33-300000,)*20%,0))","v":"0"},{"$f":"IF(AB33>300000,14000)","v":14000}]
[null,null,null,"Rebate in respect of Net Agricultural income",null,null,null,null,null,null,null,null,null,null,null,null,null,null,null,null,null,null,null,null,null,null,null,0]
[null,9,"a","Tax Payable on total Income (8a - 8b)",null,null,null,null,null,null,null,null,null,null,null,null," ","9a",{"$f":"AB34-AB35","v":23868}]
[null,null,"b","Surcharge on 9a",null,null,null,null,null,null,null,null,null,null,null,null," ","9b",0]
[null,9,"Education Cess on (on 8)",null,null,null,null,null,null,null,null,null,null,null,null,null,null,null,null,null,null,null,null,null,null,9,null,{"$f":"ROUND(AB34*3%,0)","v":716}]
[null,10,"Total Tax, Surcharge and Education cess payable (8+9)",null,null,null,null,null,null,null,null,null,null,null,null,null,null,null,null,null,null,null,null,null,null,10,null,{"$f":"AB34+AB38","v":24584}]
[null,11,"Relief under Section 89",null,null,null,null,null,null,null,null,null,null,null,null,null," ",null,null,null,null,null,null,null,null,11,null,{"$f":"IF(AB39=0,0,IF(AB39>0,AJ40,0))","v":1617},null,null,null,null,null,null,null,{"$f":"'[7]10 E Annex-I'!$G$12","v":1617}]
[null,12,"Relief under Section 90/91",null,null,null,null,null,null,null,null,null,null,null,null,null," ",null,null,null,null,null,null,null,null,12,null,0]
[null,13,"Balance Tax Payable (10-11-12)",null,null,null,null,null,null,null,null,null,null,null,null,null,null,null,null,null,null,null,null,null,null,13,null,{"$f":"IF(AB39<=AB40,0,IF(AB39>=AB40,AB39-AB40-AB41))","v":22967}]
[null,14,"Total interest payable u/s 234A/234B/234C",null,null,null,null,null,null,null,null,null,null,null,null,null,null,null,null,null,null,null,null,null,null,14,null,0]
[]
[null,15,"Total Tax and Interest payable (12+13)",null,null,null,null,null,null,null,null,null,null,null,null,null,null,null,null,null,null,null,null,null,null,15,null,{"$f":"AB41+AB42","v":22967}]
[null,null,null,null,null,null,null,null,null,null,null,null,null,null,null,null,null,"d","Total Interest Payable                   ",null,null,null,null,null,null,"13d",null,{"$f":"AB43+AB44+AB45","v":22967}]
[null,null,null,null,null,null,null,null,null,null,null,null,null,null,null,null,null,null,"(13a+13b+13c)",null,null,null,null,null,null," "]
[null,null,null,null,null,null,null,null,null,null,null,null,null,null,null,null,14,"Total Tax and Interest Payable",null,null,null,null,null,null,null,"14",null,{"$f":"ROUND(AB42-AB46,0)","v":0}]
[null,null,null,null,null,null,null,null,null,null,null,null,null,null,null,null," ","(12+13d)",null,null,null,null,null,null,null," "]
["Do not write or stamp in this areas for office use only",null,null,null,null,null,null,null,null,null,null,null,null,null,null,null,null,"Seal and signature of receiving official"]
[null,null,null,null,null,null,null,null,null,null,null,null,null,null,null,null,null,null,null,null,null,null," "]
[]
[]
[]
["TAXES PAID",15,"Taxes Paid"]
[null,null,"a","Advance Tax (from item 23)",null,null,null,null,null,null,null,null,null,null,null,null," ","15a",{"$f":"'[7]BIODATA FOR ITR-1'!#REF!","v":{"$error":"#REF!"}}]
[null,null,"b","TDS (column 7 of item21+column 7 of item 22)",null,null,null,null,null,null,null,null,null,null,null,null," ","15b",{"$f":"AF88","v":0}]
[null,null,"c","Self Assessment Tax (from item 23)",null,null,null,null,null,null,null,null,null,null,null,null," ","15c"]
[null,"d","Total Taxes paid (15a+15b+15c)",null,null,null,null,null,null,null,null,null,null,null,null,null," ",null,null,null,null,null,null,null,null,"15d",null,{"$f":"SUM(S56:S58)","v":{"$error":"#REF!"}}]
[null,16,"Tax payable(14-15d)(enter if 14  is greater than 15d, else leave blank)",null,null,null,null,null,null,null,null,null,null,null,null,null,null,null,null,null,null,null,null,null,null,16,null,{"$f":"IF(AB48<=AB59,0,IF(AB48>=AB59,AB48-AB59))","v":{"$error":"#REF!"}}]
["REFUND",17,"Refund (15d-14) (enter if 15d is greater than 14, also give Bank account details below)",null,null,null,null,null,null,null,null,null,null,null,null,null,null,null,null,null,null,null,null,null,null,17,null,{"$f":"IF(AB59<=AB48,0,IF(AB59>=AB48,AB59-AB48))","v":{"$error":"#REF!"}}]
[null,18,"Enter your bank account number (mandatory in case of refund)",null,null,null,null,null,null,null,null,null,null,null,null,null,null,null,null,null,null,{"$f":"'[7]BIODATA FOR ITR-1'!#REF!","v":{"$error":"#REF!"}}]
[]
[null,19,"Do you want your refund by",null,null,null,null,null,null,null,null,"   Cheque, or ",null,null,null,"deposited directly into your bank account? (tick as applicable",null,null,null,null,null,null,null,null,null,null,null,null,null,null,")",null,null,null,"√"]
[null," "," "]
[null,20,"In case of direct deposit to your bank account give additional details"]
[]
[null,"MICR Code",null,null,null,{"$f":"'[7]BIODATA FOR ITR-1'!#REF!","v":{"$error":"#REF!"}},null,null,null,null,null,null,null,"Type of Account (tick as applicable) ",null,null,null,null,null,null,null,null,null,null,"√",null," ","Savings",null," ",null,"Current",null,null," "]
[21,"Details of Tax Deducted at Source from Salary [As per Form 16 issued by Employer(s)]"]
["TDS ON SALARY","Sl No","Tax Deduction Account Number(TAN) of the Employer",null,null,null,null,null,null,"Namee and address of the Employer",null,null,null,null,null,null,"Income chargeable under the head salaries",null,null,null,"Deduction under Chapter VI-A",null,null,"Tax payable (incl. surch. And edn. Cess)",null,null,null,"Total tax deposited",null,null,null,"Tax payable/ refundable"]
[]
[]
[null,"(1)","(2)",null,null,null,null,null,null,"(3)",null,null,null,null,null,null,"(4)",null,null,null,"(5)",null,null,"(6)",null,null,null,"(7)",null,null,null,"(8)"]
[null,null,{"$f":"'[7]BIODATA FOR ITR-1'!#REF!","v":{"$error":"#REF!"}}]
[null," "]
[null," "]
[null," "]
[]
[22,"Details of Tax Deducted at Source on Interest [As per Form 16 A issued by Deductor(s)]"]
["TDS ON INTEREST","Sl No","Tax Deduction Account Number(TAN) of the Deductor",null,null,null,null,null,null,"Namee and address of the Deductor",null,null,null,null,null,null,"Amount paid/ credited",null,null,null,null,"Date of Payment /Credit",null,null,null,null,"Total tax deposited",null,null,null,null,"Amount out of (6) claim for this year "]
[]
[]
[null,"(1)","(2)",null,null,null,null,null,null,"(3)",null,null,null,null,null,null,"(4)",null,null,null,null,"(5)",null,null,null,null,"(6)",null,null,null,null,"(7)"]
[null,null,null,null,null,null,null,null,null,null,null,null,null,null,null,null,null,null,null,null,null,null,null,null,null,null,null,null,null,null,null,0]
[null,null,null,null,null,null,null,null,null,null,null,null,null,null,null,null,null,null,null,null,null,null,null,null,null,null,null,null,null,null,null,0]
[]
[null,null,null,null,null,null,null,null,null,null,null,null,null,null,null,null,null,null,null,null,null,null,null,null,null,null,null,null,null,null,null,0]
[null,"NOTE ",null,null,"Enter the total of column (7) of 22 in Sl.No.15b of TAXES PAID",null,null,null,null,null,null,null,null,null,null,null,null,null,null,null,null,null,null,null,null,null,null,null,null,null,null,{"$f":"SUM(AF84:AF87)","v":0}]
[23,"Details of Advance Tax and Self Assessment Tax Payments"]
["TAX PAYMENTS","Sl No","Name of Bank & Branch",null,null,null,null,null,null,null,null,"BSR Code",null,null,null,null,"Date of Deposit   (DD/MM/YYYY)",null,null,null,null,null,"Serial Number of  Challan",null,null,null,null,null,null,"Amount (Rs.)"]
[]
[null,"(i)",null,null,null,null,null,null,null,null,null,null,null,null,null,null,null,null,null,null,null,null,null,null,null,null,null,null,null,{"$f":"'[7]BIODATA FOR ITR-1'!#REF!","v":{"$error":"#REF!"}}]
[null,"(iii)",null,null,null,null,null,null,null,null,null,null,null,null,null,null,null,null,null,null,null,null,null,null,null,null,null,null,null,0]
[null,"NOTE ",null,null,"Enter the total of Advance tax and Self Assessmen tax in Sl.No.15a and 15c of TAXES PAID",null,null,null,null,null,null,null,null,null,null,null,null,null,null,null,null,null,null,null,null,null,null,null,null,{"$f":"SUM(AD92:AD93)","v":{"$error":"#REF!"}}]
[24,"Other Information (Transactions reported through Annual Information Return) (Please see instruction number-9(ii) for code)"]
["Sl.","Code",null,null,"Amount (Rs.)",null,null,null,null,null,null,"Sl.","Code",null,null,"Amount (Rs.)",null,null,null,null,null,null,null,"Sl.","Code",null,null,null,"Amount (Rs.)"]
["a","001",null,null,null,null,null,null,null,null,null,"e","004",null,null,null,null,null,null,null,null,null,null,"h","007"]
["b","002",null,null,null,null,null,null,null,null,null,"f","005",null,null,null,null,null,null,null,null,null,null,"i","008"]
["c","003",null,null,null,null,null,null,null,null,null,"g","006",null,null,null,null,null,null,null,null,null,null,"j"]
[]
[25,"Tax-exempt interest income (for reporting purposes only)"]
["VERIFICATION"]
[]
["     I, ",null,null,null,null,null,null,null,null,null,null,null,null,null,null,"son/ daughter of",null,null,null,null,null,null,null,null,null,null,null,null,null,null,null,null,"solemnly "]
["declare that to the best of my knwledge and belief, the information given in the return thereto is correct and complete and that the amount of total income and other particulars shown therein are truly stated and in accordance with the provisions of the I"]
[]
["Place",null,null,null,null,null,null,null,"Date",null,null,null,null,null,null,null,null,null,"Sign here"]
[]
[26,"If the return has been prepared by a Tax Return Preparer (TRP) give further details as below :"]
["Identification No. of TRP",null,null,null,null,null,null,null,null,"Name of TRP",null,null,null,null,null,null,null,null," ",null,"Counter Signature of TRP"]
[]
["If TRP is entitled for any reimbursement from the Government, amount thereof (to be filled by TRP)",null,null,null,null,null,null,null,null,null,null,null,null,null,null,null,null,null,null,null,null,null,null,null,null,null,null,null,27]
["Receipt No."]
[]
["Date"]
[]
[]
[]
[]
[]
[null,null,null,null,null,null,null,null,null,null,null,null,null,null,null,null,null,"Click Next ITR-2 Page 2",null,null,null,null,null,null,null,null,"ITR-1Page 2"]

{"sheet":"ITR-IPage 2","index":9,"n_rows":53,"n_cols":37,"rows_kept":53,"cut":false,"hidden":true,"merged":[[49,0,49,8],[49,9,49,19],[50,1,50,28],[52,17,52,26],[52,27,52,34],[42,23,42,24],[43,0,43,34],[44,2,44,14],[44,19,44,31],[45,0,45,34],[46,2,46,7],[40,1,40,3],[40,4,40,10],[40,12,40,14],[40,15,40,22],[40,24,40,27],[40,28,40,34],[39,1,39,3],[39,4,39,10],[39,12,39,14],[39,15,39,22],[39,24,39,27],[39,28,39,34],[38,1,38,3],[38,4,38,10],[38,12,38,14],[38,15,38,22],[38,24,38,27],[38,28,38,34],[34,22,34,28],[34,29,34,34],[35,1,35,3],[35,29,35,34],[37,1,37,3],[37,4,37,10],[37,12,37,14],[37,15,37,22],[37,24,37,27],[37,28,37,34],[31,0,35,0],[31,1,32,1],[31,2,32,10],[31,11,32,15],[31,16,32,21],[34,2,34,10],[34,11,34,15],[34,16,34,21],[22,0,29,0],[22,1,24,1],[22,2,24,8],[22,9,24,15],[22,16,24,20],[22,21,24,25],[26,21,26,25],[31,22,32,28],[26,26,26,30],[31,29,32,34],[33,2,33,10],[33,11,33,15],[33,16,33,21],[33,22,33,28],[33,29,33,34],[29,1,29,3],[28,26,28,30],[28,31,28,34],[28,2,28,8],[28,9,28,15],[28,16,28,20],[28,21,28,25],[17,31,20,34],[22,26,24,30],[22,31,24,34],[25,2,25,8],[25,9,25,15],[25,16,25,20],[25,21,25,25],[25,26,25,30],[25,31,25,34],[26,31,26,34],[27,2,27,8],[27,9,27,15],[27,16,27,20],[27,21,27,25],[27,26,27,30],[27,31,27,34],[26,2,26,8],[26,9,26,15],[26,16,26,20],[13,31,13,34],[14,31,14,34],[15,31,15,34],[16,2,16,8],[16,9,16,15],[16,16,16,19],[16,20,16,22],[16,23,16,26],[16,27,16,30],[16,31,16,34],[11,5,11,12],[11,13,11,23],[11,25,11,26],[11,28,11,30],[13,0,20,0],[13,1,15,1],[13,2,15,8],[13,9,15,15],[13,16,15,19],[13,20,15,22],[13,23,15,26],[13,27,15,30],[17,2,20,8],[17,9,20,15],[17,16,20,19],[17,20,20,22],[17,23,20,26],[17,27,20,30],[5,26,5,33],[6,0,10,0],[6,26,6,33],[7,21,7,34],[9,12,9,14],[9,16,9,32],[10,21,10,34],[0,0,5,0],[0,36,0,37],[1,18,1,24],[1,26,1,33],[2,3,2,16],[2,18,2,24],[2,26,2,33],[3,18,3,24],[3,26,3,33],[4,26,4,33]]}
["TAXES PAID",16,"Taxes Paid",null,null,null,null,null,null,null,null,null,null,null,null,null,null,null,null,null,null,null,null,null,null,null,null,null,null,null,null,null,null,null,null,null,"Acknowledgement"]
[null,null,"a","Advance Tax (from item 25)",null,null,null,null,null,null,null,null,null,null,null,null," ",null,null,null,null,null,null,null,null,"16a",{"$f":"'[7]BIODATA FOR ITR-1'!$F$9303","v":0}]
[null,null,"b","TDS (column 7 of item23+column 7 of item 24)",null,null,null,null,null,null,null,null,null,null,null,null,null,null,null,null,null,null,null,null,null,"16b",{"$f":"$AF$29","v":0}]
[null,null,"c","Self Assessment Tax (from item 25)",null,null,null,null,null,null,null,null,null,null,null,null," ",null,null,null,null,null,null,null,null,"16c",0]
[null,17,"Total Taxes paid (16a+16b+16c)",null,null,null,null,null,null,null,null,null,null,null,null,null," ",null,null,null,null,null,null,null,null,17,{"$f":"SUM(AA2:AH4)","v":0}]
[null,18,"Tax payable(15-17)(enter if 15  is greater than 17, else leave blank)",null,null,null,null,null,null,null,null,null,null,null,null,null,null,null,null,null,null,null,null,null,null,18,{"$f":"IF(AA5>=AJ6,0,IF(AA5<=AJ6,AJ6-AA5))","v":22967},null,null,null,null,null,null,null,null,{"$f":"'ITR-I Page 1'!$AB$45","v":22967}]
["REFUND",19,"Refund (18-17) (enter if 15d is greater than 14, also give Bank account details below)",null,null,null,null,null,null,null,null,null,null,null,null,null,null,null,null,null,null,null,null,null,null,19,{"$f":"IF(AA5>=AJ6,AA5-AJ6,IF(AA5<=AJ6,0))","v":0}]
[null,20,"Enter your bank account number (mandatory in case of refund)",null,null,null,null,null,null,null,null,null,null,null,null,null,null,null,null,null,null,{"$f":"'[7]BIODATA FOR ITR-1'!$F$29","v":0}]
[]
[null,21,"Do you want your refund by",null,null,null,null,null,null,null,null,null,"cheque",null,null,"or","deposited directly into your bank account? (tick as applicable",null,null,null,null,null,null,null,null,null,null,null,null,null,null,null,null,null,"√"]
[null,22,"Give additional details of your bank account"]
[null,"MICR Code",null,null,null,{"$f":"'[7]BIODATA FOR ITR-1'!$F$28","v":0},null,null,null,null,null,null,null,"Type of Account (tick as applicable) ",null,null,null,null,null,null,null,null,null,null,"√","Savings",null,null,"Current",null,null,null,null,null," "]
[23,"Details of Tax Deducted at Source from Salary [As per Form 16 issued by Employer(s)]"]
["TDS ON SALARY","Sl No","Tax Deduction Account Number(TAN) of the Employer",null,null,null,null,null,null,"Name and address of the Employer",null,null,null,null,null,null,"Income chargeable under the head salaries",null,null,null,"Deduction under Chapter VI-A",null,null,"Tax payable (incl. surch. And edn. Cess)",null,null,null,"Total tax deposited",null,null,null,"TAX"]
[null,null,null,null,null,null,null,null,null,null,null,null,null,null,null,null,null,null,null,null,null,null,null,null,null,null,null,null,null,null,null,{"$f":"IF(X18>=AB18,AK15,)","v":"Payble"},null,null,null,null,"Payble"]
[null,null,null,null,null,null,null,null,null,null,null,null,null,null,null,null,null,null,null,null,null,null,null,null,null,null,null,null,null,null,null,{"$f":"IF(X18<=AB18,AK16,)","v":"Refundable"},null,null,null,null,"Refundable"]
[null,"(1)","(2)",null,null,null,null,null,null,"(3)",null,null,null,null,null,null,"(4)",null,null,null,"(5)",null,null,"(6)",null,null,null,"(7)",null,null,null,"(8)"]
[null,null,{"$f":"'[7]BIODATA FOR ITR-1'!$K$22","v":0},null,null,null,null,null,null,{"$f":"'[7]BIODATA FOR ITR-1'!$F$22","v":0},null,null,null,null,null,null,{"$f":"'ITR-I Page 1'!$AB$24","v":467759},null,null,null,{"$f":"'[7]BIODATA FOR ITR-1'!$F$54","v":69080},null,null,{"$f":"'ITR-I Page 1'!$AB$45","v":22967},null,null,null,{"$f":"SUM(X18+AA7)","v":22967},null,null,null,{"$f":"$AA$7","v":0}]
[null," "]
[null," "]
[]
[24,"Details of Tax Deducted at Source other than salary"]
["TDS ON INTEREST","Sl No","Tax Deduction Account Number(TAN) of the Deductor",null,null,null,null,null,null,"Namee and address of the Deductor",null,null,null,null,null,null,"Amount paid/ credited",null,null,null,null,"Date of Payment /Credit",null,null,null,null,"Total tax deposited",null,null,null,null,"Amount out of (6) claim for this year "]
[]
[]
[null,"(1)","(2)",null,null,null,null,null,null,"(3)",null,null,null,null,null,null,"(4)",null,null,null,null,"(5)",null,null,null,null,"(6)",null,null,null,null,"(7)"]
[null,null,null,null,null,null,null,null,null,null,null,null,null,null,null,null,null,null,null,null,null,null,null,null,null,null,{"$f":"Q27","v":0},null,null,null,null,0]
[null,null,null,null,null,null,null,null,null,null,null,null,null,null,null,null,null,null,null,null,null,null,null,null,null,null,null,null,null,null,null,0]
[null,null,null,null,null,null,null,null,null,null,null,null,null,null,null,null,null,null,null,null,null,null,null,null,null,null,null,null,null,null,null,{"$f":"SUM(AF27:AJ28)","v":0}]
[null,"NOTE ",null,null,"Enter the total of column (7) of 23and column (7) of 17 of TAXES PAID"]
[25,"Details of Advance Tax and Self Assessment Tax Payments"]
["TAX PAYMENTS","Sl No","Name of Bank & Branch",null,null,null,null,null,null,null,null,"BSR Code",null,null,null,null,"Date of Deposit   (DD/MM/YYYY)",null,null,null,null,null,"Serial Number of  Challan",null,null,null,null,null,null,"Amount (Rs.)"]
[]
[null,"(i)",{"$f":"'[7]BIODATA FOR ITR-1'!$F$26","v":0},null,null,null,null,null,null,null,null,{"$f":"'[7]BIODATA FOR ITR-1'!$F$23","v":0},null,null,null,null,{"$f":"'[7]BIODATA FOR ITR-1'!$F$24","v":"00:00:00"},null,null,null,null,null,{"$f":"'[7]BIODATA FOR ITR-1'!$F$25","v":0},null,null,null,null,null,null,{"$f":"'[7]BIODATA FOR ITR-1'!$F$9303","v":0}]
[null,"(iii)",null,null,null,null,null,null,null,null,null,null,null,null,null,null,null,null,null,null,null,null,null,null,null,null,null,null,null,0]
[null,"NOTE ",null,null,"Enter the total of Advance tax and Self Assessmen tax in Sl.No.17 of TAXES PAID",null,null,null,null,null,null,null,null,null,null,null,null,null,null,null,null,null,null,null,null,null,null,null,null,{"$f":"SUM(AD34:AD35)","v":0}]
[26,"Other Information (Transactions reported through Annual Information Return) (Please see instruction number-9(ii) for code)"]
["Sl.","Code",null,null,"Amount (Rs.)",null,null,null,null,null,null,"Sl.","Code",null,null,"Amount (Rs.)",null,null,null,null,null,null,null,"Sl.","Code",null,null,null,"Amount (Rs.)"]
["a","001",null,null,null,null,null,null,null,null,null,"e","004",null,null,null,null,null,null,null,null,null,null,"h","007"]
["b","002",null,null,null,null,null,null,null,null,null,"f","005",null,null,null,null,null,null,null,null,null,null,"i","008"]
["c","003",null,null,null,null,null,null,null,null,null,"g","006",null,null,null,null,null,null,null,null,null,null,"j"]
[]
[27,"Exempt income only for reporting purposes(from Dividend, Capital gains etc)",null,null,null,null,null,null,null,null,null,null,null,null,null,null,null,null,null,null,null,null,null,27]
["VERIFICATION"]
["     I, ",null,null,null,null,null,null,null,null,null,null,null,null,null,null,"son/ daughter of",null,null,null,null,null,null,null,null,null,null,null,null,null,null,null,null,"solemnly "]
["declare that to the best of my knwledge and belief, the information given in the return thereto is correct and complete and that the amount of total income and other particulars shown therein are truly stated and in accordance with the provisions of the Income -tax Act, 1961, in respect of income chargeable to income-tax for the previous year relevant to the Assessment                                                                                               Year 2010-11"]
["Place",null,null,null,null,null,null,null,"Date",null,null,null,null,null,null,null,null,null,"Sign here"]
[28,"If the return has been prepared by a Tax Return Preparer (TRP) give further details as below :"]
["Identification No. of TRP",null,null,null,null,null,null,null,null,"Name of TRP",null,null,null,null,null,null,null,null," ",null,"Counter Signature of TRP"]
[]
[29,"If TRP is entitled for any reimbursement from the Government, amount thereof (to be filled by TRP)",null,null,null,null,null,null,null,null,null,null,null,null,null,null,null,null,null,null,null,null,null,null,null,null,null,null,null,29]
[]
[null,null,null,null,null,null,null,null,null,null,null,null,null,null,null,null,null,"Click Next Acknowledgement",null,null,null,null,null,null,null,null,null,"Acknowledgement"]

{"sheet":"ITR I","index":10,"n_rows":121,"n_cols":38,"rows_kept":121,"cut":false,"hidden":true,"merged":[[1,33,3,33],[1,34,2,34],[2,4,2,25],[3,4,3,24],[4,0,13,0],[4,25,4,33],[5,1,5,8],[5,9,5,16],[5,17,5,24],[5,25,5,34],[0,0,3,0],[0,1,3,3],[0,4,0,24],[0,25,0,34],[1,4,1,25],[1,26,3,26],[1,27,3,27],[1,28,3,28],[1,29,3,29],[1,31,3,32],[11,20,11,24],[11,26,11,34],[12,1,12,13],[12,14,12,19],[12,20,12,24],[12,27,12,28],[12,29,12,31],[12,32,12,33],[6,26,6,34],[7,1,7,13],[7,14,7,24],[7,25,7,34],[9,26,9,33],[10,1,10,13],[10,14,10,24],[13,5,13,15],[13,16,13,24],[13,25,13,34],[14,0,19,0],[14,1,14,15],[15,1,15,14],[17,1,17,13],[17,16,17,26],[17,27,17,33],[18,1,18,10],[18,11,18,16],[18,27,18,34],[19,15,19,16],[19,22,19,23],[19,24,19,34],[20,27,20,32],[21,27,21,32],[22,2,22,24],[22,27,22,32],[26,3,26,4],[26,5,26,9],[26,11,26,12],[26,13,26,16],[26,18,26,19],[26,20,26,24],[23,2,23,11],[23,27,23,32],[24,2,24,16],[25,3,25,4],[25,5,25,9],[25,11,25,12],[25,13,25,16],[25,18,25,19],[25,20,25,24],[28,18,28,19],[28,20,28,24],[27,3,27,4],[27,5,27,9],[27,11,27,12],[27,13,27,16],[27,18,27,19],[27,20,27,24],[33,0,44,0],[33,2,33,19],[38,2,38,18],[20,0,32,0],[28,3,28,4],[28,5,28,9],[28,11,28,12],[28,13,28,16],[29,2,29,12],[39,18,39,24],[29,25,29,26],[29,27,29,32],[30,25,30,26],[30,27,30,32],[31,25,31,26],[31,27,31,34],[37,25,37,26],[37,27,37,32],[38,25,38,26],[38,27,38,32],[39,25,39,26],[39,27,39,32],[32,25,32,26],[32,27,32,32],[43,27,43,32],[44,2,44,17],[44,25,44,26],[44,27,44,32],[33,25,33,26],[33,27,33,32],[34,27,34,32],[35,18,35,24],[36,18,36,24],[37,2,37,16],[45,17,46,17],[45,27,45,32],[40,18,40,24],[40,25,40,26],[40,27,40,32],[41,25,41,26],[41,27,41,32],[42,2,42,15],[42,25,42,26],[42,27,42,32],[60,0,65,0],[60,25,60,26],[60,27,60,34],[61,21,61,34],[63,11,63,14],[65,21,65,34],[47,27,47,32],[49,0,53,15],[49,17,49,29],[54,0,59,0],[55,18,55,24],[56,18,56,24],[57,18,57,24],[58,27,58,34],[59,25,59,26],[59,27,59,34],[67,5,67,12],[67,13,67,23],[67,27,67,28],[67,31,67,33],[69,0,77,0],[69,1,71,1],[69,2,71,8],[69,9,71,15],[69,16,71,19],[69,20,71,22],[69,23,71,26],[69,27,71,30],[69,31,71,34],[72,2,72,8],[72,9,72,15],[72,16,72,19],[72,20,72,22],[72,23,72,26],[72,27,72,30],[72,31,72,34],[73,31,73,34],[74,23,74,26],[74,27,74,30],[74,31,74,34],[75,2,77,8],[75,9,77,15],[75,16,77,19],[75,20,77,22],[75,23,77,26],[75,27,77,30],[73,2,74,8],[73,9,74,15],[73,16,73,19],[73,20,73,22],[73,23,73,26],[73,27,73,30],[75,31,77,34],[79,0,87,0],[79,1,81,1],[79,2,81,8],[79,9,81,15],[79,16,81,20],[79,21,81,25],[79,26,81,30],[79,31,81,34],[82,2,82,8],[82,9,82,15],[82,16,82,20],[82,21,82,25],[82,26,82,30],[82,31,82,34],[83,2,83,8],[83,9,83,15],[83,16,83,20],[83,21,83,25],[83,26,83,30],[86,2,86,8],[86,9,86,15],[86,16,86,20],[86,21,86,25],[86,26,86,30],[86,31,86,34],[83,31,83,34],[84,2,84,8],[84,9,84,15],[84,16,84,20],[84,21,84,25],[84,26,84,30],[84,31,84,34],[87,1,87,3],[87,31,87,34],[89,0,93,0],[89,1,90,1],[89,2,90,10],[89,11,90,15],[89,16,90,21],[89,22,90,28],[89,29,90,34],[91,2,91,10],[91,11,91,15],[91,16,91,21],[91,22,91,28],[91,29,91,34],[92,2,92,10],[92,11,92,15],[92,16,92,21],[92,22,92,28],[92,29,92,34],[96,1,96,3],[96,4,96,10],[96,12,96,14],[96,15,96,22],[96,24,96,27],[96,28,96,34],[93,1,93,3],[93,29,93,34],[95,1,95,3],[95,4,95,10],[95,12,95,14],[95,15,95,22],[95,24,95,27],[95,28,95,34],[98,1,98,3],[98,4,98,10],[98,12,98,14],[98,15,98,22],[98,24,98,27],[98,28,98,34],[97,1,97,3],[97,4,97,10],[97,12,97,14],[97,15,97,22],[97,24,97,27],[97,28,97,34],[110,0,110,8],[110,9,110,19],[111,0,111,27],[112,0,112,4],[120,17,120,24],[120,26,120,32],[100,24,100,34],[101,0,101,34],[103,1,103,14],[103,19,103,31],[104,0,104,34],[106,2,106,7]]}
["FORM","SARAL-II (ITR-I)",null,null,"INDIAN INCOME TAX RETURN",null,null,null,null,null,null,null,null,null,null,null,null,null,null,null,null,null,null,null,null,"Assessment Year"]
[null,null,null,null,"[For Individual having Income from Salary/Pension/income from One House Property(Excluding loss brought forward from previous years)/Income from Other Sources (Excluding Winning from Lottery and income from Race Horses)]",null,null,null,null,null,null,null,null,null,null,null,null,null,null,null,null,null,null,null,null,null,null,null,null,1,null,"-",null,1,2]
[null,null,null,null,"(Please see Rule 12 of the Income-tax Rules, 1962)(Also see attached instuctions)"]
[]
["PERSONAL INFORMATION","First name",null,null,null," ",null,null,null,"Middle name",null,null,null,null,null," ",null,"Last name",null,null,null," ",null,null,null,"Pan No"]
[null,{"$f":"'[7]BIODATA FOR ITR-1'!$F$2","v":0},null,null,null,null,null,null,null,{"$f":"'[7]BIODATA FOR ITR-1'!$F$3","v":"KUMAR"},null,null,null,null,null,null,null,{"$f":"'[7]BIODATA FOR ITR-1'!$F$4","v":"BANDYOPADHYAY"},null,null,null,null,null,null,null,{"$f":"'[7]BIODATA FOR ITR-1'!$F$6","v":"AA55666D"}]
[null,"Flat /Door/Block No.",null,null,null,null,null,null,null,null,null,null,null,null,"Name Of Premises/Building/Village",null,null,null,null,null,null,null,null,null,null,"Date of Birth (DD/MM/YYYY)","Date of Birth"]
[null,{"$f":"'[7]BIODATA FOR ITR-1'!$F$10","v":"150 D"},null,null,null,null,null,null,null,null,null,null,null,null,{"$f":"'[7]BIODATA FOR ITR-1'!$F$11","v":"Kalisthanpara"},null,null,null,null,null,null,null,null,null,null,{"$f":"'[7]BIODATA FOR ITR-1'!$F$8","v":"1963-01-04"}]
[]
[null,"Road/Street/Post Office",null,null,null,null,null,null,null,null,null,null,null,null,"Area/Locality",null,null,null,null,null,null," ",null,null,null,"Employer Category (Tick) ","Employer Category",null,null,null,null,null,null,null,"√"]
[null,{"$f":"'[7]BIODATA FOR ITR-1'!$F$12","v":"Jiaganj"},null,null,null,null,null,null,null,null,null,null,null,null,{"$f":"'[7]BIODATA FOR ITR-1'!$F$13","v":"Jiaganj"},null,null,null,null,null,null,null,null,null,null,null,"√","Govt.",null,null,null,"PSU",null,"Others"]
[null,"Town/City/District",null,null,null,null,null,null,null,null,null,null,null,null,"State",null,null,null,null,null,"Pin code ",null,null,null,null,"Sex (Tick)","Employer Category"]
[null,{"$f":"'[7]BIODATA FOR ITR-1'!$F$14","v":"Murshidabad"},null,null,null,null,null,null,null,null,null,null,null,null,{"$f":"'[7]BIODATA FOR ITR-1'!$F$16","v":"West Bengal"},null,null,null,null,null,{"$f":"'[7]BIODATA FOR ITR-1'!$F$15","v":742123},null,null,null,null,null,"√",{"$f":"'[7]BIODATA FOR ITR-1'!$F$18","v":"male"},null,"√",null,null,{"$f":"'[7]BIODATA FOR ITR-1'!$J$18","v":0},null," "]
[null,"Email Addrs.",null,null,null,null,null,null,null,null,null,null,null,null,null,null,"(STD Code) - Phone Number "]
["FILING STATUS","Designation of Assessing Officer (Ward/Circle)",null,null,null,null,null,null,null,null,null,null,null,null,null,null,null,null,"Return Filed Under Section-",null,null,null,null,null,null,null,null,null,null,1,null,1]
[null,{"$f":"'[7]BIODATA FOR ITR-1'!$F$5","v":"U.D.C."},null,null,null,null,null,null,null,null,null,null,null,null,null," ",null,null,"[Please see instruction number-9(i)]"]
[null,"Whether original or Revised return? (Tick)",null,null,null,null,null,null,null,null,null,null,null,null,"√",null,null,null," ","√","  Original",null,null,null," ",null,null,null,null,"     Revised"]
[null,"If revised, enter Receipt No and Date of filing original return (DD/MM/YYYY)",null,null,null,null,null,null,null,null,null,null,null,null,null,null,"ORIGINAL",null,null,null,null,null,null,null,null,null,null," "]
[null,"Original return(DD/MM/YYYY)",null,null,null,null,null,null,null,null,null,{"$f":"'[7]BIODATA FOR ITR-1'!$F$17","v":40823}]
[null,"Residential Status (Tick)",null,null,null,null,null,null,null,"√",null,"√","Resident",null,null,null,null,"  Non-Resident",null,null,null,null," ",null," Resident but not ordinarily Resident "]
["INCOME & DEDUCTIONS",1,"Income chargeable under the Head 'Salaries',Pension",null,null,null,null,null,null,null,null,null,null,null,null,null,null,null,null,null,null,null,null,null,null,null,1,467759]
[null,2,"Income chargeable under the Head 'House Property'(enter-ve sign in case of loss, if any)",null,null,null,null,null,null,null,null,null,null,null,null,null,null,null,null,null,null,null,null,null,null,null,2,0]
[null,3,"Income chargeable under the Head 'Other Sources' (enter-ve sign in case of loss, if any)",null,null,null,null,null,null,null,null,null,null,null,null,null,null,null,null,null,null,null,null,null,null,null,3,0]
[null,4,"Gross Total Income (1+2+3)",null,null,null,null,null,null,null,null,null,null,null,null,null,null,null,null,null,null,null,null,null,null,null,4,467759]
[null,5,"Deductions under chapter VIA (Section "]
[null,null,"a","80C",null,{"$f":"'[7]BIODATA FOR ITR-1'!$F$43","v":69080},null,null,null,null,"e","80DD",null,{"$f":"'[7]BIODATA FOR ITR-1'!$F$49","v":0},null,null,null,"I","80GG",null,0]
[null,null,"b","80CCC",null,0,null,null,null,null,"f","80DDB",null,{"$f":"'[7]BIODATA FOR ITR-1'!$F$50","v":0},null,null,null,"j","80GGA",null,0]
[null,null,"c","80CCD",null,{"$f":"'[7]BIODATA FOR ITR-1'!$F$52","v":0},null,null,null,null,"g","80E",null,{"$f":"'[7]BIODATA FOR ITR-1'!$F$48","v":0},null,null,null,"k","80GGC",null,0]
[null,null,"d","80D",null,{"$f":"'[7]BIODATA FOR ITR-1'!$F$47","v":0},null,null,null,null,"h","80G",null,{"$f":"'[7]BIODATA FOR ITR-1'!$F$46","v":0},null,null,null,"l","80U",null,{"$f":"'[7]BIODATA FOR ITR-1'!$F$53","v":0}]
[null,6,"Deductions (Total of 5a to5i)",null,null,null,null,null,null,null,null,null,null," ",null,null,null,null,null,null,null,null,null,null,null,6,null,69080]
[null,7,"Total Income (4-6)",null,null,null,null,null,null,null,null,null,null,null,null,null,null,null,null,null,null,null,null,null,null,7,null,398679]
[null,6,"Net Agricultural Income (Enter only if greater than Rs.5,000)",null,null,null,null,null,null,null,null,null,null,null,null,null,null,null,null,null,null,null,null,null,null,6]
[null,7,"Aggregate Income' (5+6)",null,null,null,null,null,null,null,null,null,null,null,null,null,null,null,null,null,null,null,null,null,null,7,null,398679]
["TAX COMPUTATION",8,"Tax Payable on 'Aggregate Income'",null,null,null,null,null,null,null,null,null,null,null,null,null,null,null,null,null,null,null,null,null,null,8,null,23868,null,null,null,null,null,null,null,{"$f":"IF(AB33-160000<=0,\"0\",IF(AB33>=500000,\"0\",IF(AB33-160000>=0,ROUND(AB33-160000,)*10%,0)))","v":23867.9},{"$f":"IF(AB33-300000<=500000,\"0\",IF(AB33-300000>=500000,ROUND(AB33-300000,)*20%,0))","v":"0"},{"$f":"IF(AB33>300000,14000)","v":14000}]
[null,null,null,"Rebate in respect of Net Agricultural income",null,null,null,null,null,null,null,null,null,null,null,null,null,null,null,null,null,null,null,null,null,null,null,0]
[null,9,"a","Tax Payable on total Income (8a - 8b)",null,null,null,null,null,null,null,null,null,null,null,null," ","9a",{"$f":"AB34-AB35","v":23868}]
[null,null,"b","Surcharge on 9a",null,null,null,null,null,null,null,null,null,null,null,null," ","9b",0]
[null,9,"Education Cess on (on 8)",null,null,null,null,null,null,null,null,null,null,null,null,null,null,null,null,null,null,null,null,null,null,9,null,716]
[null,10,"Total Tax, Surcharge and Education cess payable (8+9)",null,null,null,null,null,null,null,null,null,null,null,null,null,null,null,null,null,null,null,null,null,null,10,null,24584]
[null,11,"Relief under Section 89",null,null,null,null,null,null,null,null,null,null,null,null,null," ",null,null,null,null,null,null,null,null,11,null,1617,null,null,null,null,null,null,null,{"$f":"'[7]10 E Annex-I'!$G$12","v":1617}]
[null,12,"Relief under Section 90/91",null,null,null,null,null,null,null,null,null,null,null,null,null," ",null,null,null,null,null,null,null,null,12,null,0]
[null,13,"Balance Tax Payable (10-11-12)",null,null,null,null,null,null,null,null,null,null,null,null,null,null,null,null,null,null,null,null,null,null,13,null,22967]
[null,14,"Total interest payable u/s 234A/234B/234C",null,null,null,null,null,null,null,null,null,null,null,null,null,null,null,null,null,null,null,null,null,null,14,null,0]
[]
[null,15,"Total Tax and Interest payable (12+13)",null,null,null,null,null,null,null,null,null,null,null,null,null,null,null,null,null,null,null,null,null,null,15,null,22967]
[null,null,null,null,null,null,null,null,null,null,null,null,null,null,null,null,null,"d","Total Interest Payable                   ",null,null,null,null,null,null,"13d",null,{"$f":"AB43+AB44+AB45","v":22967}]
[null,null,null,null,null,null,null,null,null,null,null,null,null,null,null,null,null,null,"(13a+13b+13c)",null,null,null,null,null,null," "]
[null,null,null,null,null,null,null,null,null,null,null,null,null,null,null,null,14,"Total Tax and Interest Payable",null,null,null,null,null,null,null,"14",null,{"$f":"ROUND(AB42-AB46,0)","v":0}]
[null,null,null,null,null,null,null,null,null,null,null,null,null,null,null,null," ","(12+13d)",null,null,null,null,null,null,null," "]
["Do not write or stamp in this areas for office use only",null,null,null,null,null,null,null,null,null,null,null,null,null,null,null,null,"Seal and signature of receiving official"]
[null,null,null,null,null,null,null,null,null,null,null,null,null,null,null,null,null,null,null,null,null,null," "]
[]
[]
[]
["TAXES PAID",15,"Taxes Paid"]
[null,null,"a","Advance Tax (from item 23)",null,null,null,null,null,null,null,null,null,null,null,null," ","15a",{"$f":"'[7]BIODATA FOR ITR-1'!#REF!","v":{"$error":"#REF!"}}]
[null,null,"b","TDS (column 7 of item21+column 7 of item 22)",null,null,null,null,null,null,null,null,null,null,null,null," ","15b",{"$f":"AF88","v":0}]
[null,null,"c","Self Assessment Tax (from item 23)",null,null,null,null,null,null,null,null,null,null,null,null," ","15c"]
[null,"d","Total Taxes paid (15a+15b+15c)",null,null,null,null,null,null,null,null,null,null,null,null,null," ",null,null,null,null,null,null,null,null,"15d",null,{"$f":"SUM(S56:S58)","v":{"$error":"#REF!"}}]
[null,16,"Tax payable(14-15d)(enter if 14  is greater than 15d, else leave blank)",null,null,null,null,null,null,null,null,null,null,null,null,null,null,null,null,null,null,null,null,null,null,16,null,{"$f":"IF(AB48<=AB59,0,IF(AB48>=AB59,AB48-AB59))","v":{"$error":"#REF!"}}]
["REFUND",17,"Refund (15d-14) (enter if 15d is greater than 14, also give Bank account details below)",null,null,null,null,null,null,null,null,null,null,null,null,null,null,null,null,null,null,null,null,null,null,17,null,{"$f":"IF(AB59<=AB48,0,IF(AB59>=AB48,AB59-AB48))","v":{"$error":"#REF!"}}]
[null,18,"Enter your bank account number (mandatory in case of refund)",null,null,null,null,null,null,null,null,null,null,null,null,null,null,null,null,null,null,{"$f":"'[7]BIODATA FOR ITR-1'!#REF!","v":{"$error":"#REF!"}}]
[]
[null,19,"Do you want your refund by",null,null,null,null,null,null,null,null,"   Cheque, or ",null,null,null,"deposited directly into your bank account? (tick as applicable",null,null,null,null,null,null,null,null,null,null,null,null,null,null,")",null,null,null,"√"]
[null," "," "]
[null,20,"In case of direct deposit to your bank account give additional details"]
[]
[null,"MICR Code",null,null,null,{"$f":"'[7]BIODATA FOR ITR-1'!#REF!","v":{"$error":"#REF!"}},null,null,null,null,null,null,null,"Type of Account (tick as applicable) ",null,null,null,null,null,null,null,null,null,null,"√",null," ","Savings",null," ",null,"Current",null,null," "]
[21,"Details of Tax Deducted at Source from Salary [As per Form 16 issued by Employer(s)]"]
["TDS ON SALARY","Sl No","Tax Deduction Account Number(TAN) of the Employer",null,null,null,null,null,null,"Namee and address of the Employer",null,null,null,null,null,null,"Income chargeable under the head salaries",null,null,null,"Deduction under Chapter VI-A",null,null,"Tax payable (incl. surch. And edn. Cess)",null,null,null,"Total tax deposited",null,null,null,"Tax payable/ refundable"]
[]
[]
[null,"(1)","(2)",null,null,null,null,null,null,"(3)",null,null,null,null,null,null,"(4)",null,null,null,"(5)",null,null,"(6)",null,null,null,"(7)",null,null,null,"(8)"]
[null,null,{"$f":"'[7]BIODATA FOR ITR-1'!#REF!","v":{"$error":"#REF!"}}]
[null," "]
[null," "]
[null," "]
[]
[22,"Details of Tax Deducted at Source on Interest [As per Form 16 A issued by Deductor(s)]"]
["TDS ON INTEREST","Sl No","Tax Deduction Account Number(TAN) of the Deductor",null,null,null,null,null,null,"Namee and address of the Deductor",null,null,null,null,null,null,"Amount paid/ credited",null,null,null,null,"Date of Payment /Credit",null,null,null,null,"Total tax deposited",null,null,null,null,"Amount out of (6) claim for this year "]
[]
[]
[null,"(1)","(2)",null,null,null,null,null,null,"(3)",null,null,null,null,null,null,"(4)",null,null,null,null,"(5)",null,null,null,null,"(6)",null,null,null,null,"(7)"]
[null,null,null,null,null,null,null,null,null,null,null,null,null,null,null,null,null,null,null,null,null,null,null,null,null,null,null,null,null,null,null,0]
[null,null,null,null,null,null,null,null,null,null,null,null,null,null,null,null,null,null,null,null,null,null,null,null,null,null,null,null,null,null,null,0]
[]
[null,null,null,null,null,null,null,null,null,null,null,null,null,null,null,null,null,null,null,null,null,null,null,null,null,null,null,null,null,null,null,0]
[null,"NOTE ",null,null,"Enter the total of column (7) of 22 in Sl.No.15b of TAXES PAID",null,null,null,null,null,null,null,null,null,null,null,null,null,null,null,null,null,null,null,null,null,null,null,null,null,null,{"$f":"SUM(AF84:AF87)","v":0}]
[23,"Details of Advance Tax and Self Assessment Tax Payments"]
["TAX PAYMENTS","Sl No","Name of Bank & Branch",null,null,null,null,null,null,null,null,"BSR Code",null,null,null,null,"Date of Deposit   (DD/MM/YYYY)",null,null,null,null,null,"Serial Number of  Challan",null,null,null,null,null,null,"Amount (Rs.)"]
[]
[null,"(i)",null,null,null,null,null,null,null,null,null,null,null,null,null,null,null,null,null,null,null,null,null,null,null,null,null,null,null,{"$f":"'[7]BIODATA FOR ITR-1'!#REF!","v":{"$error":"#REF!"}}]
[null,"(iii)",null,null,null,null,null,null,null,null,null,null,null,null,null,null,null,null,null,null,null,null,null,null,null,null,null,null,null,0]
[null,"NOTE ",null,null,"Enter the total of Advance tax and Self Assessmen tax in Sl.No.15a and 15c of TAXES PAID",null,null,null,null,null,null,null,null,null,null,null,null,null,null,null,null,null,null,null,null,null,null,null,null,{"$f":"SUM(AD92:AD93)","v":{"$error":"#REF!"}}]
[24,"Other Information (Transactions reported through Annual Information Return) (Please see instruction number-9(ii) for code)"]
["Sl.","Code",null,null,"Amount (Rs.)",null,null,null,null,null,null,"Sl.","Code",null,null,"Amount (Rs.)",null,null,null,null,null,null,null,"Sl.","Code",null,null,null,"Amount (Rs.)"]
["a","001",null,null,null,null,null,null,null,null,null,"e","004",null,null,null,null,null,null,null,null,null,null,"h","007"]
["b","002",null,null,null,null,null,null,null,null,null,"f","005",null,null,null,null,null,null,null,null,null,null,"i","008"]
["c","003",null,null,null,null,null,null,null,null,null,"g","006",null,null,null,null,null,null,null,null,null,null,"j"]
[]
[25,"Tax-exempt interest income (for reporting purposes only)"]
["VERIFICATION"]
[]
["     I, ",null,null,null,null,null,null,null,null,null,null,null,null,null,null,"son/ daughter of",null,null,null,null,null,null,null,null,null,null,null,null,null,null,null,null,"solemnly "]
["declare that to the best of my knwledge and belief, the information given in the return thereto is correct and complete and that the amount of total income and other particulars shown therein are truly stated and in accordance with the provisions of the I"]
[]
["Place",null,null,null,null,null,null,null,"Date",null,null,null,null,null,null,null,null,null,"Sign here"]
[]
[26,"If the return has been prepared by a Tax Return Preparer (TRP) give further details as below :"]
["Identification No. of TRP",null,null,null,null,null,null,null,null,"Name of TRP",null,null,null,null,null,null,null,null," ",null,"Counter Signature of TRP"]
[]
["If TRP is entitled for any reimbursement from the Government, amount thereof (to be filled by TRP)",null,null,null,null,null,null,null,null,null,null,null,null,null,null,null,null,null,null,null,null,null,null,null,null,null,null,null,27]
["Receipt No."]
[]
["Date"]
[]
[]
[]
[]
[]
[null,null,null,null,null,null,null,null,null,null,null,null,null,null,null,null,null,"Click Next ITR-2 Page 2",null,null,null,null,null,null,null,null,"ITR-1Page 2"]